Body Name,Service Area,Expenses type,Invoice Payment Date,Transaction Number,Supplier Name,Net Amount
Manchester City Council,Chief Executives,Payments to Sub-Contractors,01-Feb-24,5105913800,Redacted Personal Information,528.60
Manchester City Council,Adult Social Care,Cleaning Equipment and Materials,01-Feb-24,5105914065,Alliance Disposables Ltd,660.00
Manchester City Council,Adult Social Care,ClothsUniformLaundry,01-Feb-24,5105914010,Alliance Disposables Ltd,660.00
Manchester City Council,Adult Social Care,ClothsUniformLaundry,01-Feb-24,5105914025,Alliance Disposables Ltd,550.00
Manchester City Council,Corporate Services,Cleaning Equipment,01-Feb-24,5105913999,Alliance Disposables Ltd,"2,950.00"
Manchester City Council,Corporate Services,Storage Costs,01-Feb-24,5105913772,Apex Self Storage Ltd,590.97
Manchester City Council,Adult Social Care,Stationery,01-Feb-24,5105914052,Banner Group Limited,646.14
Manchester City Council,Adult Social Care,Stationery,01-Feb-24,5105914053,Banner Group Limited,"1,138.26"
Manchester City Council,Corporate Services,Stationery,01-Feb-24,5105913971,Banner Group Limited,963.40
Manchester City Council,Hospitality + Trading Services,Grant Payments,01-Feb-24,5105913749,Basis (Registration) Ltd,646.00
Manchester City Council,Environment and Operations,Infrastructure Fees,01-Feb-24,1908354493,Blake Morgan Lp,"39,076.00"
Manchester City Council,Highways Services,Compensation Payments,01-Feb-24,1908352541,Cadent Gas,700.00
Manchester City Council,Chief Executives,Counsel Costs,01-Feb-24,1908353169,Cornwall Street Barristers,"1,250.00"
Manchester City Council,Manchester Leisure,Gas,01-Feb-24,1700164660,Corona Energy Ltd,"-4,136.75"
Manchester City Council,Manchester Leisure,Gas,01-Feb-24,1908353394,Corona Energy Ltd,"1,193.39"
Manchester City Council,Manchester Leisure,Gas,01-Feb-24,1908353395,Corona Energy Ltd,"1,373.65"
Manchester City Council,Manchester Leisure,Gas,01-Feb-24,1908353397,Corona Energy Ltd,714.84
Manchester City Council,Manchester Leisure,Gas,01-Feb-24,1908353406,Corona Energy Ltd,687.57
Manchester City Council,Manchester Leisure,Gas,01-Feb-24,1908353410,Corona Energy Ltd,610.91
Manchester City Council,Manchester Leisure,Gas,01-Feb-24,1908353423,Corona Energy Ltd,643.39
Manchester City Council,Manchester Leisure,Gas,01-Feb-24,1908353434,Corona Energy Ltd,508.05
Manchester City Council,Manchester Leisure,Gas,01-Feb-24,1908353436,Corona Energy Ltd,587.96
Manchester City Council,Manchester Leisure,Gas,01-Feb-24,1908353445,Corona Energy Ltd,"13,298.03"
Manchester City Council,Manchester Leisure,Gas,01-Feb-24,1908353447,Corona Energy Ltd,"1,155.04"
Manchester City Council,Manchester Leisure,Gas,01-Feb-24,1908353454,Corona Energy Ltd,669.60
Manchester City Council,Manchester Leisure,Gas,01-Feb-24,1908353461,Corona Energy Ltd,748.77
Manchester City Council,Manchester Leisure,Gas,01-Feb-24,1908353465,Corona Energy Ltd,"3,985.79"
Manchester City Council,Manchester Leisure,Gas,01-Feb-24,1908353467,Corona Energy Ltd,"4,423.72"
Manchester City Council,Manchester Leisure,Gas,01-Feb-24,1908353469,Corona Energy Ltd,"1,622.40"
Manchester City Council,Manchester Leisure,Gas,01-Feb-24,1908353481,Corona Energy Ltd,734.80
Manchester City Council,Manchester Leisure,Gas,01-Feb-24,1908353485,Corona Energy Ltd,821.98
Manchester City Council,Manchester Leisure,Gas,01-Feb-24,1908353489,Corona Energy Ltd,"8,023.52"
Manchester City Council,Manchester Leisure,Gas,01-Feb-24,1908353491,Corona Energy Ltd,697.24
Manchester City Council,Manchester Leisure,Gas,01-Feb-24,1908353498,Corona Energy Ltd,"1,140.10"
Manchester City Council,Manchester Leisure,Gas,01-Feb-24,1908353522,Corona Energy Ltd,960.10
Manchester City Council,Manchester Leisure,Gas,01-Feb-24,1908353534,Corona Energy Ltd,"14,908.49"
Manchester City Council,Manchester Leisure,Gas,01-Feb-24,1908353548,Corona Energy Ltd,"3,360.22"
Manchester City Council,Manchester Leisure,Gas,01-Feb-24,1908353550,Corona Energy Ltd,763.65
Manchester City Council,Manchester Leisure,Gas,01-Feb-24,1908353635,Corona Energy Ltd,"10,739.16"
Manchester City Council,Manchester Leisure,Gas,01-Feb-24,1908353645,Corona Energy Ltd,"2,633.72"
Manchester City Council,Manchester Leisure,Gas,01-Feb-24,1908353656,Corona Energy Ltd,"4,647.59"
Manchester City Council,Manchester Leisure,Gas,01-Feb-24,1908353661,Corona Energy Ltd,"5,291.69"
Manchester City Council,Manchester Leisure,Gas,01-Feb-24,1908353669,Corona Energy Ltd,716.89
Manchester City Council,Manchester Leisure,Gas,01-Feb-24,1908353673,Corona Energy Ltd,"5,933.47"
Manchester City Council,Manchester Leisure,Gas,01-Feb-24,1908353675,Corona Energy Ltd,"3,656.18"
Manchester City Council,Manchester Leisure,Gas,01-Feb-24,1908353682,Corona Energy Ltd,"1,243.35"
Manchester City Council,Manchester Leisure,Gas,01-Feb-24,1908353684,Corona Energy Ltd,"4,317.81"
Manchester City Council,Manchester Leisure,Gas,01-Feb-24,1908353686,Corona Energy Ltd,"3,450.45"
Manchester City Council,Manchester Leisure,Gas,01-Feb-24,1908353688,Corona Energy Ltd,"6,011.49"
Manchester City Council,Manchester Leisure,Gas,01-Feb-24,1908353691,Corona Energy Ltd,564.12
Manchester City Council,Manchester Leisure,Gas,01-Feb-24,1908353698,Corona Energy Ltd,"8,780.81"
Manchester City Council,Manchester Leisure,Gas,01-Feb-24,1908353700,Corona Energy Ltd,"1,335.72"
Manchester City Council,Manchester Leisure,Gas,01-Feb-24,1908353704,Corona Energy Ltd,663.14
Manchester City Council,Manchester Leisure,Gas,01-Feb-24,1908353723,Corona Energy Ltd,"1,876.40"
Manchester City Council,Manchester Leisure,Gas,01-Feb-24,1908353757,Corona Energy Ltd,"1,077.15"
Manchester City Council,Manchester Leisure,Gas,01-Feb-24,1908353808,Corona Energy Ltd,502.48
Manchester City Council,Manchester Leisure,Gas,01-Feb-24,1908353815,Corona Energy Ltd,"1,732.55"
Manchester City Council,Manchester Leisure,Gas,01-Feb-24,1908353848,Corona Energy Ltd,580.67
Manchester City Council,Manchester Leisure,Gas,01-Feb-24,1908353854,Corona Energy Ltd,674.66
Manchester City Council,Manchester Leisure,Gas,01-Feb-24,1908353857,Corona Energy Ltd,"1,885.82"
Manchester City Council,Manchester Leisure,Gas,01-Feb-24,1908353868,Corona Energy Ltd,"1,685.78"
Manchester City Council,Hospitality + Trading Services,Gas,01-Feb-24,1908353452,Corona Energy Ltd,"1,385.26"
Manchester City Council,Hospitality + Trading Services,Gas,01-Feb-24,1908353476,Corona Energy Ltd,"7,090.44"
Manchester City Council,Hospitality + Trading Services,Gas,01-Feb-24,1908353541,Corona Energy Ltd,656.12
Manchester City Council,Hospitality + Trading Services,Gas,01-Feb-24,1908353570,Corona Energy Ltd,"1,197.06"
Manchester City Council,Hospitality + Trading Services,Gas,01-Feb-24,1908353779,Corona Energy Ltd,684.63
Manchester City Council,Hospitality + Trading Services,Gas,01-Feb-24,1908353782,Corona Energy Ltd,"1,011.67"
Manchester City Council,Childrens & Education Services,Gas,01-Feb-24,1908353421,Corona Energy Ltd,724.48
Manchester City Council,Childrens & Education Services,Gas,01-Feb-24,1908353456,Corona Energy Ltd,887.22
Manchester City Council,Childrens & Education Services,Gas,01-Feb-24,1908353500,Corona Energy Ltd,862.77
Manchester City Council,Childrens & Education Services,Gas,01-Feb-24,1908353574,Corona Energy Ltd,991.37
Manchester City Council,Childrens & Education Services,Gas,01-Feb-24,1908353578,Corona Energy Ltd,"1,297.14"
Manchester City Council,Childrens & Education Services,Gas,01-Feb-24,1908353631,Corona Energy Ltd,843.51
Manchester City Council,Childrens & Education Services,Gas,01-Feb-24,1908353667,Corona Energy Ltd,774.69
Manchester City Council,Childrens & Education Services,Gas,01-Feb-24,1908353680,Corona Energy Ltd,"1,530.06"
Manchester City Council,Childrens & Education Services,Gas,01-Feb-24,1908353727,Corona Energy Ltd,"1,163.98"
Manchester City Council,Childrens & Education Services,Gas,01-Feb-24,1908353825,Corona Energy Ltd,"1,576.51"
Manchester City Council,Childrens & Education Services,Gas,01-Feb-24,1908353878,Corona Energy Ltd,859.57
Manchester City Council,Childrens & Education Services,Gas,01-Feb-24,1908353881,Corona Energy Ltd,"1,951.66"
Manchester City Council,Adult Social Care,Gas,01-Feb-24,1908353659,Corona Energy Ltd,574.65
Manchester City Council,Corporate Services,Gas,01-Feb-24,1700164663,Corona Energy Ltd,-561.74
Manchester City Council,Corporate Services,Gas,01-Feb-24,1700164664,Corona Energy Ltd,-832.10
Manchester City Council,Corporate Services,Gas,01-Feb-24,1908353415,Corona Energy Ltd,"8,328.21"
Manchester City Council,Corporate Services,Gas,01-Feb-24,1908353417,Corona Energy Ltd,"9,985.34"
Manchester City Council,Corporate Services,Gas,01-Feb-24,1908353419,Corona Energy Ltd,"5,461.46"
Manchester City Council,Corporate Services,Gas,01-Feb-24,1908353428,Corona Energy Ltd,"1,524.34"
Manchester City Council,Corporate Services,Gas,01-Feb-24,1908353431,Corona Energy Ltd,613.48
Manchester City Council,Corporate Services,Gas,01-Feb-24,1908353471,Corona Energy Ltd,"1,221.60"
Manchester City Council,Corporate Services,Gas,01-Feb-24,1908353478,Corona Energy Ltd,"1,507.75"
Manchester City Council,Corporate Services,Gas,01-Feb-24,1908353503,Corona Energy Ltd,963.57
Manchester City Council,Corporate Services,Gas,01-Feb-24,1908353524,Corona Energy Ltd,"2,434.36"
Manchester City Council,Corporate Services,Gas,01-Feb-24,1908353552,Corona Energy Ltd,"2,253.02"
Manchester City Council,Corporate Services,Gas,01-Feb-24,1908353563,Corona Energy Ltd,"2,127.36"
Manchester City Council,Corporate Services,Gas,01-Feb-24,1908353572,Corona Energy Ltd,"1,530.85"
Manchester City Council,Corporate Services,Gas,01-Feb-24,1908353585,Corona Energy Ltd,"1,229.88"
Manchester City Council,Corporate Services,Gas,01-Feb-24,1908353598,Corona Energy Ltd,"2,851.90"
Manchester City Council,Corporate Services,Gas,01-Feb-24,1908353599,Corona Energy Ltd,"3,381.72"
Manchester City Council,Corporate Services,Gas,01-Feb-24,1908353601,Corona Energy Ltd,"3,285.38"
Manchester City Council,Corporate Services,Gas,01-Feb-24,1908353609,Corona Energy Ltd,"1,637.13"
Manchester City Council,Corporate Services,Gas,01-Feb-24,1908353611,Corona Energy Ltd,"3,043.45"
Manchester City Council,Corporate Services,Gas,01-Feb-24,1908353618,Corona Energy Ltd,"1,052.92"
Manchester City Council,Corporate Services,Gas,01-Feb-24,1908353622,Corona Energy Ltd,"1,611.75"
Manchester City Council,Corporate Services,Gas,01-Feb-24,1908353643,Corona Energy Ltd,"1,145.79"
Manchester City Council,Corporate Services,Gas,01-Feb-24,1908353652,Corona Energy Ltd,876.22
Manchester City Council,Corporate Services,Gas,01-Feb-24,1908353702,Corona Energy Ltd,"1,185.16"
Manchester City Council,Corporate Services,Gas,01-Feb-24,1908353720,Corona Energy Ltd,"1,333.03"
Manchester City Council,Corporate Services,Gas,01-Feb-24,1908353754,Corona Energy Ltd,"1,164.40"
Manchester City Council,Corporate Services,Gas,01-Feb-24,1908353818,Corona Energy Ltd,"1,174.72"
Manchester City Council,Corporate Services,Gas,01-Feb-24,1908353827,Corona Energy Ltd,"44,825.23"
Manchester City Council,Corporate Services,Gas,01-Feb-24,1908353831,Corona Energy Ltd,764.08
Manchester City Council,Corporate Services,Gas,01-Feb-24,1908353865,Corona Energy Ltd,649.89
Manchester City Council,Corporate Services,Gas,01-Feb-24,1908353875,Corona Energy Ltd,"2,101.22"
Manchester City Council,Housing Revenue Account,Gas,01-Feb-24,1908353441,Corona Energy Ltd,"3,105.11"
Manchester City Council,Housing Revenue Account,Gas,01-Feb-24,1908353443,Corona Energy Ltd,"3,498.61"
Manchester City Council,Housing Revenue Account,Gas,01-Feb-24,1908353483,Corona Energy Ltd,"2,874.61"
Manchester City Council,Housing Revenue Account,Gas,01-Feb-24,1908353519,Corona Energy Ltd,"17,672.39"
Manchester City Council,Housing Revenue Account,Gas,01-Feb-24,1908353532,Corona Energy Ltd,"1,476.88"
Manchester City Council,Housing Revenue Account,Gas,01-Feb-24,1908353539,Corona Energy Ltd,"2,616.82"
Manchester City Council,Housing Revenue Account,Gas,01-Feb-24,1908353565,Corona Energy Ltd,944.16
Manchester City Council,Housing Revenue Account,Gas,01-Feb-24,1908353603,Corona Energy Ltd,"3,337.69"
Manchester City Council,Housing Revenue Account,Gas,01-Feb-24,1908353605,Corona Energy Ltd,"3,290.29"
Manchester City Council,Housing Revenue Account,Gas,01-Feb-24,1908353637,Corona Energy Ltd,"3,047.42"
Manchester City Council,Housing Revenue Account,Gas,01-Feb-24,1908353735,Corona Energy Ltd,"1,207.53"
Manchester City Council,Housing Revenue Account,Gas,01-Feb-24,1908353745,Corona Energy Ltd,"3,318.60"
Manchester City Council,Housing Revenue Account,Gas,01-Feb-24,1908353751,Corona Energy Ltd,"2,478.66"
Manchester City Council,Housing Revenue Account,Gas,01-Feb-24,1908353773,Corona Energy Ltd,"2,800.02"
Manchester City Council,Housing Revenue Account,Gas,01-Feb-24,1908353834,Corona Energy Ltd,"28,435.37"
Manchester City Council,Housing Revenue Account,Gas,01-Feb-24,1908353838,Corona Energy Ltd,"20,867.18"
Manchester City Council,Regeneration Finance,Gas,01-Feb-24,1908353402,Corona Energy Ltd,732.42
Manchester City Council,Regeneration Finance,Gas,01-Feb-24,1908353581,Corona Energy Ltd,"3,443.54"
Manchester City Council,Regeneration Finance,Gas,01-Feb-24,1908353628,Corona Energy Ltd,"4,461.61"
Manchester City Council,Regeneration Finance,Gas,01-Feb-24,1908353696,Corona Energy Ltd,672.27
Manchester City Council,Regeneration Finance,Gas,01-Feb-24,1908353742,Corona Energy Ltd,"2,436.86"
Manchester City Council,Regeneration Finance,Gas,01-Feb-24,1908353761,Corona Energy Ltd,"1,249.32"
Manchester City Council,Regeneration Finance,Gas,01-Feb-24,1908353794,Corona Energy Ltd,"1,416.34"
Manchester City Council,Regeneration Finance,Gas,01-Feb-24,1908353871,Corona Energy Ltd,"1,470.17"
Manchester City Council,Manchester Leisure,Furniture,01-Feb-24,5105913803,Furniture Resource Centre Ltd,880.82
Manchester City Council,Manchester Leisure,Furniture,01-Feb-24,5105913811,Furniture Resource Centre Ltd,"2,756.00"
Manchester City Council,Manchester Leisure,Bed & Breakfast Acc,01-Feb-24,5105913824,Redacted Personal Information,"6,264.00"
Manchester City Council,Corporate Services,I T Provision,01-Feb-24,5105913842,Insight Direct (Uk) Ltd,"22,535.10"
Manchester City Council,Manchester Leisure,Professional fees,01-Feb-24,5105913794,Institute of Licensing (Events) Ltd,650.00
Manchester City Council,Manchester Leisure,Professional fees,01-Feb-24,5105913795,Institute of Licensing (Events) Ltd,850.00
Manchester City Council,Regeneration Finance,Professional fees,01-Feb-24,5105913801,Jacobs UK Ltd,"1,500.00"
Manchester City Council,Chief Executives,Professional fees,01-Feb-24,5105913840,Manchester Central,"1,322.40"
Manchester City Council,Chief Executives,Grant and subscriptions awarded,01-Feb-24,5105913768,Manchester City of Literature,"12,500.00"
Manchester City Council,Manchester Leisure,Professional fees,01-Feb-24,5105913841,Redacted Personal Information,500.00
Manchester City Council,Childrens & Education Services,Carer Support Payments ,01-Feb-24,5105913790,Mosscare Housing Ltd,"65,228.45"
Manchester City Council,Adult Social Care,Payments for services,01-Feb-24,5105913785,Phoenix Futures,"6,000.00"
Manchester City Council,Adult Social Care,Payments for services,01-Feb-24,5105913786,Phoenix Futures,"8,571.42"
Manchester City Council,Adult Social Care,Payments for services,01-Feb-24,5105913788,Phoenix Futures,"5,571.43"
Manchester City Council,Chief Executives,Advertising,01-Feb-24,5105913784,Reach Publishing Services Ltd,"29,167.00"
Manchester City Council,Hospitality + Trading Services,Vehicle Fuel Costs,01-Feb-24,5105913781,Standard Fuels Oils,"-26,329.28"
Manchester City Council,Corporate Services,Works and associated costs for Land and Buildings,01-Feb-24,5105913798,Stellar Network Solutions Ltd,"17,203.75"
Manchester City Council,Childrens & Education Services,Third party payments relating to Voluntary Organisations,01-Feb-24,5105913797,The Children'S Society Services Ltd,"22,630.75"
Manchester City Council,Highways Services,Payments to Sub-Contractors,01-Feb-24,5105913817,Utilities Design & Planning Ltd,"1,200.00"
Manchester City Council,Highways Services,Payments to Sub-Contractors,01-Feb-24,5105913818,Utilities Design & Planning Ltd,"2,000.00"
Manchester City Council,Childrens Services,Works and associated costs for Land and Buildings,01-Feb-24,5105913783,Warden Construction Ltd,"11,858.80"
Manchester City Council,Chief Executives,Legal Fees,01-Feb-24,5105913769,Weightmans LLP Solicitors,"3,675.75"
Manchester City Council,Chief Executives,Legal Fees,01-Feb-24,5105913820,Weightmans LLP Solicitors,"2,176.00"
Manchester City Council,Chief Executives,Legal Fees,01-Feb-24,5105913852,Weightmans LLP Solicitors,"2,450.90"
Manchester City Council,Manchester Leisure,Building Materials for direct delivery,01-Feb-24,5105913796,WILKYS FLOORING CONTRACTORS LTD,"1,500.00"
Manchester City Council,Housing General Fund,Building Works,01-Feb-24,5105913782,Wythenshawe Community Housing Group,"116,187.76"
Manchester City Council,Manchester Leisure,Agency staff provision,02-Feb-24,5105913931,Redacted Personal Information,875.00
Manchester City Council,Manchester Leisure,Agency staff provision,02-Feb-24,5105913933,Redacted Personal Information,875.00
Manchester City Council,Manchester Leisure,Agency staff provision,02-Feb-24,5105913935,Redacted Personal Information,700.00
Manchester City Council,Childrens & Education Services,Payments for services,02-Feb-24,5105913860,4CT Limited,"4,908.72"
Manchester City Council,Childrens & Education Services,Payments for services,02-Feb-24,5105913862,4CT Limited,"23,517.61"
Manchester City Council,Chief Executives,Payments to Sub-Contractors,02-Feb-24,5105913728,Redacted Personal Information,"1,089.75"
Manchester City Council,Manchester Leisure,Rents,02-Feb-24,5105914296,Redacted Personal Information,776.00
Manchester City Council,Manchester Leisure,Rents,02-Feb-24,5105914297,Redacted Personal Information,776.00
Manchester City Council,Hospitality + Trading Services,Cleaning Equipment and Materials,02-Feb-24,5105914153,Alliance Disposables Ltd,628.75
Manchester City Council,Manchester Leisure,Responsive Repairs Work,02-Feb-24,1908352549,Redacted Personal Information,"3,500.00"
Manchester City Council,Regeneration Finance,Professional fees,02-Feb-24,5105913919,arc4,"2,891.86"
Manchester City Council,Regeneration Finance,Professional fees,02-Feb-24,5105913920,arc4,"-2,891.86"
Manchester City Council,Manchester Leisure,I T Provision,02-Feb-24,5105914231,Arena Group Ltd,949.16
Manchester City Council,Chief Executives,Printing,02-Feb-24,5105913989,Astra Signs,"1,279.00"
Manchester City Council,Childrens & Education Services,Grant and subscriptions awarded,02-Feb-24,5105914288,Caritas Diocese of Shrewsbury,"10,000.00"
Manchester City Council,Insurance Fund,Insurance,02-Feb-24,1908340630,CBRE Ltd (Glasgow),"11,757.65"
Manchester City Council,Corporate Services,Works and associated costs for Land and Buildings,02-Feb-24,5105914476,Clean-Up UK Limited,"3,010.00"
Manchester City Council,Hospitality + Trading Services,Vehicle Hire Costs,02-Feb-24,5105914490,Clearway Drainage Systems Ltd,600.00
Manchester City Council,Hospitality + Trading Services,Vehicle Hire Costs,02-Feb-24,5105914491,Clearway Drainage Systems Ltd,600.00
Manchester City Council,Hospitality + Trading Services,Vehicle Hire Costs,02-Feb-24,5105914493,Clearway Drainage Systems Ltd,"1,080.00"
Manchester City Council,Highways Services,Payments to Sub-Contractors,02-Feb-24,5105914488,Clearway Drainage Systems Ltd,"1,620.00"
Manchester City Council,Highways Services,Payments to Sub-Contractors,02-Feb-24,5105914489,Clearway Drainage Systems Ltd,"1,370.00"
Manchester City Council,Manchester Leisure,Environmental Services,02-Feb-24,5105914047,Community Security (North West),"4,287.79"
Manchester City Council,Manchester Leisure,Environmental Services,02-Feb-24,5105914048,Community Security (North West),"4,287.79"
Manchester City Council,Manchester Leisure,Environmental Services,02-Feb-24,5105914049,Community Security (North West),"4,287.79"
Manchester City Council,Manchester Leisure,Grounds Maintenance,02-Feb-24,5105913985,Community Security (North West),"3,900.00"
Manchester City Council,Manchester Leisure,Professional fees,02-Feb-24,1908353173,COSGROVE COSTINGS LIMITED,600.00
Manchester City Council,Adult Social Care,Payments for services,02-Feb-24,5105913913,Creative Support Ltd,"1,212.68"
Manchester City Council,Corporate Services,Rtnd Ctax Energy Gt,02-Feb-24,1908341491,DCLG,"455,345.00"
Manchester City Council,Corporate Services,Counsel Costs,02-Feb-24,5105913938,DEANS COURT CHAMBERS,"12,500.00"
Manchester City Council,Insurance Fund,Insurance,02-Feb-24,1908347222,Department For Work & Pensions,"1,262.00"
Manchester City Council,Corporate Services,Agency staff provision,02-Feb-24,5105914399,Eden Brown Synergy,"11,152.85"
Manchester City Council,Corporate Services,Agency staff provision,02-Feb-24,5105914400,Eden Brown Synergy,"18,663.19"
Manchester City Council,Childrens & Education Services,Stationery,02-Feb-24,5105914471,Egan Reid Stationery Co Ltd,598.50
Manchester City Council,Corporate Services,Internal Repairs and Maintenance for buildings,02-Feb-24,5105913873,EQUANS Services Limited,"-244,474.68"
Manchester City Council,Corporate Services,Internal Repairs and Maintenance for buildings,02-Feb-24,5105913874,EQUANS Services Limited,"244,474.68"
Manchester City Council,Manchester Leisure,Catering,02-Feb-24,5105914194,Factory International Trading Servi,"28,976.18"
Manchester City Council,Childrens & Education Services,Professional fees,02-Feb-24,5105914170,Faithful & Gould Ltd,"-31,420.91"
Manchester City Council,Childrens & Education Services,Professional fees,02-Feb-24,5105914181,Faithful & Gould Ltd,"31,320.83"
Manchester City Council,Housing General Fund,Surplus property Fees,02-Feb-24,1908341498,FIFIELD GLEN CHARTERED SURVEYORS,"2,925.00"
Manchester City Council,Adult Social Care,Rents,02-Feb-24,5105914221,Furniture Resource Centre Ltd,572.52
Manchester City Council,Manchester Leisure,Housing Rents Debit,02-Feb-24,1908344805,Redacted Personal Information,"2,432.08"
Manchester City Council,Environment and Operations,Works and associated costs for Land and Buildings,02-Feb-24,5105914480,H Jenkinson & Co Ltd.,"71,245.83"
Manchester City Council,Childrens & Education Services,Furniture,02-Feb-24,5105914040,H Jenkinson & Co Ltd.,"2,416.32"
Manchester City Council,Childrens & Education Services,Payments for services,02-Feb-24,5105913893,H.G. Care Services Ltd,"8,713.60"
Manchester City Council,Manchester Leisure,Bed & Breakfast Acc,02-Feb-24,5105913823,Redacted Personal Information,"-6,264.00"
Manchester City Council,Manchester Leisure,Bed & Breakfast Acc,02-Feb-24,5105913937,Redacted Personal Information,"12,586.00"
Manchester City Council,Manchester Leisure,Bed & Breakfast Acc,02-Feb-24,5105914161,Redacted Personal Information,"-12,586.00"
Manchester City Council,Housing Revenue Account,Professional fees,02-Feb-24,5105913898,Jacobs UK Ltd,503.00
Manchester City Council,Housing Revenue Account,Professional fees,02-Feb-24,5105913899,Jacobs UK Ltd,"1,014.00"
Manchester City Council,Housing Revenue Account,Professional fees,02-Feb-24,5105913900,Jacobs UK Ltd,"4,732.00"
Manchester City Council,Regeneration Finance,Professional fees,02-Feb-24,5105914222,Jacobs UK Ltd,"1,531.25"
Manchester City Council,Manchester Leisure,Agency staff provision,02-Feb-24,5105914282,Redacted Personal Information,"1,925.00"
Manchester City Council,Corporate Services,Rents,02-Feb-24,1908341448,Knight Frank LLP,"220,382.00"
Manchester City Council,Chief Executives,Payments to Sub-Contractors,02-Feb-24,5105913882,Redacted Personal Information,535.30
Manchester City Council,Manchester Leisure,Grant and subscriptions awarded,02-Feb-24,5105914156,Ladybarn Community Centre,"3,800.00"
Manchester City Council,Manchester Leisure,Rents,02-Feb-24,5105913880,M&D Residential Ltd,"19,782.00"
Manchester City Council,Hospitality + Trading Services,Vehicle Repairs,02-Feb-24,5105914486,Manchester Van Hire Ltd,"1,043.48"
Manchester City Council,Hospitality + Trading Services,Vehicle Repairs,02-Feb-24,5105914487,Manchester Van Hire Ltd,"4,551.24"
Manchester City Council,Chief Executives,Payments to Sub-Contractors,02-Feb-24,5105913859,Redacted Personal Information,683.85
Manchester City Council,Manchester Leisure,Special Event,02-Feb-24,5105913778,MLS Contracts Limited,"2,714.00"
Manchester City Council,Manchester Leisure,Special Event,02-Feb-24,5105913779,MLS Contracts Limited,"2,714.00"
Manchester City Council,Manchester Leisure,Special Event,02-Feb-24,5105913780,MLS Contracts Limited,"2,714.00"
Manchester City Council,Manchester Leisure,Rents,02-Feb-24,1908354952,Redacted Personal Information,"3,219.06"
Manchester City Council,Manchester Leisure,Rents,02-Feb-24,1908354952,Redacted Personal Information,980.94
Manchester City Council,Manchester Leisure,Building Materials for direct delivery,02-Feb-24,5105913912,My Sports Turf,"7,500.00"
Manchester City Council,Chief Executives,Payments to Sub-Contractors,02-Feb-24,5105914176,Redacted Personal Information,535.70
Manchester City Council,Childrens & Education Services,Payments for services,02-Feb-24,1908340569,Navigators College,"375,295.45"
Manchester City Council,Insurance Fund,Bal of Rsk InsPrem,02-Feb-24,1908346894,New Moston Primary School,"18,691.54"
Manchester City Council,Manchester Leisure,Rents,02-Feb-24,5105914292,NWA Housing Ltd,"1,245.09"
Manchester City Council,Corporate Services,Professional Fees,02-Feb-24,5105913864,Pick Everard,"19,498.00"
Manchester City Council,Housing General Fund,Building Works,02-Feb-24,1908354536,Pollock Lifts Ltd,"14,909.00"
Manchester City Council,Childrens & Education Services,Payments for services,02-Feb-24,5105914301,Rossendale School Priory,"6,367.40"
Manchester City Council,Childrens & Education Services,Payments for services,02-Feb-24,5105914302,Rossendale School Priory,"5,767.37"
Manchester City Council,Childrens & Education Services,Payments for services,02-Feb-24,5105914303,Rossendale School Priory,"6,193.61"
Manchester City Council,Manchester Leisure,Housing Rents Debit,02-Feb-24,1908344803,Redacted Personal Information,"1,065.00"
Manchester City Council,Regeneration Finance,Supporting People Payments,02-Feb-24,5105914226,Seetec Business Technology Centre,"23,320.00"
Manchester City Council,Manchester Leisure,Compensation Payments,02-Feb-24,1908353172,SK Real estate,650.00
Manchester City Council,Childrens & Education Services,Payments for services,02-Feb-24,5105913875,St Bede'S Pre School,"1,266.67"
Manchester City Council,Hospitality + Trading Services,Vehicle Fuel Costs,02-Feb-24,5105913826,Standard Fuels Oils,"-26,329.28"
Manchester City Council,Hospitality + Trading Services,Vehicle Fuel Costs,02-Feb-24,5105914158,Standard Fuels Oils,"25,788.89"
Manchester City Council,Housing General Fund,Building Works,02-Feb-24,1908354535,Stannah Lift Services Ltd,"2,193.00"
Manchester City Council,Adult Social Care,External repairs and maintenance for buildings,02-Feb-24,5105914251,T F Jones Property Services Ltd,951.41
Manchester City Council,Adult Social Care,External repairs and maintenance for buildings,02-Feb-24,5105914255,T F Jones Property Services Ltd,828.52
Manchester City Council,Adult Social Care,External repairs and maintenance for buildings,02-Feb-24,5105914310,T F Jones Property Services Ltd,710.16
Manchester City Council,Chief Executives,Payments to Sub-Contractors,02-Feb-24,5105914243,Redacted Personal Information,"1,179.24"
Manchester City Council,Manchester Leisure,Third party payments relating to Voluntary Organisations,02-Feb-24,5105913855,The Depaul Trust,"100,000.00"
Manchester City Council,Manchester Leisure,Publications,02-Feb-24,5105913896,Thompson Reuters,"1,205.00"
Manchester City Council,Childrens & Education Services,Rates,02-Feb-24,5105914236,Tiddlywinks Day Nursery Ltd,989.79
Manchester City Council,Manchester Leisure,Counsel Costs,02-Feb-24,1908347225,Trinity Chambers,"1,750.00"
Manchester City Council,Manchester Leisure,Counsel Costs,02-Feb-24,1908347364,Trinity Chambers,"1,839.93"
Manchester City Council,Housing General Fund,Building Works,02-Feb-24,1908354532,UPS Building & Maintenance Ltd,"25,925.33"
Manchester City Council,Housing General Fund,Building Works,02-Feb-24,1908354533,UPS Building & Maintenance Ltd,"20,184.33"
Manchester City Council,Housing General Fund,Building Works,02-Feb-24,1908354534,UPS Building & Maintenance Ltd,"22,148.43"
Manchester City Council,Corporate Services,Works and associated costs for Land and Buildings,02-Feb-24,5105914182,Utilities Design & Planning Ltd,-543.34
Manchester City Council,Corporate Services,Works and associated costs for Land and Buildings,02-Feb-24,5105914183,Utilities Design & Planning Ltd,543.34
Manchester City Council,Chief Executives,Legal Fees,02-Feb-24,5105913847,Waddington & Son Solicitors,"5,797.35"
Manchester City Council,Environment and Operations,Construction Works,02-Feb-24,5105914285,Watts Group Limited,"1,800.00"
Manchester City Council,Chief Executives,Legal Fees,02-Feb-24,5105913865,Weightmans LLP Solicitors,"5,003.00"
Manchester City Council,Chief Executives,Legal Fees,02-Feb-24,5105913866,Weightmans LLP Solicitors,"2,505.25"
Manchester City Council,Chief Executives,Legal Fees,02-Feb-24,5105913887,Weightmans LLP Solicitors,"1,561.00"
Manchester City Council,Chief Executives,Legal Fees,02-Feb-24,5105913889,Weightmans LLP Solicitors,"2,828.25"
Manchester City Council,Chief Executives,Legal Fees,02-Feb-24,5105913890,Weightmans LLP Solicitors,"5,340.79"
Manchester City Council,Chief Executives,Legal Fees,02-Feb-24,5105913939,Weightmans LLP Solicitors,"2,589.25"
Manchester City Council,Chief Executives,Legal Fees,02-Feb-24,5105914187,Weightmans LLP Solicitors,"5,533.50"
Manchester City Council,Chief Executives,Legal Fees,02-Feb-24,5105914188,Weightmans LLP Solicitors,"1,974.00"
Manchester City Council,Chief Executives,Legal Fees,02-Feb-24,5105914291,Weightmans LLP Solicitors,"1,624.00"
Manchester City Council,Chief Executives,Legal Fees,02-Feb-24,5105914294,Weightmans LLP Solicitors,920.25
Manchester City Council,Regeneration Finance,"Consumable items eg Toilet rolls, soap etc",02-Feb-24,5105914200,Wilkinson Bros,920.00
Manchester City Council,Highways Services,Building Materials for direct delivery,02-Feb-24,5105914119,Wolseley Util Ltd T/A Burdens,516.15
Manchester City Council,Manchester Leisure,Cleaning Equipment and Materials,03-Feb-24,5105914655,Alliance Disposables Ltd,"1,834.00"
Manchester City Council,Manchester Leisure,Cleaning Equipment and Materials,03-Feb-24,5105914676,Alliance Disposables Ltd,647.45
Manchester City Council,Manchester Leisure,Cleaning Equipment and Materials,03-Feb-24,5105914684,Alliance Disposables Ltd,647.45
Manchester City Council,Manchester Leisure,Cleaning Equipment and Materials,03-Feb-24,5105914689,Alliance Disposables Ltd,939.00
Manchester City Council,Adult Social Care,Contract Cleaning External,03-Feb-24,5105914687,Alliance Disposables Ltd,850.10
Manchester City Council,Adult Social Care,Cleaning Equipment and Materials,03-Feb-24,5105914674,Alliance Disposables Ltd,782.97
Manchester City Council,Corporate Services,Cleaning Equipment and Materials,03-Feb-24,5105914648,Alliance Disposables Ltd,849.70
Manchester City Council,Corporate Services,Cleaning Equipment and Materials,03-Feb-24,5105914649,Alliance Disposables Ltd,849.70
Manchester City Council,Corporate Services,Cleaning Equipment and Materials,03-Feb-24,5105914651,Alliance Disposables Ltd,849.70
Manchester City Council,Corporate Services,Cleaning Equipment and Materials,03-Feb-24,5105914662,Alliance Disposables Ltd,"1,363.24"
Manchester City Council,Corporate Services,Cleaning Equipment and Materials,03-Feb-24,5105914673,Alliance Disposables Ltd,586.50
Manchester City Council,Manchester Leisure,Professional fees,03-Feb-24,5105914631,Arco Group Ltd,612.36
Manchester City Council,Hospitality + Trading Services,External repairs and maintenance for buildings,03-Feb-24,5105914588,Arco Group Ltd,766.56
Manchester City Council,Hospitality + Trading Services,ClothsUniformLaundry,03-Feb-24,5105914599,Arco Group Ltd,"1,086.60"
Manchester City Council,Hospitality + Trading Services,ClothsUniformLaundry,03-Feb-24,5105914601,Arco Group Ltd,"1,860.01"
Manchester City Council,Hospitality + Trading Services,ClothsUniformLaundry,03-Feb-24,5105914602,Arco Group Ltd,697.95
Manchester City Council,Hospitality + Trading Services,ClothsUniformLaundry,03-Feb-24,5105914629,Arco Group Ltd,523.60
Manchester City Council,Hospitality + Trading Services,ClothsUniformLaundry,03-Feb-24,5105914630,Arco Group Ltd,558.66
Manchester City Council,Chief Executives,Printing,03-Feb-24,5105914745,Astra Signs,515.00
Manchester City Council,Chief Executives,Printing,03-Feb-24,5105914746,Astra Signs,"12,917.35"
Manchester City Council,Manchester Leisure,Stationery,03-Feb-24,5105914537,Banner Group Limited,949.96
Manchester City Council,Adult Social Care,Furniture,03-Feb-24,5105914555,Banner Group Limited,506.44
Manchester City Council,Adult Social Care,ClothsUniformLaundry,03-Feb-24,5105914503,Banner Group Limited,534.00
Manchester City Council,Highways Services,Building Materials for direct delivery,03-Feb-24,5105914566,Benchmark Building Supplies Ltd,569.18
Manchester City Council,Highways Services,Building Materials for direct delivery,03-Feb-24,5105914569,Benchmark Building Supplies Ltd,"1,612.00"
Manchester City Council,Highways Services,Building Materials for direct delivery,03-Feb-24,5105914576,Benchmark Building Supplies Ltd,630.00
Manchester City Council,Highways Services,Building Materials for direct delivery,03-Feb-24,5105914579,Benchmark Building Supplies Ltd,878.47
Manchester City Council,Highways Services,Building Materials for direct delivery,03-Feb-24,5105914580,Benchmark Building Supplies Ltd,"1,689.17"
Manchester City Council,Highways Services,Purchase of stores for re-distribution,03-Feb-24,5105914560,Benchmark Building Supplies Ltd,"4,044.00"
Manchester City Council,Highways Services,Purchase of stores for re-distribution,03-Feb-24,5105914561,Benchmark Building Supplies Ltd,"3,141.60"
Manchester City Council,Highways Services,Purchase of stores for re-distribution,03-Feb-24,5105914562,Benchmark Building Supplies Ltd,"1,256.64"
Manchester City Council,Highways Services,Purchase of stores for re-distribution,03-Feb-24,5105914563,Benchmark Building Supplies Ltd,628.32
Manchester City Council,Highways Services,Purchase of stores for re-distribution,03-Feb-24,5105914564,Benchmark Building Supplies Ltd,"4,044.00"
Manchester City Council,Highways Services,Purchase of stores for re-distribution,03-Feb-24,5105914565,Benchmark Building Supplies Ltd,640.00
Manchester City Council,Highways Services,Purchase of stores for re-distribution,03-Feb-24,5105914568,Benchmark Building Supplies Ltd,"1,884.96"
Manchester City Council,Highways Services,Purchase of stores for re-distribution,03-Feb-24,5105914571,Benchmark Building Supplies Ltd,"1,696.69"
Manchester City Council,Highways Services,Purchase of stores for re-distribution,03-Feb-24,5105914572,Benchmark Building Supplies Ltd,"1,554.84"
Manchester City Council,Highways Services,Purchase of stores for re-distribution,03-Feb-24,5105914573,Benchmark Building Supplies Ltd,"1,079.20"
Manchester City Council,Highways Services,Purchase of stores for re-distribution,03-Feb-24,5105914574,Benchmark Building Supplies Ltd,"1,079.20"
Manchester City Council,Highways Services,Purchase of stores for re-distribution,03-Feb-24,5105914575,Benchmark Building Supplies Ltd,"2,104.20"
Manchester City Council,Highways Services,Purchase of stores for re-distribution,03-Feb-24,5105914577,Benchmark Building Supplies Ltd,"6,740.00"
Manchester City Council,Highways Services,Purchase of stores for re-distribution,03-Feb-24,5105914578,Benchmark Building Supplies Ltd,"1,622.36"
Manchester City Council,Highways Services,Purchase of stores for re-distribution,03-Feb-24,5105914581,Benchmark Building Supplies Ltd,"1,038.55"
Manchester City Council,Manchester Leisure,Payments to Sub-Contractors,03-Feb-24,5105914737,Community Security (North West),549.66
Manchester City Council,Manchester Leisure,Payments to Sub-Contractors,03-Feb-24,5105914738,Community Security (North West),"5,237.92"
Manchester City Council,Manchester Leisure,Payments to Sub-Contractors,03-Feb-24,5105914739,Community Security (North West),"5,209.70"
Manchester City Council,Manchester Leisure,Payments to Sub-Contractors,03-Feb-24,5105914740,Community Security (North West),"2,722.46"
Manchester City Council,Manchester Leisure,Professional fees,03-Feb-24,5105914727,Community Security (North West),"3,960.00"
Manchester City Council,Regeneration Finance,External repairs and maintenance for buildings,03-Feb-24,5105914729,Community Security (North West),590.21
Manchester City Council,Regeneration Finance,External repairs and maintenance for buildings,03-Feb-24,5105914731,Community Security (North West),550.00
Manchester City Council,Corporate Services,Equipment,03-Feb-24,1908355179,Cooleraid Ltd,980.00
Manchester City Council,Corporate Services,Equipment,03-Feb-24,1908355181,Cooleraid Ltd,950.08
Manchester City Council,Corporate Services,Equipment,03-Feb-24,1908355190,Cooleraid Ltd,534.42
Manchester City Council,Corporate Services,Equipment,03-Feb-24,1908355192,Cooleraid Ltd,"1,128.22"
Manchester City Council,Childrens & Education Services,Furniture,03-Feb-24,5105914694,Eps Supplies Ltd,622.38
Manchester City Council,Childrens & Education Services,Furniture,03-Feb-24,5105914695,Eps Supplies Ltd,"1,137.14"
Manchester City Council,Childrens & Education Services,Furniture,03-Feb-24,5105914700,Eps Supplies Ltd,672.35
Manchester City Council,Childrens & Education Services,Furniture,03-Feb-24,5105914708,Eps Supplies Ltd,563.32
Manchester City Council,Childrens & Education Services,Furniture,03-Feb-24,5105914710,Eps Supplies Ltd,732.23
Manchester City Council,Childrens & Education Services,Furniture,03-Feb-24,5105914711,Eps Supplies Ltd,825.46
Manchester City Council,Childrens & Education Services,Furniture,03-Feb-24,5105914714,Eps Supplies Ltd,520.01
Manchester City Council,Childrens & Education Services,Furniture,03-Feb-24,5105914721,Eps Supplies Ltd,596.62
Manchester City Council,Corporate Services,Agency staff provision,03-Feb-24,5105914744,Hays Personnel,"14,399.71"
Manchester City Council,Highways Services,PCard Recovery,03-Feb-24,1908355109,Healthwork Ltd,"1,100.00"
Manchester City Council,Chief Executives,Rents,03-Feb-24,5105914748,Manchester Central,"60,976.75"
Manchester City Council,Chief Executives,Catering,03-Feb-24,5105914747,Manchester Central,545.00
Manchester City Council,Manchester Leisure,Vehicle contract hire and leases,03-Feb-24,5105914582,T.H. Horn Ltd,625.00
Manchester City Council,Manchester Leisure,Vehicle contract hire and leases,03-Feb-24,5105914583,T.H. Horn Ltd,625.00
Manchester City Council,Manchester Leisure,Vehicle contract hire and leases,03-Feb-24,5105914584,T.H. Horn Ltd,625.00
Manchester City Council,Manchester Leisure,Vehicle contract hire and leases,03-Feb-24,5105914585,T.H. Horn Ltd,625.00
Manchester City Council,Chief Executives,Counsel Costs,05-Feb-24,1908350963,18 St John Street Chambers,650.00
Manchester City Council,Chief Executives,Counsel Costs,05-Feb-24,1908350964,18 St John Street Chambers,650.00
Manchester City Council,Manchester Leisure,Bed & Breakfast Acc,05-Feb-24,5105914639,247Hotel.Com,"3,220.00"
Manchester City Council,Manchester Leisure,Bed & Breakfast Acc,05-Feb-24,5105914778,247Hotel.Com,840.00
Manchester City Council,Manchester Leisure,Professional fees,05-Feb-24,5105914227,Admia,750.00
Manchester City Council,Chief Executives,Payments to Sub-Contractors,05-Feb-24,5105913831,Redacted Personal Information,660.75
Manchester City Council,Chief Executives,Payments to Sub-Contractors,05-Feb-24,5105913832,Redacted Personal Information,673.35
Manchester City Council,Chief Executives,Payments to Sub-Contractors,05-Feb-24,5105914496,Redacted Personal Information,673.45
Manchester City Council,Manchester Leisure,Rents,05-Feb-24,5105914298,Redacted Personal Information,776.00
Manchester City Council,Manchester Leisure,Rents,05-Feb-24,5105914299,Redacted Personal Information,776.00
Manchester City Council,Manchester Leisure,Rents,05-Feb-24,5105914300,Redacted Personal Information,923.00
Manchester City Council,Adult Social Care,Personal needs of client,05-Feb-24,5105913837,Accora,"1,787.00"
Manchester City Council,Chief Executives,Counsel Costs,05-Feb-24,1908354509,Redacted Personal Information,"2,016.67"
Manchester City Council,Hospitality + Trading Services,Funeral and coroner related services,05-Feb-24,5105914416,Albert Jones Memorials,"5,000.00"
Manchester City Council,Chief Executives,Payments to Sub-Contractors,05-Feb-24,5105914640,Redacted Personal Information,516.38
Manchester City Council,Manchester Leisure,Building Materials for direct delivery,05-Feb-24,5105913839,Arboricultural Services Treework,"1,820.00"
Manchester City Council,Manchester Leisure,External repairs and maintenance for buildings,05-Feb-24,5105914279,Ashlea Ltd,"1,371.85"
Manchester City Council,Manchester Leisure,Compensation Payments,05-Feb-24,1908354999,Bond Turner Solicitors,506.93
Manchester City Council,Corporate Services,Compensation Payments,05-Feb-24,1908355003,Bond Turner Solicitors,"12,854.00"
Manchester City Council,Corporate Services,Grant and subscriptions awarded,05-Feb-24,5105914757,Bridging the Gap,"2,610.00"
Manchester City Council,Chief Executives,Printing,05-Feb-24,5105914428,Browns CTP Ltd,543.00
Manchester City Council,Regeneration Finance,I T Provision,05-Feb-24,5105914357,Cabinet Office,674.19
Manchester City Council,Chief Executives,Professional fees,05-Feb-24,5105913792,Carbon Literacy Trust,"2,000.00"
Manchester City Council,Chief Executives,Professional fees,05-Feb-24,1908350962,Carter Brown The Expert Service,603.38
Manchester City Council,Chief Executives,Counsel Costs,05-Feb-24,1908350961,Central Chambers,800.00
Manchester City Council,Highways Services,Grounds Maintenance,05-Feb-24,5105914982,Central Locksmiths,750.00
Manchester City Council,Highways Services,Grounds Maintenance,05-Feb-24,5105914987,Central Locksmiths,737.50
Manchester City Council,Hospitality + Trading Services,Window Cleaning,05-Feb-24,5105914782,CG Cleaning Ltd,740.84
Manchester City Council,Childrens & Education Services,Grant Payments,05-Feb-24,5105914359,CoramBAAF,"4,928.40"
Manchester City Council,Manchester Leisure,General Office expenses,05-Feb-24,5105915006,Daly Drains Ltd,"1,950.00"
Manchester City Council,Adult Social Care,Equipment,05-Feb-24,5105914260,Drive Devilbiss Healthcare Ltd,"1,606.50"
Manchester City Council,Housing Revenue Account,Electricity,05-Feb-24,1908354949,E.ON Next,543.04
Manchester City Council,Childrens & Education Services,PNOR-Other Amenities,05-Feb-24,1908353175,Ease Charity,"1,000.00"
Manchester City Council,Adult Social Care,Professional Fees,05-Feb-24,1908346901,Edge Training and Consultancy Ltd,"4,375.00"
Manchester City Council,Corporate Services,Professional fees,05-Feb-24,5105913891,Ernst & Young Llp,"15,900.00"
Manchester City Council,Childrens & Education Services,Payments for services,05-Feb-24,5105913848,Fairfield Care Ltd,"4,340.24"
Manchester City Council,Childrens & Education Services,Payments for services,05-Feb-24,5105913849,Fairfield Care Ltd,"2,599.12"
Manchester City Council,Childrens & Education Services,Payments for services,05-Feb-24,5105913850,Fairfield Care Ltd,"1,715.70"
Manchester City Council,Childrens & Education Services,Training and Development,05-Feb-24,5105914271,Family Links,"1,065.00"
Manchester City Council,Childrens & Education Services,Training and Development,05-Feb-24,5105914408,Family Links,"1,065.00"
Manchester City Council,Adult Social Care,Payments for services,05-Feb-24,5105914239,FoodSync CIC,"3,415.00"
Manchester City Council,Manchester Leisure,Furniture,05-Feb-24,5105913905,Furniture Resource Centre Ltd,789.24
Manchester City Council,Manchester Leisure,Furniture,05-Feb-24,5105914317,Furniture Resource Centre Ltd,830.65
Manchester City Council,Corporate Services,WPS Awards,05-Feb-24,5105913908,Furniture Resource Centre Ltd,"1,075.07"
Manchester City Council,Corporate Services,WPS Awards,05-Feb-24,5105913909,Furniture Resource Centre Ltd,779.23
Manchester City Council,Corporate Services,WPS Awards,05-Feb-24,5105913910,Furniture Resource Centre Ltd,568.05
Manchester City Council,Corporate Services,WPS Awards,05-Feb-24,5105913911,Furniture Resource Centre Ltd,832.59
Manchester City Council,Chief Executives,Works and associated costs for Land and Buildings,05-Feb-24,5105914354,Gardiner & Theobald LLP,"12,000.00"
Manchester City Council,Chief Executives,Works and associated costs for Land and Buildings,05-Feb-24,5105914355,Gardiner & Theobald LLP,"12,000.00"
Manchester City Council,Chief Executives,Works and associated costs for Land and Buildings,05-Feb-24,5105914356,Gardiner & Theobald LLP,"12,000.00"
Manchester City Council,Adult Social Care,Agency staff provision,05-Feb-24,5105914257,Redacted Personal Information,575.00
Manchester City Council,Chief Executives,Printing,05-Feb-24,5105914770,Geiger Limited,"1,374.00"
Manchester City Council,Chief Executives,Printing,05-Feb-24,5105914781,Geiger Limited,"2,039.00"
Manchester City Council,Hospitality + Trading Services,Hire of Machinery,05-Feb-24,5105914365,GGM Group Ltd,"1,145.60"
Manchester City Council,Manchester Leisure,Rents,05-Feb-24,5105914350,Grovewell Properties LTD,"1,000.00"
Manchester City Council,Childrens & Education Services,Third party payments relating to Voluntary Organisations,05-Feb-24,5105914352,Healthy Body Healthy Mind CIC,"1,428.00"
Manchester City Council,Childrens & Education Services,Third party payments relating to Voluntary Organisations,05-Feb-24,5105914353,Healthy Body Healthy Mind CIC,"1,428.00"
Manchester City Council,Manchester Leisure,Rents,05-Feb-24,5105914783,Houses4Homes 4U Ltd,"9,026.00"
Manchester City Council,Manchester Leisure,Compensation Payments,05-Feb-24,1908354998,Inaaya Solicitors,"2,000.00"
Manchester City Council,Manchester Leisure,External repairs and maintenance for buildings,05-Feb-24,5105914331,Instarmac Group Ltd,616.20
Manchester City Council,Highways Services,Purchase of stores for re-distribution,05-Feb-24,5105913829,Instarmac Group Ltd,880.32
Manchester City Council,Manchester Leisure,Rents,05-Feb-24,5105914318,Intra City Investments,"1,160.00"
Manchester City Council,Manchester Leisure,Special Event,05-Feb-24,5105914349,Julie's Bicycle,"4,500.00"
Manchester City Council,Manchester Leisure,Rents,05-Feb-24,5105913813,K L Properties,"17,010.36"
Manchester City Council,Manchester Leisure,Grant Payments,05-Feb-24,5105913745,Keep Britain Tidy,548.00
Manchester City Council,Childrens & Education Services,Third party payments relating to Voluntary Organisations,05-Feb-24,5105914796,Key Creative Psychotherapy Services,"2,100.00"
Manchester City Council,Manchester Leisure,Equipment,05-Feb-24,5105914163,Landscape Supply Company,"1,455.68"
Manchester City Council,Manchester Leisure,Grant Payments,05-Feb-24,5105913878,Libraries Connected,"1,650.00"
Manchester City Council,Manchester Leisure,Grant Payments,05-Feb-24,5105913879,Libraries Connected,561.71
Manchester City Council,Adult Social Care,Equipment,05-Feb-24,5105913762,Lisclare,502.50
Manchester City Council,Childrens & Education Services,Hire of Premises,05-Feb-24,5105913825,Luther King House Educational Trust,520.00
Manchester City Council,Manchester Leisure,Removal and Storage of Furniture,05-Feb-24,5105914766,Master Moves Ltd,"1,220.36"
Manchester City Council,Manchester Leisure,Grant Payments,05-Feb-24,5105913763,Redacted Personal Information,500.00
Manchester City Council,Chief Executives,Payments to Sub-Contractors,05-Feb-24,5105914775,Redacted Personal Information,"3,877.21"
Manchester City Council,Manchester Leisure,Furniture,05-Feb-24,5105914252,Momo Properties LTD,"2,950.00"
Manchester City Council,Manchester Leisure,Compensation Payments,05-Feb-24,1908354973,Redacted Personal Information,"1,827.46"
Manchester City Council,Childrens & Education Services,Payments for services,05-Feb-24,5105914345,National Offender Mgt Services,"6,888.00"
Manchester City Council,Childrens & Education Services,Payments for services,05-Feb-24,5105914346,National Offender Mgt Services,"10,168.00"
Manchester City Council,Childrens & Education Services,Payments for services,05-Feb-24,5105914347,National Offender Mgt Services,"10,168.00"
Manchester City Council,Childrens & Education Services,Payments for services,05-Feb-24,5105914348,National Offender Mgt Services,"25,854.00"
Manchester City Council,Childrens & Education Services,Payments for services,05-Feb-24,5105914384,National Offender Mgt Services,"25,854.00"
Manchester City Council,Childrens & Education Services,Payments for services,05-Feb-24,5105914385,National Offender Mgt Services,"3,608.00"
Manchester City Council,Childrens & Education Services,Payments for services,05-Feb-24,5105914386,National Offender Mgt Services,"10,168.00"
Manchester City Council,Childrens & Education Services,Payments for services,05-Feb-24,5105914387,National Offender Mgt Services,"1,640.00"
Manchester City Council,Childrens & Education Services,Payments for services,05-Feb-24,5105914388,National Offender Mgt Services,"5,838.00"
Manchester City Council,Childrens & Education Services,Payments for services,05-Feb-24,5105914389,National Offender Mgt Services,"3,336.00"
Manchester City Council,Childrens & Education Services,Payments for services,05-Feb-24,5105914390,National Offender Mgt Services,"25,854.00"
Manchester City Council,Childrens & Education Services,Payments for services,05-Feb-24,5105914401,National Offender Mgt Services,"8,200.00"
Manchester City Council,Childrens & Education Services,Payments for services,05-Feb-24,5105914402,National Offender Mgt Services,"10,168.00"
Manchester City Council,Adult Social Care,Third party payments to Health Authority,05-Feb-24,5105914336,NHS Supply Chain,514.40
Manchester City Council,Corporate Services,Training and Development,05-Feb-24,5105913777,North West Employers Ltd,"1,050.00"
Manchester City Council,Manchester Leisure,Rents,05-Feb-24,5105914319,NWA Housing Ltd,"1,304.34"
Manchester City Council,Manchester Leisure,Mobilephone Charges,05-Feb-24,5105913894,O2 (UK) Ltd,"2,196.24"
Manchester City Council,Childrens & Education Services,Grant and subscriptions awarded,05-Feb-24,5105914159,Oldham Borough Council,"125,827.00"
Manchester City Council,Childrens & Education Services,Grant and subscriptions awarded,05-Feb-24,5105914391,Oldham Borough Council,"170,889.00"
Manchester City Council,Childrens & Education Services,Professional fees,05-Feb-24,5105913928,One Education Ltd,"137,502.00"
Manchester City Council,Housing Revenue Account,Council Dwelling Adaptations,05-Feb-24,5105914278,P Casey & Co Ltd,"67,372.55"
Manchester City Council,Highways Services,Building Materials for direct delivery,05-Feb-24,5105913856,P.F. Cusack (Tools Supplies) Ltd,"3,115.20"
Manchester City Council,Highways Services,Purchase of stores for re-distribution,05-Feb-24,5105913765,P.F. Cusack (Tools Supplies) Ltd,643.10
Manchester City Council,Childrens & Education Services,General Office expenses,05-Feb-24,1908354517,PAYPOINT NETWORK LTD,"7,251.58"
Manchester City Council,Manchester Leisure,Compensation Payments,05-Feb-24,1908354960,Peasegoods,"3,471.40"
Manchester City Council,Manchester Leisure,Compensation Payments,05-Feb-24,1908354996,Peasegoods,"2,000.00"
Manchester City Council,Childrens & Education Services,Personal needs of client,05-Feb-24,5105914196,Phonak UK,"15,204.37"
Manchester City Council,Chief Executives,Works and associated costs for Land and Buildings,05-Feb-24,5105914382,Pierre Angulaire Limited,"7,020.00"
Manchester City Council,Manchester Leisure,Professional fees,05-Feb-24,1908353141,Pinnacle Building and Surveying,600.00
Manchester City Council,Chief Executives,Paper & Envelopes,05-Feb-24,5105913747,Premier Paper Group Ltd,569.05
Manchester City Council,Adult Social Care,Training and Development,05-Feb-24,5105913901,Premier People Solutions Ltd,550.00
Manchester City Council,Adult Social Care,Training and Development,05-Feb-24,5105913902,Premier People Solutions Ltd,550.00
Manchester City Council,Manchester Leisure,Rents,05-Feb-24,5105914784,Redacted Personal Information,"2,490.00"
Manchester City Council,Hospitality + Trading Services,Hire of Machinery,05-Feb-24,5105913930,R & M Developments Ltd,"1,073.50"
Manchester City Council,Hospitality + Trading Services,Hire of Machinery,05-Feb-24,5105914812,R & M Developments Ltd,"1,073.50"
Manchester City Council,Manchester Leisure,Rents,05-Feb-24,5105914415,R&S Properties Ltd,"4,650.00"
Manchester City Council,Childrens & Education Services,Payments for services,05-Feb-24,5105914160,Reed Employment Plc,"2,034.54"
Manchester City Council,Childrens & Education Services,Payments for services,05-Feb-24,5105914786,Reed Employment Plc,"-2,034.54"
Manchester City Council,Childrens & Education Services,Payments for services,05-Feb-24,5105914802,Reed Employment Plc,"7,070.28"
Manchester City Council,Childrens & Education Services,Payments for services,05-Feb-24,5105914807,Reed Employment Plc,"7,154.90"
Manchester City Council,Childrens & Education Services,Payments for services,05-Feb-24,5105914808,Reed Employment Plc,"7,862.70"
Manchester City Council,Manchester Leisure,Compensation Payments,05-Feb-24,1908354961,Redacted Personal Information,"4,500.00"
Manchester City Council,Manchester Leisure,Compensation Payments,05-Feb-24,1908354962,Robert Bingham Limited,"1,950.00"
Manchester City Council,Manchester Leisure,Compensation Payments,05-Feb-24,1908354967,Robert Bingham Limited,"6,500.00"
Manchester City Council,Childrens & Education Services,Professional fees,05-Feb-24,5105914423,Rossendale School Priory,"5,772.55"
Manchester City Council,Childrens & Education Services,Professional fees,05-Feb-24,5105914424,Rossendale School Priory,"5,772.55"
Manchester City Council,Childrens & Education Services,Payments for services,05-Feb-24,5105914305,Rossendale School Priory,"6,367.40"
Manchester City Council,Childrens & Education Services,Payments for services,05-Feb-24,5105914306,Rossendale School Priory,"5,767.37"
Manchester City Council,Childrens & Education Services,Payments for services,05-Feb-24,5105914307,Rossendale School Priory,"6,193.61"
Manchester City Council,Manchester Leisure,Rents,05-Feb-24,1908356201,RR PROPERY COMPANY LTD,840.00
Manchester City Council,Manchester Leisure,Rents,05-Feb-24,1908356202,RR PROPERY COMPANY LTD,840.00
Manchester City Council,Manchester Leisure,Rents,05-Feb-24,1908356203,RR PROPERY COMPANY LTD,840.00
Manchester City Council,Chief Executives,Legal Fees,05-Feb-24,5105914814,Russell & Russell Solicitors LLP,650.00
Manchester City Council,Childrens & Education Services,Third party payments to other Local Authorities,05-Feb-24,5105913858,Salford College,"7,956.00"
Manchester City Council,Manchester Leisure,External repairs and maintenance for buildings,05-Feb-24,5105914327,Sants Fabrications Ltd,"1,250.00"
Manchester City Council,Chief Executives,Counsel Costs,05-Feb-24,1908350969,Redacted Personal Information,812.50
Manchester City Council,Manchester Leisure,Rents,05-Feb-24,5105914368,Sensory Housing Ltd,"3,360.00"
Manchester City Council,Manchester Leisure,Rents,05-Feb-24,5105914369,Sensory Housing Ltd,"5,650.00"
Manchester City Council,Manchester Leisure,Equipment,05-Feb-24,5105914774,Solon Security Ltd,"2,197.50"
Manchester City Council,Chief Executives,Professional fees,05-Feb-24,1908350965,Target Psychology Ltd,"1,207.50"
Manchester City Council,Manchester Leisure,Professional fees,05-Feb-24,5105913914,Technology Solutions Ltd,729.00
Manchester City Council,Manchester Leisure,Professional fees,05-Feb-24,5105913915,Technology Solutions Ltd,729.00
Manchester City Council,Manchester Leisure,Professional fees,05-Feb-24,5105914366,Trafford Signs Ltd,890.00
Manchester City Council,Childrens & Education Services,Grant and subscriptions awarded,05-Feb-24,5105914290,Ukrainian Saturday School,"10,000.00"
Manchester City Council,Manchester Leisure,Security,05-Feb-24,5105914232,UNIQUE SPECIALIST SERVICES,"1,296.00"
Manchester City Council,Manchester Leisure,Security,05-Feb-24,5105914767,UNIQUE SPECIALIST SERVICES,"-1,296.00"
Manchester City Council,Manchester Leisure,Training and Development,05-Feb-24,1908354515,University of Birmingham,"3,200.00"
Manchester City Council,Corporate Services,Agency staff provision,05-Feb-24,5105914328,Venn Group Ltd,"9,712.44"
Manchester City Council,Highways Services,Payments to Sub-Contractors,05-Feb-24,5105914199,Vodafone (Ex C&W),"2,500.00"
Manchester City Council,Manchester Leisure,Third party payments relating to Voluntary Organisations,05-Feb-24,5105914800,VSP BEAUCLIFFE LTD,"5,115.00"
Manchester City Council,Manchester Leisure,Rents,05-Feb-24,5105914633,VSPG Housing Ltd,"5,940.00"
Manchester City Council,Manchester Leisure,Rents,05-Feb-24,5105914634,VSPG Housing Ltd,"79,685.00"
Manchester City Council,Manchester Leisure,External repairs and maintenance for buildings,05-Feb-24,5105913789,Warden Construction Ltd,"19,654.67"
Manchester City Council,Chief Executives,Legal Fees,05-Feb-24,5105914329,Weightmans LLP Solicitors,"5,319.84"
Manchester City Council,Chief Executives,Legal Fees,05-Feb-24,5105914330,Weightmans LLP Solicitors,"4,623.25"
Manchester City Council,Chief Executives,Legal Fees,05-Feb-24,5105914404,Weightmans LLP Solicitors,776.50
Manchester City Council,Chief Executives,Legal Fees,05-Feb-24,5105914405,Weightmans LLP Solicitors,"2,375.00"
Manchester City Council,Chief Executives,Legal Fees,05-Feb-24,5105914406,Weightmans LLP Solicitors,"1,761.75"
Manchester City Council,Chief Executives,Legal Fees,05-Feb-24,5105914421,Weightmans LLP Solicitors,"2,188.00"
Manchester City Council,Chief Executives,Legal Fees,05-Feb-24,5105914422,Weightmans LLP Solicitors,"1,612.97"
Manchester City Council,Chief Executives,Legal Fees,05-Feb-24,5105914430,Weightmans LLP Solicitors,"2,143.06"
Manchester City Council,Chief Executives,Legal Fees,05-Feb-24,5105914431,Weightmans LLP Solicitors,958.25
Manchester City Council,Chief Executives,Legal Fees,05-Feb-24,5105914432,Weightmans LLP Solicitors,"11,750.00"
Manchester City Council,Chief Executives,Legal Fees,05-Feb-24,5105914636,Weightmans LLP Solicitors,735.50
Manchester City Council,Chief Executives,Legal Fees,05-Feb-24,5105914637,Weightmans LLP Solicitors,"2,843.00"
Manchester City Council,Hospitality + Trading Services,Vehicle Hire Costs,05-Feb-24,5105914752,Winners Contract Hire Ltd,"76,306.06"
Manchester City Council,Chief Executives,Works and associated costs for Land and Buildings,05-Feb-24,5105914414,WSP UK Limited,"-2,635.00"
Manchester City Council,Chief Executives,Counsel Costs,06-Feb-24,1908354994,4KBW,"1,500.00"
Manchester City Council,Childrens & Education Services,Professional fees,06-Feb-24,5105915019,Action For Children Services Ltd,"1,550.00"
Manchester City Council,Adult Social Care,Payments for services,06-Feb-24,5105915053,ADFERIAD RECOVERY,"4,225.00"
Manchester City Council,Adult Social Care,Payments for services,06-Feb-24,5105915053,ADFERIAD RECOVERY,"10,287.50"
Manchester City Council,Adult Social Care,Payments for services,06-Feb-24,5105915054,ADFERIAD RECOVERY,512.50
Manchester City Council,Adult Social Care,Payments for services,06-Feb-24,5105915054,ADFERIAD RECOVERY,"2,862.50"
Manchester City Council,Hospitality + Trading Services,Vehicle Repairs,06-Feb-24,5105914333,Advanced Vehicle Technicians Ltd,"1,042.75"
Manchester City Council,Manchester Leisure,Rents,06-Feb-24,5105914967,Redacted Personal Information,776.00
Manchester City Council,Manchester Leisure,Rents,06-Feb-24,5105914968,Redacted Personal Information,776.00
Manchester City Council,Manchester Leisure,Rents,06-Feb-24,5105914969,Redacted Personal Information,776.00
Manchester City Council,Manchester Leisure,Rents,06-Feb-24,5105915031,Redacted Personal Information,776.00
Manchester City Council,Manchester Leisure,Rents,06-Feb-24,1908358941,Redacted Personal Information,"2,460.00"
Manchester City Council,Chief Executives,Counsel Costs,06-Feb-24,1908353166,Redacted Personal Information,787.50
Manchester City Council,Chief Executives,Counsel Costs,06-Feb-24,1908353177,Redacted Personal Information,718.75
Manchester City Council,Adult Social Care,Funeral and coroner related services,06-Feb-24,1908353167,Alan J. Bradley & Sons Ltd,"5,085.00"
Manchester City Council,Manchester Leisure,Third party payments relating to Voluntary Organisations,06-Feb-24,5105914859,Albert Kennedy Trust,758.33
Manchester City Council,Childrens & Education Services,"Consumable items eg Toilet rolls, soap etc",06-Feb-24,5105914817,Alpha Biolaboratories Limited,"1,020.00"
Manchester City Council,Adult Social Care,Subsistence and Conference Expenses,06-Feb-24,1908354519,Antz UK Ltd,"1,470.00"
Manchester City Council,Manchester Leisure,Building Materials for direct delivery,06-Feb-24,5105915008,Arena Group,"1,344.40"
Manchester City Council,Manchester Leisure,Library Materials Acquisition,06-Feb-24,1908356988,Askews and Holts,555.16
Manchester City Council,Manchester Leisure,Library Materials Acquisition,06-Feb-24,1908356991,Askews and Holts,611.32
Manchester City Council,Manchester Leisure,Library Materials Acquisition,06-Feb-24,1908356993,Askews and Holts,755.09
Manchester City Council,Manchester Leisure,Library Materials Acquisition,06-Feb-24,1908357006,Askews and Holts,547.66
Manchester City Council,Manchester Leisure,Library Materials Acquisition,06-Feb-24,1908357009,Askews and Holts,660.00
Manchester City Council,Manchester Leisure,Library Materials Acquisition,06-Feb-24,1908357019,Askews and Holts,869.99
Manchester City Council,Manchester Leisure,Library Materials Acquisition,06-Feb-24,1908357034,Askews and Holts,544.46
Manchester City Council,Childrens & Education Services,Training and Development,06-Feb-24,5105914809,Associated Optical Products,"1,179.76"
Manchester City Council,Manchester Leisure,I T Provision,06-Feb-24,5105913934,Biblioteca Ltd.,690.00
Manchester City Council,Manchester Leisure,Grant and subscriptions awarded,06-Feb-24,5105914152,Blossom,"3,000.00"
Manchester City Council,Manchester Leisure,Library Materials Acquisition,06-Feb-24,1908357093,Bolinda UK Limited,535.42
Manchester City Council,Manchester Leisure,Special Event,06-Feb-24,1908353168,British Foreign Policy Group,"1,000.00"
Manchester City Council,Manchester Leisure,Library Materials Acquisition,06-Feb-24,1908357044,Cengage Learning (EMEA) Ltd,"9,374.29"
Manchester City Council,Manchester Leisure,Third party payments relating to Voluntary Organisations,06-Feb-24,5105914869,Citizens Advice Manchester,"80,000.00"
Manchester City Council,Manchester Leisure,Rents,06-Feb-24,1908360176,CLEAR VISION INVESTMENTS LTD,"1,365.00"
Manchester City Council,Manchester Leisure,External repairs and maintenance for buildings,06-Feb-24,5105915038,Clearway Drainage Systems Ltd,"-1,625.00"
Manchester City Council,Manchester Leisure,External repairs and maintenance for buildings,06-Feb-24,5105915197,Clearway Drainage Systems Ltd,"1,625.00"
Manchester City Council,Manchester Leisure,Refuse Collection,06-Feb-24,5105915039,Clearway Drainage Systems Ltd,"-2,060.00"
Manchester City Council,Manchester Leisure,Refuse Collection,06-Feb-24,5105915198,Clearway Drainage Systems Ltd,"2,060.00"
Manchester City Council,Hospitality + Trading Services,External repairs and maintenance for buildings,06-Feb-24,5105914758,Conlon Construction Ltd,"40,741.01"
Manchester City Council,Corporate Services,Landline Telephone,06-Feb-24,1700164665,Daisy Corporate Services Trading,"-36,240.08"
Manchester City Council,Corporate Services,Landline Telephone,06-Feb-24,1908354496,Daisy Corporate Services Trading,"37,273.88"
Manchester City Council,Manchester Leisure,Library Materials Acquisition,06-Feb-24,1908357656,Dandy Booksellers,840.75
Manchester City Council,Adult Social Care,Legal Fees,06-Feb-24,1908346903,Deepak Gupta Ltd,737.80
Manchester City Council,Highways Services,Compensation Payments,06-Feb-24,1908353157,Department For Work & Pensions,"4,547.22"
Manchester City Council,Manchester Leisure,Grant and subscriptions awarded,06-Feb-24,5105914755,Divrse Ltd,"53,505.00"
Manchester City Council,Manchester Leisure,Professional fees,06-Feb-24,5105915103,Eville & Jones Commercial Services,"5,970.85"
Manchester City Council,Manchester Leisure,Bed & Breakfast Acc,06-Feb-24,5105914966,Redacted Personal Information,"5,250.00"
Manchester City Council,Chief Executives,Advertising,06-Feb-24,5105914954,Global Radio Services Ltd,"8,449.00"
Manchester City Council,Chief Executives,Advertising,06-Feb-24,5105914955,Global Radio Services Ltd,"-8,449.00"
Manchester City Council,Chief Executives,Advertising,06-Feb-24,5105914956,Global Radio Services Ltd,"8,449.00"
Manchester City Council,Corporate Services,Professional Fees,06-Feb-24,5105914948,Heritage Architecture Ltd,"1,023.75"
Manchester City Council,Manchester Leisure,Equipment,06-Feb-24,1700164672,Redacted Personal Information,"-1,188.29"
Manchester City Council,Manchester Leisure,Equipment,06-Feb-24,1908356294,Redacted Personal Information,990.24
Manchester City Council,Manchester Leisure,Library Materials Acquisition,06-Feb-24,1908357091,Kompass (UK) Ltd,"4,995.00"
Manchester City Council,Manchester Leisure,Rents,06-Feb-24,5105914832,M & Q Properties Management Ltd,"2,392.00"
Manchester City Council,Regeneration Finance,Professional fees,06-Feb-24,5105914896,Manchester Professional,"5,000.00"
Manchester City Council,Regeneration Finance,Professional fees,06-Feb-24,5105914897,Manchester Professional,"24,000.00"
Manchester City Council,Childrens & Education Services,Private Finance and Public Private partnership initiatives,06-Feb-24,5105914861,Manchester School Services Limited,"457,087.67"
Manchester City Council,Manchester Leisure,Library Materials Acquisition,06-Feb-24,1908357046,Mantra Lingua Limited,"13,195.50"
Manchester City Council,Chief Executives,Advertising,06-Feb-24,5105914953,MediaCo Outdoor Limited,720.00
Manchester City Council,Housing Revenue Account,External repairs and maintenance for buildings,06-Feb-24,5105913854,Morgan Sindall Property,"10,299.63"
Manchester City Council,Manchester Leisure,Professional fees,06-Feb-24,5105914922,Redacted Personal Information,500.00
Manchester City Council,Manchester Leisure,Professional fees,06-Feb-24,5105914923,Redacted Personal Information,"1,000.00"
Manchester City Council,Adult Social Care,Compensation Payments,06-Feb-24,1908353266,Redacted Personal Information,975.00
Manchester City Council,Manchester Leisure,Building Materials for direct delivery,06-Feb-24,5105914866,Niche Event Hire,654.00
Manchester City Council,Manchester Leisure,Building Materials for direct delivery,06-Feb-24,5105914866,Niche Event Hire,915.00
Manchester City Council,Childrens & Education Services,Grant Payments,06-Feb-24,1908356240,Paypoint,"8,897.50"
Manchester City Council,Childrens & Education Services,Grant Payments,06-Feb-24,1908356245,Paypoint,"8,622.00"
Manchester City Council,Highways Services,Professional fees,06-Feb-24,5105914753,Pell Frischmann Consultants Ltd,"3,331.77"
Manchester City Council,Manchester Leisure,Grant and subscriptions awarded,06-Feb-24,5105915080,Perry's Pantry Foodbank,500.00
Manchester City Council,Manchester Leisure,Grant and subscriptions awarded,06-Feb-24,5105915080,Perry's Pantry Foodbank,500.00
Manchester City Council,Manchester Leisure,Library Materials Acquisition,06-Feb-24,1908357057,Peters Bookselling Services,"1,028.81"
Manchester City Council,Manchester Leisure,Library Materials Acquisition,06-Feb-24,1908357076,Peters Bookselling Services,"2,131.75"
Manchester City Council,Manchester Leisure,Library Materials Acquisition,06-Feb-24,1908357078,Peters Bookselling Services,"1,585.75"
Manchester City Council,Manchester Leisure,Library Materials Acquisition,06-Feb-24,1908357080,Peters Bookselling Services,919.23
Manchester City Council,Hospitality + Trading Services,Hire of Machinery,06-Feb-24,5105915057,R & M Developments Ltd,775.92
Manchester City Council,Manchester Leisure,Third party payments relating to Voluntary Organisations,06-Feb-24,5105914919,Reach out to the Community,"1,200.00"
Manchester City Council,Manchester Leisure,Third party payments relating to Voluntary Organisations,06-Feb-24,5105914920,Reach out to the Community,"1,116.00"
Manchester City Council,Housing Revenue Account,Works and associated costs for Land and Buildings,06-Feb-24,1908360175,READ ROPER & READ SOLICITORS,"212,378.00"
Manchester City Council,Childrens & Education Services,Payments for services,06-Feb-24,5105914838,Reed Employment Plc,"7,804.26"
Manchester City Council,Manchester Leisure,Payments to Sub-Contractors,06-Feb-24,5105914413,Rigby Taylor Ltd,811.00
Manchester City Council,Manchester Leisure,Library Materials Acquisition,06-Feb-24,1908357096,Riley Dunn & Wilson Ltd,"3,065.49"
Manchester City Council,Chief Executives,Legal Fees,06-Feb-24,5105915047,Russell & Russell Solicitors LLP,"2,679.65"
Manchester City Council,Chief Executives,Legal Fees,06-Feb-24,5105915049,Russell & Russell Solicitors LLP,"5,731.30"
Manchester City Council,Chief Executives,Legal Fees,06-Feb-24,5105915050,Russell & Russell Solicitors LLP,"2,279.50"
Manchester City Council,Chief Executives,Legal Fees,06-Feb-24,5105915081,Russell & Russell Solicitors LLP,912.50
Manchester City Council,Chief Executives,Legal Fees,06-Feb-24,5105915082,Russell & Russell Solicitors LLP,"2,881.25"
Manchester City Council,Childrens & Education Services,Payments for services,06-Feb-24,5105914885,Side By Side (Children) Limited,"2,833.33"
Manchester City Council,Manchester Leisure,Equipment,06-Feb-24,5105914893,Signs 2 School,715.15
Manchester City Council,Hospitality + Trading Services,Vehicle Fuel Costs,06-Feb-24,5105914964,Standard Fuels Oils,"13,680.05"
Manchester City Council,Adult Social Care,External repairs and maintenance for buildings,06-Feb-24,5105915035,T F Jones Property Services Ltd,828.52
Manchester City Council,Manchester Leisure,Vehicle contract hire and leases,06-Feb-24,5105915342,T.H. Horn Ltd,625.00
Manchester City Council,Adult Social Care,Contract Cleaning External,06-Feb-24,5105915093,Tailored Contract Cleaning Ltd,687.79
Manchester City Council,Adult Social Care,Contract Cleaning External,06-Feb-24,5105915094,Tailored Contract Cleaning Ltd,687.79
Manchester City Council,Adult Social Care,Contract Cleaning External,06-Feb-24,5105915095,Tailored Contract Cleaning Ltd,687.79
Manchester City Council,Childrens & Education Services,Transport Coach Hire,06-Feb-24,5105915029,The Birtenshaw Group,"1,656.36"
Manchester City Council,Corporate Services,Data Links,06-Feb-24,5105913877,The Networking People (TNP) Ltd,"1,642.86"
Manchester City Council,Adult Social Care,Supporting People Payments,06-Feb-24,5105914831,Turning Point Services,"5,968.00"
Manchester City Council,Adult Social Care,Supporting People Payments,06-Feb-24,5105914833,Turning Point Services,"-5,968.00"
Manchester City Council,Childrens & Education Services,I T Provision,06-Feb-24,5105914789,Twinkl,770.09
Manchester City Council,Childrens & Education Services,I T Provision,06-Feb-24,5105914790,Twinkl,-554.48
Manchester City Council,Corporate Services,Training and Development,06-Feb-24,5105915009,UK Learning Network Limited,650.00
Manchester City Council,Manchester Leisure,Rents,06-Feb-24,5105914853,United Property Management Ltd,"28,333.67"
Manchester City Council,Environment and Operations,Construction Works,06-Feb-24,5105914907,Ventbrook,"5,370.00"
Manchester City Council,Chief Executives,Legal Fees,06-Feb-24,5105915056,Warwickshire County Council,"1,068.71"
Manchester City Council,Chief Executives,Legal Fees,06-Feb-24,5105915058,Warwickshire County Council,"1,350.93"
Manchester City Council,Highways Services,Professional fees,06-Feb-24,5105914855,Waterman Aspen Ltd,"4,031.25"
Manchester City Council,Highways Services,Professional fees,06-Feb-24,5105914856,Waterman Aspen Ltd,"17,988.44"
Manchester City Council,Chief Executives,Advertising,06-Feb-24,5105914958,We Are Sunday Ltd,689.00
Manchester City Council,Highways Services,Building Materials for direct delivery,06-Feb-24,5105915336,Wolseley Util Ltd T/A Burdens,532.66
Manchester City Council,Highways Services,Purchase of stores for re-distribution,06-Feb-24,5105915332,Wolseley Util Ltd T/A Burdens,702.05
Manchester City Council,Adult Social Care,Payments for services,07-Feb-24,5105915438,ACORN Recovery Projects,"3,321.43"
Manchester City Council,Chief Executives,Payments to Sub-Contractors,07-Feb-24,5105915302,Redacted Personal Information,685.10
Manchester City Council,Adult Social Care,Personal needs of client,07-Feb-24,5105914857,Anywhere Care Ltd,540.00
Manchester City Council,Manchester Leisure,Other Insurance,07-Feb-24,1908344810,Aon Ltd,"9,328.28"
Manchester City Council,Manchester Leisure,Cash Collection,07-Feb-24,5105914867,APCOA PARKING UK Ltd,"25,636.60"
Manchester City Council,Manchester Leisure,Building Materials for direct delivery,07-Feb-24,5105915297,Arboricultural Services Treework,"1,820.00"
Manchester City Council,Childrens & Education Services,Grounds Maintenance,07-Feb-24,5105915346,Arboricultural Services Treework,-500.00
Manchester City Council,Corporate Services,Agency staff provision,07-Feb-24,5105915137,Ashberry Recruitment Ltd,"1,968.30"
Manchester City Council,Corporate Services,Works and associated costs for Land and Buildings,07-Feb-24,5105915083,Bam Nuttall Ltd,"998,509.22"
Manchester City Council,Corporate Services,Removal and Storage of Furniture,07-Feb-24,5105915271,BCL,522.00
Manchester City Council,Corporate Services,Works and associated costs for Land and Buildings,07-Feb-24,5105915273,BCL,"2,320.00"
Manchester City Council,Manchester Leisure,Professional fees,07-Feb-24,5105914315,Bennett Workplace Solutions Ltd,695.00
Manchester City Council,Childrens & Education Services,Furniture,07-Feb-24,5105914316,Bennett Workplace Solutions Ltd,853.69
Manchester City Council,Adult Social Care,Furniture,07-Feb-24,5105913725,Bennett Workplace Solutions Ltd,771.99
Manchester City Council,Adult Social Care,I T Provision,07-Feb-24,5105913922,Bennett Workplace Solutions Ltd,"-2,166.50"
Manchester City Council,Chief Executives,Furniture,07-Feb-24,5105913724,Bennett Workplace Solutions Ltd,650.00
Manchester City Council,Adult Social Care,Personal needs of client,07-Feb-24,5105915382,BES Rehab,"-1,112.15"
Manchester City Council,Adult Social Care,Personal needs of client,07-Feb-24,5105915384,BES Rehab,"1,112.15"
Manchester City Council,Adult Social Care,Third party payments relating to Voluntary Organisations,07-Feb-24,5105915376,Black Beetle Health CIO,"16,320.00"
Manchester City Council,Childrens & Education Services,Day Care Payments,07-Feb-24,5105915193,Blackburn With Darwen Borough Counc,998.25
Manchester City Council,Chief Executives,Printing,07-Feb-24,5105914836,Browns CTP Ltd,"5,487.00"
Manchester City Council,Chief Executives,Printing,07-Feb-24,5105915355,Browns CTP Ltd,"-5,487.00"
Manchester City Council,Childrens & Education Services,Third party payments relating to Voluntary Organisations,07-Feb-24,5105915256,Central Mcr Uni Hospital t/a,"39,982.34"
Manchester City Council,Childrens & Education Services,Residential Care Homes Payments,07-Feb-24,5105915254,Central Mcr Uni Hospital t/a,"117,794.24"
Manchester City Council,Childrens & Education Services,Supporting People Payments,07-Feb-24,5105915225,Child Action Northwest,"3,475.40"
Manchester City Council,Childrens & Education Services,Supporting People Payments,07-Feb-24,5105915227,Child Action Northwest,"3,976.39"
Manchester City Council,Adult Social Care,Supporting People Payments,07-Feb-24,5105915225,Child Action Northwest,"4,591.42"
Manchester City Council,Adult Social Care,Supporting People Payments,07-Feb-24,5105915227,Child Action Northwest,"3,579.27"
Manchester City Council,Corporate Services,HH Support Fund,07-Feb-24,5105914891,Citizens Advice Manchester,"150,000.00"
Manchester City Council,Chief Executives,Expenditure re Internal Trading Ordered Externally,07-Feb-24,5105915179,Civica Election Services,"8,798.35"
Manchester City Council,Manchester Leisure,Payments to Sub-Contractors,07-Feb-24,5105915614,Clean-Up UK Limited,"1,800.00"
Manchester City Council,Highways Services,Payments to Sub-Contractors,07-Feb-24,5105915641,Clearway Drainage Systems Ltd,"11,335.00"
Manchester City Council,Manchester Leisure,Grant and subscriptions awarded,07-Feb-24,5105915098,Coffee4Craig Ltd,"8,750.00"
Manchester City Council,Adult Social Care,Payments for services,07-Feb-24,5105915126,Creative Support Ltd,"50,810.72"
Manchester City Council,Adult Social Care,Payments for services,07-Feb-24,5105915128,Creative Support Ltd,"50,810.72"
Manchester City Council,Highways Services,Payments to Sub-Contractors,07-Feb-24,5105914362,CW Studio,"3,490.00"
Manchester City Council,Hospitality + Trading Services,Vehicle Hire Costs,07-Feb-24,5105915348,Dawsongroup Sweepers,"3,476.19"
Manchester City Council,Chief Executives,Counsel Costs,07-Feb-24,1908360244,DEANS COURT CHAMBERS,"4,050.00"
Manchester City Council,Corporate Services,I T Provision,07-Feb-24,5105913776,Detail Design Engineering Ltd,"2,984.00"
Manchester City Council,Hospitality + Trading Services,Hire of Machinery,07-Feb-24,5105915619,Fast Hire UK,"10,476.88"
Manchester City Council,Corporate Services,Professional Fees,07-Feb-24,5105914253,FM:Systems Europe Ltd,"1,500.00"
Manchester City Council,Manchester Leisure,Bed & Breakfast Acc,07-Feb-24,5105915361,Redacted Personal Information,"5,175.00"
Manchester City Council,Manchester Leisure,Bed & Breakfast Acc,07-Feb-24,5105915414,Redacted Personal Information,"5,625.00"
Manchester City Council,Housing Revenue Account,Private Finance and Public Private partnership initiatives,07-Feb-24,5105915222,Grove Village Ltd,"555,965.29"
Manchester City Council,Childrens & Education Services,Payments for services,07-Feb-24,5105915351,H.G. Care Services Ltd,"9,186.15"
Manchester City Council,Hospitality + Trading Services,Training and Development,07-Feb-24,5105915013,Redacted Personal Information,"3,347.35"
Manchester City Council,Adult Social Care,Equipment,07-Feb-24,5105915234,Hoist & Shower Chair Company,"4,210.00"
Manchester City Council,Manchester Leisure,ICT Sup & Maintnance,07-Feb-24,5105914499,In4systems Ltd,"4,301.06"
Manchester City Council,Manchester Leisure,Professional Fees,07-Feb-24,5105915206,Inforhousing,"5,400.00"
Manchester City Council,Corporate Services,Telecoms Equip,07-Feb-24,5105915125,Insight Direct (Uk) Ltd,562.50
Manchester City Council,Corporate Services,Telecoms Equip,07-Feb-24,5105915180,Insight Direct (Uk) Ltd,-562.50
Manchester City Council,Adult Social Care,Equipment,07-Feb-24,5105915416,Invacare Limited,"2,145.00"
Manchester City Council,Chief Executives,Licences Purchase,07-Feb-24,5105915294,ITS Software Systems Ltd,"3,750.00"
Manchester City Council,Housing Revenue Account,Works and associated costs for Land and Buildings,07-Feb-24,5105913815,Jacobs UK Ltd,"2,194.20"
Manchester City Council,Housing Revenue Account,Works and associated costs for Land and Buildings,07-Feb-24,5105913815,Jacobs UK Ltd,"7,557.80"
Manchester City Council,Housing Revenue Account,Works and associated costs for Land and Buildings,07-Feb-24,5105913815,Jacobs UK Ltd,"1,830.00"
Manchester City Council,Housing Revenue Account,Works and associated costs for Land and Buildings,07-Feb-24,5105913815,Jacobs UK Ltd,975.20
Manchester City Council,Regeneration Finance,Legal Fees,07-Feb-24,5105915421,Jacobs UK Ltd,"1,025.50"
Manchester City Council,Regeneration Finance,Professional fees,07-Feb-24,5105915421,Jacobs UK Ltd,"1,698.50"
Manchester City Council,Regeneration Finance,Professional fees,07-Feb-24,5105915421,Jacobs UK Ltd,968.00
Manchester City Council,Regeneration Finance,Professional fees,07-Feb-24,5105915421,Jacobs UK Ltd,574.00
Manchester City Council,Regeneration Finance,Professional fees,07-Feb-24,5105915421,Jacobs UK Ltd,"1,028.15"
Manchester City Council,Regeneration Finance,Professional fees,07-Feb-24,5105915421,Jacobs UK Ltd,"4,611.00"
Manchester City Council,Regeneration Finance,Professional fees,07-Feb-24,5105915421,Jacobs UK Ltd,636.00
Manchester City Council,Regeneration Finance,Professional fees,07-Feb-24,5105915421,Jacobs UK Ltd,"8,622.75"
Manchester City Council,Regeneration Finance,Professional fees,07-Feb-24,5105915421,Jacobs UK Ltd,"2,180.95"
Manchester City Council,Regeneration Finance,Professional fees,07-Feb-24,5105915421,Jacobs UK Ltd,"4,184.75"
Manchester City Council,Regeneration Finance,Professional fees,07-Feb-24,5105915421,Jacobs UK Ltd,"6,218.75"
Manchester City Council,Regeneration Finance,Professional fees,07-Feb-24,5105915421,Jacobs UK Ltd,"1,792.00"
Manchester City Council,Housing Revenue Account,Council Dwelling Adaptations,07-Feb-24,5105915108,Life Environmental Services,"8,362.00"
Manchester City Council,Childrens & Education Services,Day Care Payments,07-Feb-24,5105915194,LITTLE SPROUTS DAY NURSERY,731.80
Manchester City Council,Childrens & Education Services,Day Care Payments,07-Feb-24,5105915195,LITTLE SPROUTS DAY NURSERY,575.80
Manchester City Council,Childrens & Education Services,Day Care Payments,07-Feb-24,5105915196,LITTLE SPROUTS DAY NURSERY,721.60
Manchester City Council,Regeneration Finance,I T Provision,07-Feb-24,5105915210,Loquela Ltd,"1,000.00"
Manchester City Council,Manchester Leisure,Bed & Breakfast Acc,07-Feb-24,5105915208,Manchester Stay Hotel,"26,195.00"
Manchester City Council,Corporate Services,Environmental Services,07-Feb-24,5105914409,Master Moves Ltd,"1,020.15"
Manchester City Council,Childrens & Education Services,Professional fees,07-Feb-24,1908363194,Melanie Hooson Education Consultant,"2,850.00"
Manchester City Council,Manchester Leisure,Responsive Repairs Work,07-Feb-24,1908344073,Redacted Personal Information,"1,000.00"
Manchester City Council,Corporate Services,Agency staff provision,07-Feb-24,5105915267,Michael Page International,672.00
Manchester City Council,Corporate Services,Agency staff provision,07-Feb-24,5105915268,Michael Page International,672.00
Manchester City Council,Corporate Services,Agency staff provision,07-Feb-24,5105915269,Michael Page International,672.00
Manchester City Council,Corporate Services,Security,07-Feb-24,5105915431,MITIE SECURITY LIMITED,"2,717.64"
Manchester City Council,Manchester Leisure,Rents,07-Feb-24,5105915318,Momo Properties LTD,"1,490.00"
Manchester City Council,Adult Social Care,Furniture,07-Feb-24,5105915299,Moston Lane Appliances,679.17
Manchester City Council,Adult Social Care,Rents,07-Feb-24,1908363206,Redacted Personal Information,"1,650.00"
Manchester City Council,Corporate Services,Professional fees,07-Feb-24,5105913729,NE1 Procurement Services Limited,"3,427.60"
Manchester City Council,Corporate Services,Professional fees,07-Feb-24,5105914426,NE1 Procurement Services Limited,"6,855.20"
Manchester City Council,Corporate Services,Professional fees,07-Feb-24,5105914427,NE1 Procurement Services Limited,"4,284.50"
Manchester City Council,Manchester Leisure,Hire of Equipment,07-Feb-24,5105915028,Niche Event Hire,"3,447.00"
Manchester City Council,Manchester Leisure,Hire of Equipment,07-Feb-24,5105915114,Niche Event Hire,520.00
Manchester City Council,Childrens & Education Services,Training and Development,07-Feb-24,5105915138,One Education Ltd,"4,580.00"
Manchester City Council,Manchester Leisure,Payments to Sub-Contractors,07-Feb-24,5105915415,Redacted Personal Information,727.00
Manchester City Council,Corporate Services,Fees,07-Feb-24,5105915359,Pannone Corporate LLP,"11,276.00"
Manchester City Council,Manchester Leisure,Compensation Payments,07-Feb-24,1908341489,Peasegoods,"3,800.00"
Manchester City Council,Manchester Leisure,Legal Fees,07-Feb-24,1908341483,Pinnacle Building and Surveying,550.00
Manchester City Council,Manchester Leisure,Legal Fees,07-Feb-24,1908341485,Pinnacle Building and Surveying,600.00
Manchester City Council,Childrens & Education Services,Professional fees,07-Feb-24,5105915357,Prospero Teaching,650.00
Manchester City Council,Manchester Leisure,Refuse Collection,07-Feb-24,5105914375,Ramora Ltd,"1,931.02"
Manchester City Council,Manchester Leisure,Compensation Payments,07-Feb-24,1908361665,Redacted Personal Information,828.60
Manchester City Council,Chief Executives,Advertising,07-Feb-24,5105915233,Royal College of OT,795.00
Manchester City Council,Manchester Leisure,Furniture,07-Feb-24,5105915134,Rtech Group Limited,"7,337.50"
Manchester City Council,Manchester Leisure,Furniture,07-Feb-24,5105915278,Rtech Group Limited,779.17
Manchester City Council,Regeneration Finance,Professional fees,07-Feb-24,5105915209,Savills (UK) Ltd,"3,000.00"
Manchester City Council,Environment and Operations,Works and associated costs for Land and Buildings,07-Feb-24,5105915274,Seddon Construction Ltd,"47,533.17"
Manchester City Council,Manchester Leisure,Legal Fees,07-Feb-24,1908343002,SK Real Estate,650.00
Manchester City Council,Manchester Leisure,Seconded Employees,07-Feb-24,5105915281,Skills and Work Solutions,"3,028.63"
Manchester City Council,Manchester Leisure,Seconded Employees,07-Feb-24,5105915282,Skills and Work Solutions,"3,028.63"
Manchester City Council,Environment and Operations,Professional fees,07-Feb-24,5105915344,Smile Mediation,"1,485.00"
Manchester City Council,Childrens & Education Services,Payments for services,07-Feb-24,5105915374,Staff Resources Ltd,"1,224.00"
Manchester City Council,Childrens & Education Services,Payments for services,07-Feb-24,5105915375,Staff Resources Ltd,816.00
Manchester City Council,Childrens & Education Services,Carer Support Payments ,07-Feb-24,5105915403,Staff Resources Ltd,"11,973.00"
Manchester City Council,Childrens & Education Services,Carer Support Payments ,07-Feb-24,5105915404,Staff Resources Ltd,"11,740.50"
Manchester City Council,Childrens & Education Services,Carer Support Payments ,07-Feb-24,5105915405,Staff Resources Ltd,"19,594.50"
Manchester City Council,Childrens & Education Services,Carer Support Payments ,07-Feb-24,5105915406,Staff Resources Ltd,"15,390.00"
Manchester City Council,Childrens & Education Services,Carer Support Payments ,07-Feb-24,5105915407,Staff Resources Ltd,"11,845.50"
Manchester City Council,Childrens & Education Services,Carer Support Payments ,07-Feb-24,5105915408,Staff Resources Ltd,"36,864.58"
Manchester City Council,Childrens & Education Services,Carer Support Payments ,07-Feb-24,5105915409,Staff Resources Ltd,"38,081.22"
Manchester City Council,Hospitality + Trading Services,Vehicle Fuel Costs,07-Feb-24,5105915172,Standard Fuels Oils,"-14,895.26"
Manchester City Council,Hospitality + Trading Services,Vehicle Fuel Costs,07-Feb-24,5105915173,Standard Fuels Oils,"-8,642.10"
Manchester City Council,Hospitality + Trading Services,Vehicle Fuel Costs,07-Feb-24,5105915231,Standard Fuels Oils,"14,588.96"
Manchester City Council,Hospitality + Trading Services,Vehicle Fuel Costs,07-Feb-24,5105915232,Standard Fuels Oils,"8,466.40"
Manchester City Council,Hospitality + Trading Services,Vehicle Fuel Costs,07-Feb-24,5105915309,Standard Fuels Oils,"8,642.10"
Manchester City Council,Hospitality + Trading Services,Vehicle Fuel Costs,07-Feb-24,5105915310,Standard Fuels Oils,"-8,642.91"
Manchester City Council,Highways Services,Building Materials for direct delivery,07-Feb-24,5105915437,STANDARD SIGNS & TRAFFIC SYSTEMS,"4,704.00"
Manchester City Council,Chief Executives,Advertising,07-Feb-24,5105915236,Syon Media Ltd,595.00
Manchester City Council,Childrens & Education Services,Payments for services,07-Feb-24,5105915226,The Together Trust,"1,250.00"
Manchester City Council,Childrens & Education Services,Payments for services,07-Feb-24,5105915228,The Together Trust,710.00
Manchester City Council,Environment and Operations,Construction Works,07-Feb-24,5105914840,Transport for Greater Manchester,"2,100.00"
Manchester City Council,Manchester Leisure,Legal Fees,07-Feb-24,1907339267,Trinity Chambers,700.00
Manchester City Council,Manchester Leisure,Counsel Costs,07-Feb-24,1908341487,Trinity Chambers,"1,100.00"
Manchester City Council,Manchester Leisure,Compensation Payments,07-Feb-24,1908354516,Trinity Chambers,"1,500.00"
Manchester City Council,Manchester Leisure,Security,07-Feb-24,5105914220,UNIQUE SPECIALIST SERVICES,"1,404.00"
Manchester City Council,Manchester Leisure,Security,07-Feb-24,5105914237,UNIQUE SPECIALIST SERVICES,"1,134.00"
Manchester City Council,Manchester Leisure,Security,07-Feb-24,5105914240,UNIQUE SPECIALIST SERVICES,"1,134.00"
Manchester City Council,Manchester Leisure,Security,07-Feb-24,5105914254,UNIQUE SPECIALIST SERVICES,"3,402.00"
Manchester City Council,Manchester Leisure,Security,07-Feb-24,5105914769,UNIQUE SPECIALIST SERVICES,"1,134.00"
Manchester City Council,Manchester Leisure,I T Provision,07-Feb-24,5105915109,Unit 36 Web Design Limited,705.00
Manchester City Council,Highways Services,Building Materials for direct delivery,07-Feb-24,5105915166,Viewprint,672.00
Manchester City Council,Manchester Leisure,Rents,07-Feb-24,5105915139,VSPG Housing Ltd,"3,650.00"
Manchester City Council,Chief Executives,Legal Fees,07-Feb-24,5105915420,Waddington & Son Solicitors,548.25
Manchester City Council,Chief Executives,Legal Fees,07-Feb-24,5105915443,Waddington & Son Solicitors,"1,646.56"
Manchester City Council,Childrens & Education Services,Legal Fees,07-Feb-24,5105915131,Warwickshire County Council,"3,156.71"
Manchester City Council,Childrens & Education Services,Legal Fees,07-Feb-24,5105915132,Warwickshire County Council,"1,720.39"
Manchester City Council,Chief Executives,Legal Fees,07-Feb-24,5105915135,Warwickshire County Council,524.70
Manchester City Council,Chief Executives,Legal Fees,07-Feb-24,5105915153,Warwickshire County Council,"3,366.62"
Manchester City Council,Chief Executives,Legal Fees,07-Feb-24,5105915154,Warwickshire County Council,500.70
Manchester City Council,Chief Executives,Postage,07-Feb-24,5105915319,Whistl North Ltd,"4,602.15"
Manchester City Council,Chief Executives,Construction Works,07-Feb-24,5105913770,WSP UK Limited,"35,000.00"
Manchester City Council,Regeneration Finance,Rates,07-Feb-24,5105915212,Wythenshawe Forum Trust Ltd,"5,428.20"
Manchester City Council,Regeneration Finance,Rates,07-Feb-24,5105915213,Wythenshawe Forum Trust Ltd,"5,428.20"
Manchester City Council,Regeneration Finance,Rates,07-Feb-24,5105915214,Wythenshawe Forum Trust Ltd,"17,715.76"
Manchester City Council,Childrens & Education Services,Professional fees,08-Feb-24,5105915717,Action For Children Services Ltd,"1,550.00"
Manchester City Council,Childrens & Education Services,Professional fees,08-Feb-24,5105915719,Action For Children Services Ltd,"1,550.00"
Manchester City Council,Adult Social Care,Payments for services,08-Feb-24,5105915439,ACORN Recovery Projects,"4,500.00"
Manchester City Council,Adult Social Care,Payments for services,08-Feb-24,5105915440,ACORN Recovery Projects,"3,214.29"
Manchester City Council,Adult Social Care,Payments for services,08-Feb-24,5105915451,ACORN Recovery Projects,"3,214.29"
Manchester City Council,Adult Social Care,Payments for services,08-Feb-24,5105915452,ACORN Recovery Projects,"3,214.29"
Manchester City Council,Adult Social Care,Payments for services,08-Feb-24,5105915535,ACORN Recovery Projects,"1,714.29"
Manchester City Council,Adult Social Care,Payments for services,08-Feb-24,5105915573,ACORN Recovery Projects,"2,464.29"
Manchester City Council,Adult Social Care,Payments for services,08-Feb-24,5105915674,ACORN Recovery Projects,"2,464.29"
Manchester City Council,Adult Social Care,Payments for services,08-Feb-24,5105915675,ACORN Recovery Projects,"3,321.43"
Manchester City Council,Adult Social Care,Payments for services,08-Feb-24,5105915676,ACORN Recovery Projects,"3,321.43"
Manchester City Council,Adult Social Care,Payments for services,08-Feb-24,5105915677,ACORN Recovery Projects,"3,321.43"
Manchester City Council,Adult Social Care,Payments for services,08-Feb-24,5105915678,ACORN Recovery Projects,"1,821.43"
Manchester City Council,Childrens & Education Services,Third party payments to other Local Authorities,08-Feb-24,5105915596,4syte Funding Limited,776.05
Manchester City Council,Childrens & Education Services,Third party payments to other Local Authorities,08-Feb-24,5105915727,4syte Funding Limited,"1,044.47"
Manchester City Council,Manchester Leisure,Rents,08-Feb-24,5105914895,Accommodation Links Ltd,"90,626.00"
Manchester City Council,Childrens & Education Services,I T Provision,08-Feb-24,5105915488,Allied Publicity Services (M\cr) Lt,"2,564.77"
Manchester City Council,Highways Services,Car Parking Permits,08-Feb-24,5105915497,Amey Highways Lighting (Manchester),704.34
Manchester City Council,Highways Services,Private Finance and Public Private partnership initiatives,08-Feb-24,5105913830,Amey Highways Lighting (Manchester),"749,021.77"
Manchester City Council,Childrens & Education Services,Grounds Maintenance,08-Feb-24,5105915347,Arboricultural Services Treework,600.00
Manchester City Council,Corporate Services,Cleaning Equipment and Materials,08-Feb-24,5105914083,Arrow County Supplies,653.00
Manchester City Council,Manchester Leisure,I T Provision,08-Feb-24,5105915353,Artifax Software Ltd,"5,195.00"
Manchester City Council,Manchester Leisure,I T Provision,08-Feb-24,5105915354,Artifax Software Ltd,"-2,361.33"
Manchester City Council,Manchester Leisure,Rents,08-Feb-24,5105915521,B & A Properties,"40,057.14"
Manchester City Council,Chief Executives,Professional fees,08-Feb-24,5105914915,Bennett Workplace Solutions Ltd,597.00
Manchester City Council,Manchester Leisure,Library Materials Acquisition,08-Feb-24,1908357626,Bibliographic Data Services Ltd,"6,790.00"
Manchester City Council,Manchester Leisure,Library Materials Acquisition,08-Feb-24,1908357627,Bibliographic Data Services Ltd,"9,990.00"
Manchester City Council,Manchester Leisure,Library Materials Acquisition,08-Feb-24,1908357628,Bibliographic Data Services Ltd,"4,464.00"
Manchester City Council,Chief Executives,Printing,08-Feb-24,5105915464,Browns CTP Ltd,689.00
Manchester City Council,Chief Executives,Printing,08-Feb-24,5105915465,Browns CTP Ltd,910.00
Manchester City Council,Childrens & Education Services,Bed & Breakfast Acc,08-Feb-24,1908354466,BV Property Group Ltd,"1,800.00"
Manchester City Council,Manchester Leisure,Hire of Premises,08-Feb-24,1908363195,Caroline Daly � Art & Illustration,600.00
Manchester City Council,Adult Social Care,Third party payments to Health Authority,08-Feb-24,5105915229,Central Mcr Uni Hospital t/a,"345,383.50"
Manchester City Council,Adult Social Care,Third party payments to Health Authority,08-Feb-24,5105915248,Central Mcr Uni Hospital t/a,"63,985.75"
Manchester City Council,Adult Social Care,Third party payments to Health Authority,08-Feb-24,5105915250,Central Mcr Uni Hospital t/a,"570,528.66"
Manchester City Council,Adult Social Care,Third party payments to Health Authority,08-Feb-24,5105915251,Central Mcr Uni Hospital t/a,"84,500.00"
Manchester City Council,Adult Social Care,Third party payments to Health Authority,08-Feb-24,5105915252,Central Mcr Uni Hospital t/a,"40,833.34"
Manchester City Council,Adult Social Care,Third party payments to Health Authority,08-Feb-24,5105915253,Central Mcr Uni Hospital t/a,"70,833.34"
Manchester City Council,Adult Social Care,Third party payments to Health Authority,08-Feb-24,5105915255,Central Mcr Uni Hospital t/a,"964,455.75"
Manchester City Council,Corporate Services,Grant and subscriptions awarded,08-Feb-24,1908356196,Chorlton & Didsbury Foodbank,"1,000.00"
Manchester City Council,Hospitality + Trading Services,Vehicle Hire Costs,08-Feb-24,5105914492,Clearway Drainage Systems Ltd,"11,335.00"
Manchester City Council,Hospitality + Trading Services,Vehicle Hire Costs,08-Feb-24,5105915640,Clearway Drainage Systems Ltd,"-11,335.00"
Manchester City Council,Regeneration Finance,Professional fees,08-Feb-24,5105915652,Colliers International,"1,750.00"
Manchester City Council,Childrens & Education Services,Payments for services,08-Feb-24,5105915410,Connect AP Ltd,"-3,530.00"
Manchester City Council,Corporate Services,Works and associated costs for Land and Buildings,08-Feb-24,5105915743,Corrosion Engineering Solutions Ltd,"2,040.00"
Manchester City Council,Corporate Services,Grounds Maintenance,08-Feb-24,5105913897,Countrywide Grounds Maintenance Ltd,"9,720.00"
Manchester City Council,Manchester Leisure,Rents,08-Feb-24,5105915533,Eeven Homes Ltd.,"17,738.00"
Manchester City Council,Hospitality + Trading Services,Hire of Machinery,08-Feb-24,5105914884,F.R.Sharrock Ltd,989.00
Manchester City Council,Chief Executives,Advertising,08-Feb-24,5105915592,Fonemedia Limited,"3,000.00"
Manchester City Council,Childrens & Education Services,Personal needs of client,08-Feb-24,5105915589,Furniture Resource Centre Ltd,611.27
Manchester City Council,Corporate Services,WPS Awards,08-Feb-24,5105914178,Furniture Resource Centre Ltd,793.93
Manchester City Council,Corporate Services,WPS Awards,08-Feb-24,5105914179,Furniture Resource Centre Ltd,"1,340.47"
Manchester City Council,Hospitality + Trading Services,Refuse Collection,08-Feb-24,5105915312,GG Compactors Ltd,"8,450.50"
Manchester City Council,Manchester Leisure,Third party payments relating to Voluntary Organisations,08-Feb-24,5105915449,Great Places Housing Association,"2,290.00"
Manchester City Council,Manchester Leisure,Third party payments relating to Voluntary Organisations,08-Feb-24,5105915462,Great Places Housing Association,"20,096.98"
Manchester City Council,Adult Social Care,Funeral and coroner related services,08-Feb-24,5105914358,Greater Manchester Funeral Service,"3,236.00"
Manchester City Council,Adult Social Care,Funeral and coroner related services,08-Feb-24,5105914383,Greater Manchester Funeral Service,"1,455.00"
Manchester City Council,Childrens & Education Services,Hire of Premises,08-Feb-24,5105915427,Greater Manchester Police Sports &,"1,151.93"
Manchester City Council,Regeneration Finance,Public Transport,08-Feb-24,5105915386,Greater Manchester Travelcards Ltd,"8,967.00"
Manchester City Council,Regeneration Finance,Public Transport,08-Feb-24,5105915387,Greater Manchester Travelcards Ltd,"9,995.00"
Manchester City Council,Regeneration Finance,Public Transport,08-Feb-24,5105915389,Greater Manchester Travelcards Ltd,"8,967.00"
Manchester City Council,Manchester Leisure,Special Event,08-Feb-24,5105913918,Greenwich Leisure Limited,-840.00
Manchester City Council,Adult Social Care,Equipment,08-Feb-24,5105915733,Herida Healthcare Plc,"2,100.40"
Manchester City Council,Adult Social Care,Equipment,08-Feb-24,5105915735,Herida Healthcare Plc,"2,184.00"
Manchester City Council,Childrens & Education Services,Transport Coach Hire,08-Feb-24,5105915099,High Bee Ltd,"6,940.00"
Manchester City Council,Corporate Services,Grant and subscriptions awarded,08-Feb-24,1908363312,Highway Hope,"1,000.00"
Manchester City Council,Adult Social Care,Rents,08-Feb-24,5105915458,Hilldale Housing Association,"4,566.00"
Manchester City Council,Adult Social Care,Rents,08-Feb-24,5105915459,Hilldale Housing Association,"-4,566.00"
Manchester City Council,Adult Social Care,Rents,08-Feb-24,5105915460,Hilldale Housing Association,"4,566.00"
Manchester City Council,Adult Social Care,Personal needs of client,08-Feb-24,5105915699,Hoist & Shower Chair Company,"8,418.75"
Manchester City Council,Manchester Leisure,Rents,08-Feb-24,5105914169,Housing Social Ltd,"36,044.00"
Manchester City Council,Manchester Leisure,Bed & Breakfast Acc,08-Feb-24,5105915690,Redacted Personal Information,"6,388.00"
Manchester City Council,Chief Executives,Printing,08-Feb-24,5105915445,Impression (Bolton) Ltd,"1,428.00"
Manchester City Council,Adult Social Care,Equipment,08-Feb-24,5105915417,Invacare Limited,"4,500.00"
Manchester City Council,Hospitality + Trading Services,Compensation Payments,08-Feb-24,1908363301,Leigh Day Solicitors,"5,482.50"
Manchester City Council,Manchester Leisure,Security,08-Feb-24,5105915308,M247 UK Ltd,"11,277.49"
Manchester City Council,Childrens & Education Services,Payments for services,08-Feb-24,5105915725,Manchester Parent Carer Forum,900.00
Manchester City Council,Childrens & Education Services,Transport Coach Hire,08-Feb-24,5105915216,Mantax Radio Taxis Ltd,"34,392.73"
Manchester City Council,Childrens & Education Services,Transport Coach Hire,08-Feb-24,5105915217,Mantax Radio Taxis Ltd,"66,666.67"
Manchester City Council,Chief Executives,Signers/Interpreters,08-Feb-24,5105915501,Redacted Personal Information,"1,600.60"
Manchester City Council,Manchester Leisure,Library Materials Acquisition,08-Feb-24,1908357631,Martin-Lavell Limited,"1,466.61"
Manchester City Council,Manchester Leisure,Rents,08-Feb-24,5105915522,MJ Rental Ltd,"88,718.25"
Manchester City Council,Manchester Leisure,Rents,08-Feb-24,5105915660,MJ Rental Ltd,"4,394.59"
Manchester City Council,Adult Social Care,Supported Accommodation,08-Feb-24,5105915477,Mosscare Housing Ltd,"2,088.40"
Manchester City Council,Adult Social Care,Supported Accommodation,08-Feb-24,5105915478,Mosscare Housing Ltd,"4,184.80"
Manchester City Council,Adult Social Care,Supported Accommodation,08-Feb-24,5105915479,Mosscare Housing Ltd,"4,184.80"
Manchester City Council,Adult Social Care,Supported Accommodation,08-Feb-24,5105915480,Mosscare Housing Ltd,"25,790.28"
Manchester City Council,Manchester Leisure,Legal Fees,08-Feb-24,5105915499,Redacted Personal Information,"1,250.00"
Manchester City Council,Manchester Leisure,Legal Fees,08-Feb-24,5105915500,Redacted Personal Information,"3,000.00"
Manchester City Council,Housing Revenue Account,Works and associated costs for Land and Buildings,08-Feb-24,1908365518,MS LAW SOLICITORS,"150,000.00"
Manchester City Council,Manchester Leisure,Goods purchased for resale in Council outlets,08-Feb-24,1908364881,Redacted Personal Information,690.41
Manchester City Council,Childrens & Education Services,Payments for services,08-Feb-24,5105915428,National Offender Mgt Services,"25,854.00"
Manchester City Council,Childrens & Education Services,Payments for services,08-Feb-24,5105915429,National Offender Mgt Services,"25,020.00"
Manchester City Council,Childrens & Education Services,Electricity,08-Feb-24,1908363317,Npower,"1,935.84"
Manchester City Council,Childrens & Education Services,Electricity,08-Feb-24,1908363362,Npower,"7,635.96"
Manchester City Council,Corporate Services,Electricity,08-Feb-24,1908363318,Npower,805.47
Manchester City Council,Corporate Services,Electricity,08-Feb-24,1908363363,Npower,"16,310.27"
Manchester City Council,Corporate Services,Electricity,08-Feb-24,1908363364,Npower,"18,340.32"
Manchester City Council,Corporate Services,Electricity,08-Feb-24,1908363365,Npower,"11,699.82"
Manchester City Council,Corporate Services,Electricity,08-Feb-24,1908363368,Npower,"1,710.74"
Manchester City Council,Regeneration Finance,Electricity,08-Feb-24,1700166289,Npower,-967.77
Manchester City Council,Regeneration Finance,Electricity,08-Feb-24,1908363315,Npower,967.73
Manchester City Council,Regeneration Finance,Electricity,08-Feb-24,1908363316,Npower,841.88
Manchester City Council,Manchester Leisure,Bed & Breakfast Acc,08-Feb-24,5105915530,Parkview Residence,"37,015.00"
Manchester City Council,Manchester Leisure,Library Materials Acquisition,08-Feb-24,1908357658,Peters Bookselling Services,"1,770.25"
Manchester City Council,Manchester Leisure,Library Materials Acquisition,08-Feb-24,1908357659,Peters Bookselling Services,"2,265.50"
Manchester City Council,Manchester Leisure,Library Materials Acquisition,08-Feb-24,1908357660,Peters Bookselling Services,"1,449.75"
Manchester City Council,Manchester Leisure,Library Materials Acquisition,08-Feb-24,1908357675,Peters Bookselling Services,"1,590.92"
Manchester City Council,Adult Social Care,Supported Accommodation,08-Feb-24,5105915755,Places For People Homes,"2,323.23"
Manchester City Council,Childrens & Education Services,Third party payments to other Local Authorities,08-Feb-24,5105915524,Pontville Residential School,"29,568.41"
Manchester City Council,Childrens & Education Services,Third party payments to other Local Authorities,08-Feb-24,5105915525,Pontville Residential School,"52,641.00"
Manchester City Council,Adult Social Care,Supporting People Payments,08-Feb-24,5105915692,Praxis Care Group,"1,200.00"
Manchester City Council,Adult Social Care,Supporting People Payments,08-Feb-24,5105915693,Praxis Care Group,"1,240.00"
Manchester City Council,Chief Executives,Advertising,08-Feb-24,5105915520,Reach Publishing Services Ltd,"1,339.18"
Manchester City Council,Manchester Leisure,Payments to Sub-Contractors,08-Feb-24,5105915485,Rigby Taylor Ltd,500.00
Manchester City Council,Housing Revenue Account,Council Dwelling Adaptations,08-Feb-24,5105915739,Rothwell Plumbing Services Ltd,"3,688.26"
Manchester City Council,Adult Social Care,Training and Development,08-Feb-24,5105915704,SafeLives,"2,082.50"
Manchester City Council,Manchester Leisure,External repairs and maintenance for buildings,08-Feb-24,5105915723,Sants Fabrications Ltd,"3,850.00"
Manchester City Council,Manchester Leisure,External repairs and maintenance for buildings,08-Feb-24,5105915724,Sants Fabrications Ltd,"1,500.00"
Manchester City Council,Corporate Services,ICT Sup & Maintnance,08-Feb-24,5105915490,Sap (Uk) Ltd,"44,523.63"
Manchester City Council,Childrens & Education Services,Payments for services,08-Feb-24,5105915643,Seashell trust,"1,210.72"
Manchester City Council,Childrens & Education Services,Payments for services,08-Feb-24,5105915549,Sendcode CIC,"2,196.92"
Manchester City Council,Regeneration Finance,Security,08-Feb-24,5105914762,Showsec International Ltd,"15,662.16"
Manchester City Council,Manchester Leisure,Special Event,08-Feb-24,5105915491,SilverbackUk,"2,194.50"
Manchester City Council,Hospitality + Trading Services,Professional fees,08-Feb-24,5105915320,SilverbackUk,"1,182.00"
Manchester City Council,Regeneration Finance,Professional fees,08-Feb-24,5105914304,Steer Davies & Geave Limited,"5,101.60"
Manchester City Council,Adult Social Care,External repairs and maintenance for buildings,08-Feb-24,5105915680,T F Jones Property Services Ltd,535.76
Manchester City Council,Childrens & Education Services,Third party payments to other Local Authorities,08-Feb-24,5105914818,Tameside College,"4,956.88"
Manchester City Council,Childrens & Education Services,Third party payments to other Local Authorities,08-Feb-24,5105914819,Tameside College,"4,956.88"
Manchester City Council,Childrens & Education Services,Grant and subscriptions awarded,08-Feb-24,5105915450,The Movez Movement,"37,500.06"
Manchester City Council,Manchester Leisure,Goods purchased for resale in Council outlets,08-Feb-24,1908363271,THE SCHOOL OF LI FAIRE,"1,214.98"
Manchester City Council,Manchester Leisure,Rents,08-Feb-24,5105915650,The Whiteluck Group,"13,450.00"
Manchester City Council,Manchester Leisure,Furniture,08-Feb-24,1908363247,TOTAL ACCESS (UK),840.00
Manchester City Council,Corporate Services,Agency staff provision,08-Feb-24,5105915358,Triad Resourcing,"14,700.00"
Manchester City Council,Manchester Leisure,Furniture,08-Feb-24,1908363264,UNICOL ENGINEERING,996.12
Manchester City Council,Childrens & Education Services,I T Provision,08-Feb-24,5105915345,Valtech Limited,"1,182.66"
Manchester City Council,Manchester Leisure,Bed & Breakfast Acc,08-Feb-24,5105915523,VSP BEAUCLIFFE LTD,"141,404.00"
Manchester City Council,Manchester Leisure,Bed & Breakfast Acc,08-Feb-24,5105915552,VSP BEAUCLIFFE LTD,"125,820.00"
Manchester City Council,Environment and Operations,Construction Works,08-Feb-24,5105915192,Wilde Consultants Ltd,"20,575.80"
Manchester City Council,Environment and Operations,Construction Works,08-Feb-24,5105915518,Wilde Consultants Ltd,"-20,575.80"
Manchester City Council,Adult Social Care,Payments for services,08-Feb-24,5105915457,Yeldall Manor,"3,875.00"
Manchester City Council,Corporate Services,Agency staff provision,09-Feb-24,5105915073,Adecco Uk Ltd,"2,171.40"
Manchester City Council,Manchester Leisure,Goods purchased for resale in Council outlets,09-Feb-24,5105915866,Redacted Personal Information,616.50
Manchester City Council,Corporate Services,Legal Fees,09-Feb-24,5105915881,Redacted Personal Information,"3,999.00"
Manchester City Council,Adult Social Care,Legal Fees,09-Feb-24,1908363313,Redacted Personal Information,816.62
Manchester City Council,Childrens & Education Services,Transport Taxis,09-Feb-24,5105915595,Alt Payee Acorn Care & Education,"2,465.00"
Manchester City Council,Corporate Services,Grounds Maintenance,09-Feb-24,5105914813,Arboricultural Services Treework,"1,200.00"
Manchester City Council,Regeneration Finance,Professional fees,09-Feb-24,5105914959,arc4,"5,946.71"
Manchester City Council,Chief Executives,Advertising,09-Feb-24,5105915786,Bauer Radio Ltd,"2,780.75"
Manchester City Council,Corporate Services,Removal and Storage of Furniture,09-Feb-24,5105915600,BCL,953.08
Manchester City Council,Environment and Operations,Building Works,09-Feb-24,5105915716,Blacklime Graphics,845.00
Manchester City Council,Childrens & Education Services,Transport Coach Hire,09-Feb-24,5105915889,Britannia Minibuses Ltd,"3,570.00"
Manchester City Council,Childrens & Education Services,Transport Coach Hire,09-Feb-24,5105915890,Britannia Minibuses Ltd,"2,430.00"
Manchester City Council,Childrens & Education Services,Transport Coach Hire,09-Feb-24,5105915891,Britannia Minibuses Ltd,"3,420.00"
Manchester City Council,Housing Revenue Account,Council Dwelling Adaptations,09-Feb-24,5105915841,British Gas Social Housing Ltd,"7,860.64"
Manchester City Council,Housing Revenue Account,Council Dwelling Adaptations,09-Feb-24,5105915842,British Gas Social Housing Ltd,"10,787.96"
Manchester City Council,Manchester Leisure,Special Event,09-Feb-24,5105915784,British Taekwondo Limited,"11,570.73"
Manchester City Council,Housing Revenue Account,Professional fees,09-Feb-24,5105915075,Capita Property & Infras'ture Ltd,"4,825.00"
Manchester City Council,Childrens & Education Services,Payments for services,09-Feb-24,5105915917,Care Solutions Recruitment,"1,038.40"
Manchester City Council,Childrens & Education Services,Payments for services,09-Feb-24,5105915854,Castlefield Hotel Ltd,"7,200.00"
Manchester City Council,Childrens & Education Services,Third party payments relating to Voluntary Organisations,09-Feb-24,5105915802,Central Mcr Uni Hospital t/a,"50,000.00"
Manchester City Council,Childrens & Education Services,Payments for services,09-Feb-24,5105915818,Chatsworth Futures Specialist,"7,341.00"
Manchester City Council,Manchester Leisure,ICT Sup & Maintnance,09-Feb-24,5105915836,Cobweb Solutions Ltd,"2,398.95"
Manchester City Council,Manchester Leisure,Goods purchased for resale in Council outlets,09-Feb-24,5105915865,Crawford Henderson Limited,"1,025.00"
Manchester City Council,Adult Social Care,Payments for services,09-Feb-24,5105914193,Delphi Medical,"3,135.00"
Manchester City Council,Manchester Leisure,Third party payments relating to Voluntary Organisations,09-Feb-24,5105915607,DISC Ltd,"5,545.00"
Manchester City Council,Manchester Leisure,Third party payments relating to Voluntary Organisations,09-Feb-24,5105915608,DISC Ltd,"6,666.00"
Manchester City Council,Manchester Leisure,Third party payments relating to Voluntary Organisations,09-Feb-24,5105915609,DISC Ltd,"14,495.87"
Manchester City Council,Manchester Leisure,Third party payments relating to Voluntary Organisations,09-Feb-24,5105915610,DISC Ltd,"18,099.50"
Manchester City Council,Manchester Leisure,Third party payments relating to Voluntary Organisations,09-Feb-24,5105915701,DISC Ltd,"14,033.16"
Manchester City Council,Manchester Leisure,Grant and subscriptions awarded,09-Feb-24,5105915855,Divrse Ltd,"16,965.00"
Manchester City Council,Environment and Operations,Construction Works,09-Feb-24,5105914940,Dowhigh Ltd,"8,969.78"
Manchester City Council,Adult Social Care,Equipment,09-Feb-24,5105914902,Drive Devilbiss Healthcare Ltd,"1,963.50"
Manchester City Council,Regeneration Finance,External repairs and maintenance for buildings,09-Feb-24,5105915903,DT Electrical UK Ltd,507.80
Manchester City Council,Corporate Services,I T Provision,09-Feb-24,5105915919,euNetworks The Loop Limited,"12,240.00"
Manchester City Council,Chief Executives,Vehicle Plant Furniture and Equipment,09-Feb-24,5105915919,euNetworks The Loop Limited,800.00
Manchester City Council,Childrens Services,Works and associated costs for Land and Buildings,09-Feb-24,5105915474,F Parkinson Limited,"12,561.05"
Manchester City Council,Childrens Services,Works and associated costs for Land and Buildings,09-Feb-24,5105915475,F Parkinson Limited,634.80
Manchester City Council,Childrens & Education Services,Payments for services,09-Feb-24,5105915819,Redacted Personal Information,"4,416.60"
Manchester City Council,Manchester Leisure,Security,09-Feb-24,5105915667,Flowbird Smart City Uk Ltd,"2,310.00"
Manchester City Council,Corporate Services,Car Parking Permits,09-Feb-24,5105915070,Flowbird Smart City Uk Ltd,600.00
Manchester City Council,Manchester Leisure,Grant and subscriptions awarded,09-Feb-24,5105915895,Friends of Sackville Gardens,"2,000.00"
Manchester City Council,Corporate Services,WPS Awards,09-Feb-24,5105915722,Furniture Resource Centre Ltd,774.40
Manchester City Council,Manchester Leisure,Training and Development,09-Feb-24,5105915157,Gender intelligence,912.59
Manchester City Council,Manchester Leisure,Third party payments relating to Voluntary Organisations,09-Feb-24,5105915757,Greater Manchester Immigration Aid,"8,158.00"
Manchester City Council,Manchester Leisure,Goods purchased for resale in Council outlets,09-Feb-24,5105915953,Hachette UK Distribution,"2,866.03"
Manchester City Council,Corporate Services,Telecoms Equip,09-Feb-24,5105915203,Insight Direct (Uk) Ltd,562.50
Manchester City Council,Regeneration Finance,Professional fees,09-Feb-24,5105914295,Jacobs UK Ltd,"51,865.00"
Manchester City Council,Corporate Services,Works and associated costs for Land and Buildings,09-Feb-24,5105913816,Kaberry Construction Ltd,"72,200.93"
Manchester City Council,Chief Executives,Works and associated costs for Land and Buildings,09-Feb-24,5105915801,LDA Design,"45,000.00"
Manchester City Council,Hospitality + Trading Services,Compensation Payments,09-Feb-24,1908363309,Leigh Day Solicitors,"44,362.65"
Manchester City Council,Leasing,Professional fees,09-Feb-24,5105915951,Link Asset Services,750.00
Manchester City Council,Adult Social Care,Third party payments to Health Authority,09-Feb-24,1908354978,London North West University,531.48
Manchester City Council,Manchester Leisure,Equipment,09-Feb-24,5105913787,Lucion Environmental Ltd,875.50
Manchester City Council,Manchester Leisure,Rents,09-Feb-24,5105915787,M&D Residential Ltd,"19,782.00"
Manchester City Council,Corporate Services,MABID,09-Feb-24,5105914280,Manchester Accommodation Business,"187,255.40"
Manchester City Council,Manchester Leisure,Grant and subscriptions awarded,09-Feb-24,5105915289,Manchester Alliance For,"10,000.00"
Manchester City Council,Manchester Leisure,Grant and subscriptions awarded,09-Feb-24,5105915290,Manchester Alliance For,"3,500.00"
Manchester City Council,Manchester Leisure,Agency staff provision,09-Feb-24,5105914918,Manchester Art Gallery,"3,295.67"
Manchester City Council,Environment and Operations,Building Works,09-Feb-24,5105916028,Manchester Vineyard,"-25,500.00"
Manchester City Council,Adult Social Care,Furniture,09-Feb-24,5105914886,Master Moves Ltd,916.54
Manchester City Council,Corporate Services,Professional fees,09-Feb-24,5105915759,Matobo Ltd,850.00
Manchester City Council,Chief Executives,Training and Development,09-Feb-24,5105915760,Matobo Ltd,"1,700.00"
Manchester City Council,Manchester Leisure,Rents,09-Feb-24,5105915799,Momo Properties LTD,"1,160.00"
Manchester City Council,Manchester Leisure,Rents,09-Feb-24,1908366234,Redacted Personal Information,"6,500.00"
Manchester City Council,Housing Revenue Account,Works and associated costs for Land and Buildings,09-Feb-24,1908366232,Northern Gateway (FEC) No.10 Limite,"23,358.52"
Manchester City Council,Housing Revenue Account,Works and associated costs for Land and Buildings,09-Feb-24,1908366232,Northern Gateway (FEC) No.10 Limite,"1,167,926.00"
Manchester City Council,Manchester Leisure,Rents,09-Feb-24,5105915790,NWA Housing Ltd,"1,245.09"
Manchester City Council,Childrens & Education Services,I T Provision,09-Feb-24,5105915782,One Education Ltd,840.00
Manchester City Council,Childrens & Education Services,I T Provision,09-Feb-24,5105915783,One Education Ltd,750.00
Manchester City Council,Manchester Leisure,Equipment,09-Feb-24,5105914851,One Green World,"2,750.00"
Manchester City Council,Adult Social Care,Catering,09-Feb-24,1908337744,Open Kitchen,778.50
Manchester City Council,Highways Services,Purchase of stores for re-distribution,09-Feb-24,5105914882,P.F. Cusack (Tools Supplies) Ltd,"1,347.49"
Manchester City Council,Chief Executives,Signers/Interpreters,09-Feb-24,5105915503,Redacted Personal Information,978.20
Manchester City Council,Highways Services,Professional fees,09-Feb-24,5105914754,Pell Frischmann Consultants Ltd,"5,610.00"
Manchester City Council,Highways Services,Professional fees,09-Feb-24,5105914900,Pell Frischmann Consultants Ltd,"5,175.00"
Manchester City Council,Highways Services,Payments to Sub-Contractors,09-Feb-24,5105915681,Project Centre,"4,000.00"
Manchester City Council,Highways Services,Machinery and equipment repairs,09-Feb-24,5105914952,Proteus Equipment Ltd,"3,390.86"
Manchester City Council,Chief Executives,Postage,09-Feb-24,5105915838,Quadient Ltd (Credifon),"12,315.92"
Manchester City Council,Childrens & Education Services,Hire of Premises,09-Feb-24,5105914822,Quaker Trading Ltd,753.12
Manchester City Council,Manchester Leisure,Grounds Maintenance,09-Feb-24,5105915813,Redgate Holdings Ltd,"-63,556.58"
Manchester City Council,Manchester Leisure,Grounds Maintenance,09-Feb-24,5105915821,Redgate Holdings Ltd,"63,556.58"
Manchester City Council,Childrens & Education Services,Payments for services,09-Feb-24,5105915781,Reed Employment Plc,"7,465.50"
Manchester City Council,Corporate Services,Works and associated costs for Land and Buildings,09-Feb-24,5105915473,Rider Levett Bucknall UK Ltd,"15,400.00"
Manchester City Council,Libraries and Theatres,Works and associated costs for Land and Buildings,09-Feb-24,5105915938,Robertson Construction Group,"38,246.04"
Manchester City Council,Manchester Leisure,Furniture,09-Feb-24,5105915746,Rtech Group Limited,"4,766.66"
Manchester City Council,Manchester Leisure,Grant and subscriptions awarded,09-Feb-24,5105915896,Self Care Creatives CIC,"2,000.00"
Manchester City Council,Manchester Leisure,Training and Development,09-Feb-24,5105913932,Seta Ltd,"5,180.00"
Manchester City Council,Childrens & Education Services,Transport Coach Hire,09-Feb-24,5105915512,Staffordshire County Council,"2,750.64"
Manchester City Council,Manchester Leisure,Grant and subscriptions awarded,09-Feb-24,5105915850,Stepping Stone Projects,"11,000.00"
Manchester City Council,Manchester Leisure,Grant and subscriptions awarded,09-Feb-24,5105915851,Stepping Stone Projects,"1,100.00"
Manchester City Council,Manchester Leisure,Goods purchased for resale in Council outlets,09-Feb-24,5105915867,Stone Marketing Ltd,985.36
Manchester City Council,Manchester Leisure,Rents,09-Feb-24,5105915745,T15 Consultancy Ltd,"125,193.14"
Manchester City Council,Libraries and Theatres,Vehicle Plant Furniture and Equipment,09-Feb-24,5105915914,TFG Stage Technology Ltd,"-37,702.41"
Manchester City Council,Libraries and Theatres,Vehicle Plant Furniture and Equipment,09-Feb-24,5105915915,TFG Stage Technology Ltd,"37,702.41"
Manchester City Council,Childrens & Education Services,Hire of Premises,09-Feb-24,5105914326,The St Thomas Centre Ltd,606.25
Manchester City Council,Manchester Leisure,Rents,09-Feb-24,5105915805,The Whiteluck Group,"13,440.00"
Manchester City Council,Childrens & Education Services,Contract Cleaning External,09-Feb-24,5105915793,Tiddlywinks Day Nursery Ltd,"5,487.00"
Manchester City Council,Chief Executives,Examination Fees,09-Feb-24,5105915771,Toxicology UK Ltd,"14,025.00"
Manchester City Council,Childrens & Education Services,Third party payments to other Local Authorities,09-Feb-24,5105915803,Trafford College,"96,617.21"
Manchester City Council,Childrens & Education Services,Third party payments to other Local Authorities,09-Feb-24,5105915804,Trafford College,"-15,311.23"
Manchester City Council,Environment and Operations,Construction Works,09-Feb-24,5105914864,Transport for Greater Manchester,"2,120.00"
Manchester City Council,Environment and Operations,Construction Works,09-Feb-24,5105914865,Transport for Greater Manchester,"2,730.00"
Manchester City Council,Adult Social Care,Third party payments to Health Authority,09-Feb-24,5105915797,Treatment Direct Ltd.,"3,000.00"
Manchester City Council,Corporate Services,Professional fees,09-Feb-24,5105915259,Trust ID Limited,513.00
Manchester City Council,Manchester Leisure,ICT Sup & Maintnance,09-Feb-24,5105914806,Trustmarque Solutions Ltd,"3,001.88"
Manchester City Council,Childrens & Education Services,Professional fees,09-Feb-24,5105915761,WALKING TOGETHER,560.00
Manchester City Council,Environment and Operations,Construction Works,09-Feb-24,5105915687,Wilde Consultants Ltd,"20,575.80"
Manchester City Council,Manchester Leisure,Construction Works,09-Feb-24,5105914887,WSP UK Limited,"3,725.00"
Manchester City Council,Manchester Leisure,Grant and subscriptions awarded,09-Feb-24,5105915682,Wythenshawe Community Farm,"5,000.00"
Manchester City Council,Adult Social Care,Cleaning Equipment and Materials,10-Feb-24,5105916070,Alliance Disposables Ltd,660.00
Manchester City Council,Corporate Services,Cleaning Equipment,10-Feb-24,5105916108,Alliance Disposables Ltd,"3,296.98"
Manchester City Council,Highways Services,Payments to Sub-Contractors,10-Feb-24,5105916104,Clearway Drainage Systems Ltd,"1,620.00"
Manchester City Council,Manchester Leisure,Grounds Maintenance,10-Feb-24,5105916059,Community Security (North West),936.00
Manchester City Council,Manchester Leisure,Grounds Maintenance,10-Feb-24,5105916071,Community Security (North West),"1,101.00"
Manchester City Council,Manchester Leisure,Grounds Maintenance,10-Feb-24,5105916101,Community Security (North West),745.00
Manchester City Council,Manchester Leisure,Payments to Sub-Contractors,10-Feb-24,5105916100,Community Security (North West),"2,784.62"
Manchester City Council,Corporate Services,Works and associated costs for Land and Buildings,10-Feb-24,5105916087,Manchester Central,"7,129.23"
Manchester City Council,Chief Executives,Catering,10-Feb-24,5105916055,Manchester Central,"1,032.74"
Manchester City Council,Chief Executives,Counsel Costs,12-Feb-24,1908353139,18 St John Street Chambers,650.00
Manchester City Council,Chief Executives,Counsel Costs,12-Feb-24,1908354506,18 St John Street Chambers,650.00
Manchester City Council,Chief Executives,Counsel Costs,12-Feb-24,1908354992,18 St John Street Chambers,650.00
Manchester City Council,Chief Executives,Counsel Costs,12-Feb-24,1908360225,18 St John Street Chambers,770.00
Manchester City Council,Chief Executives,Counsel Costs,12-Feb-24,1908360226,18 St John Street Chambers,650.00
Manchester City Council,Chief Executives,Counsel Costs,12-Feb-24,1908360243,18 St John Street Chambers,650.00
Manchester City Council,Chief Executives,Counsel Costs,12-Feb-24,1908360245,18 St John Street Chambers,830.00
Manchester City Council,Manchester Leisure,Agency staff provision,12-Feb-24,5105915984,Redacted Personal Information,875.00
Manchester City Council,Manchester Leisure,Bed & Breakfast Acc,12-Feb-24,5105915968,247Hotel.Com,"2,740.00"
Manchester City Council,Regeneration Finance,Professional fees,12-Feb-24,5105914498,AA Projects Ltd,"7,700.00"
Manchester City Council,Chief Executives,Printing,12-Feb-24,5105915060,R.C.D.,"1,045.54"
Manchester City Council,Chief Executives,Printing,12-Feb-24,5105915221,R.C.D.,"1,360.00"
Manchester City Council,Chief Executives,Printing,12-Feb-24,5105915223,R.C.D.,"3,610.00"
Manchester City Council,Chief Executives,Printing,12-Feb-24,5105915436,R.C.D.,"1,045.54"
Manchester City Council,Corporate Services,Works and associated costs for Land and Buildings,12-Feb-24,5105915936,Amey Highways Lighting (Manchester),"9,293.37"
Manchester City Council,Highways Services,Car Parking Permits,12-Feb-24,5105915934,Amey Highways Lighting (Manchester),"1,051.15"
Manchester City Council,Manchester Leisure,Housing Rents Debit,12-Feb-24,1908363177,Redacted Personal Information,855.00
Manchester City Council,Corporate Services,Rents,12-Feb-24,5105914947,ANS Group PLC,"50,020.00"
Manchester City Council,Chief Executives,Professional fees,12-Feb-24,1908363310,Redacted Personal Information,"2,253.10"
Manchester City Council,Childrens & Education Services,Professional fees,12-Feb-24,5105916001,Arnoldsolutions,"5,700.00"
Manchester City Council,Manchester Leisure,Rents,12-Feb-24,5105915659,Ashley Property services,"4,320.00"
Manchester City Council,Corporate Services,Training and Development,12-Feb-24,5105915882,Bennett Workplace Solutions Ltd,607.50
Manchester City Council,Corporate Services,Equipment,12-Feb-24,5105915663,Bennett Workplace Solutions Ltd,"1,287.00"
Manchester City Council,Adult Social Care,Equipment,12-Feb-24,5105915077,Bentley Fielden Ltd,"3,920.00"
Manchester City Council,Manchester Leisure,Refuse Collection,12-Feb-24,5105914244,Biffa Municipal Limited,"1,154.66"
Manchester City Council,Manchester Leisure,Refuse Collection,12-Feb-24,5105914245,Biffa Municipal Limited,"1,400.45"
Manchester City Council,Manchester Leisure,Refuse Collection,12-Feb-24,5105914248,Biffa Municipal Limited,"1,307,497.04"
Manchester City Council,Manchester Leisure,Refuse Collection,12-Feb-24,5105914266,Biffa Municipal Limited,"52,954.35"
Manchester City Council,Manchester Leisure,Refuse Collection,12-Feb-24,5105914270,Biffa Municipal Limited,"27,607.40"
Manchester City Council,Manchester Leisure,Refuse Collection,12-Feb-24,5105914274,Biffa Municipal Limited,"15,103.25"
Manchester City Council,Manchester Leisure,Refuse Collection,12-Feb-24,5105914275,Biffa Municipal Limited,"8,472.92"
Manchester City Council,Manchester Leisure,"Consumable items eg Toilet rolls, soap etc",12-Feb-24,5105914273,Biffa Municipal Limited,"3,750.00"
Manchester City Council,Manchester Leisure,Payments to Sub-Contractors,12-Feb-24,5105914272,Biffa Municipal Limited,"29,032.83"
Manchester City Council,Manchester Leisure,Reuse credits,12-Feb-24,5105914262,Biffa Municipal Limited,"3,975.00"
Manchester City Council,Manchester Leisure,Reuse credits,12-Feb-24,5105914263,Biffa Municipal Limited,"2,275.00"
Manchester City Council,Manchester Leisure,Reuse credits,12-Feb-24,5105914267,Biffa Municipal Limited,"5,166.67"
Manchester City Council,Manchester Leisure,Payments to Contractors,12-Feb-24,5105914261,Biffa Municipal Limited,"207,503.48"
Manchester City Council,Hospitality + Trading Services,Contract Cleaning External,12-Feb-24,5105915519,Biffa Municipal Limited,720.00
Manchester City Council,Hospitality + Trading Services,Refuse Collection,12-Feb-24,5105914249,Biffa Municipal Limited,"118,087.86"
Manchester City Council,Corporate Services,Grounds Maintenance,12-Feb-24,5105914276,Biffa Municipal Limited,"2,484.43"
Manchester City Council,Manchester Leisure,Refuse Collection,12-Feb-24,5105914242,Biffa Waste Services Ltd,900.00
Manchester City Council,Adult Social Care,Payments for services,12-Feb-24,5105915315,Big Life Centres,"238,508.00"
Manchester City Council,Adult Social Care,Payments for services,12-Feb-24,5105915316,Big Life Centres,"10,560.25"
Manchester City Council,Housing Revenue Account,Council Dwelling Adaptations,12-Feb-24,5105915844,British Gas Social Housing Ltd,"8,491.14"
Manchester City Council,Adult Social Care,Payments for services,12-Feb-24,5105913863,Brook,"44,851.65"
Manchester City Council,Manchester Leisure,I T Provision,12-Feb-24,5105914363,BT PLC,"3,725.50"
Manchester City Council,Corporate Services,Works and associated costs for Land and Buildings,12-Feb-24,5105915246,Building Design Partnership Limited,"1,437.36"
Manchester City Council,Chief Executives,Professional fees,12-Feb-24,5105916127,Buro Happold Limited,"1,170.00"
Manchester City Council,Housing Revenue Account,Professional fees,12-Feb-24,5105916033,Capita Property & Infras'ture Ltd,"2,895.00"
Manchester City Council,Chief Executives,Counsel Costs,12-Feb-24,1908353163,Central Chambers,950.00
Manchester City Council,Chief Executives,Counsel Costs,12-Feb-24,1908354505,Central Chambers,900.00
Manchester City Council,Chief Executives,Counsel Costs,12-Feb-24,1908354507,Central Chambers,550.00
Manchester City Council,Chief Executives,Counsel Costs,12-Feb-24,1908354993,Central Chambers,850.00
Manchester City Council,Adult Social Care,Training and Development,12-Feb-24,5105915971,Centre for Assessment,575.00
Manchester City Council,Childrens & Education Services,Supporting People Payments,12-Feb-24,5105915985,Child Action Northwest,"2,470.32"
Manchester City Council,Adult Social Care,Supporting People Payments,12-Feb-24,5105915985,Child Action Northwest,"4,991.35"
Manchester City Council,Manchester Leisure,Goods purchased for resale in Council outlets,12-Feb-24,1908366252,Choc-affair Ltd,510.00
Manchester City Council,Childrens & Education Services,Supported Accommodation,12-Feb-24,1908367243,City Care Partnership Ltd,"2,790.50"
Manchester City Council,Childrens & Education Services,Supported Accommodation,12-Feb-24,1908367245,City Care Partnership Ltd,"1,427.40"
Manchester City Council,Chief Executives,Postage,12-Feb-24,5105915300,Civica Election Services,"1,296.50"
Manchester City Council,Chief Executives,Expenditure re Internal Trading Ordered Externally,12-Feb-24,5105915300,Civica Election Services,831.88
Manchester City Council,Corporate Services,CRB Fees,12-Feb-24,5105915940,Complete Background Screening Ltd,"1,009.50"
Manchester City Council,Manchester Leisure,Goods purchased for resale in Council outlets,12-Feb-24,5105915961,Cornflower Ltd,"2,155.60"
Manchester City Council,Manchester Leisure,External repairs and maintenance for buildings,12-Feb-24,5105915481,Cornthwaite Tree Care,"2,550.00"
Manchester City Council,Manchester Leisure,Goods purchased for resale in Council outlets,12-Feb-24,5105915957,Crawford Henderson Limited,800.00
Manchester City Council,Manchester Leisure,Grant and subscriptions awarded,12-Feb-24,1908365553,Creative City England CIC,"7,500.00"
Manchester City Council,Adult Social Care,Payments for services,12-Feb-24,5105915947,Creative Support Ltd,"3,216.80"
Manchester City Council,Adult Social Care,Payments for services,12-Feb-24,5105915983,Creative Support Ltd,"21,608.59"
Manchester City Council,Regeneration Finance,Professional fees,12-Feb-24,5105916195,Cumming Management Group UK Ltd,"25,000.00"
Manchester City Council,Regeneration Finance,Professional fees,12-Feb-24,5105916197,Cumming Management Group UK Ltd,"5,000.00"
Manchester City Council,Regeneration Finance,Professional fees,12-Feb-24,5105916198,Cumming Management Group UK Ltd,"5,000.00"
Manchester City Council,Corporate Services,Agency staff provision,12-Feb-24,5105915444,Deekay Technical Recruitment Ltd,"12,454.31"
Manchester City Council,Manchester Leisure,Professional fees,12-Feb-24,5105915697,DeepStore,709.11
Manchester City Council,Manchester Leisure,Professional fees,12-Feb-24,5105915698,DeepStore,"4,115.87"
Manchester City Council,Adult Social Care,Payments for services,12-Feb-24,5105915991,Delphi Medical,"3,990.00"
Manchester City Council,Corporate Services,I T Provision,12-Feb-24,5105915547,Detail Design Engineering Ltd,500.00
Manchester City Council,Corporate Services,CRB Fees,12-Feb-24,5105916018,Disclosure & Barring Service,"21,436.00"
Manchester City Council,Regeneration Finance,Professional fees,12-Feb-24,5105916192,Donald Insall Associates,"9,921.50"
Manchester City Council,Adult Social Care,Equipment,12-Feb-24,5105915826,Drive Devilbiss Healthcare Ltd,"2,669.76"
Manchester City Council,Adult Social Care,Equipment,12-Feb-24,5105915230,Drive Devilbiss Sidhil Ltd,"2,891.00"
Manchester City Council,Corporate Services,Rents,12-Feb-24,1908354910,DUK Property Management Ltd,"1,167.48"
Manchester City Council,Corporate Services,Works and associated costs for Land and Buildings,12-Feb-24,5105914788,EQUANS Regeneration Limited,"27,791.19"
Manchester City Council,Corporate Services,Works and associated costs for Land and Buildings,12-Feb-24,5105914788,EQUANS Regeneration Limited,"158,204.32"
Manchester City Council,Corporate Services,Works and associated costs for Land and Buildings,12-Feb-24,5105914788,EQUANS Regeneration Limited,"4,301.22"
Manchester City Council,Corporate Services,Internal Repairs and Maintenance for buildings,12-Feb-24,5105913927,EQUANS Services Limited,"49,756.38"
Manchester City Council,Adult Social Care,Personal needs of client,12-Feb-24,5105915037,Etac Ltd,"3,368.00"
Manchester City Council,Manchester Leisure,Special Event,12-Feb-24,5105915064,Event Technical Support,"4,351.00"
Manchester City Council,Corporate Services,Tracing fees,12-Feb-24,5105915835,Experian Limited,"2,241.36"
Manchester City Council,Hospitality + Trading Services,Machinery and equipment repairs,12-Feb-24,5105915142,F.R.Sharrock Ltd,"28,988.19"
Manchester City Council,Hospitality + Trading Services,Machinery and equipment repairs,12-Feb-24,5105915979,F.R.Sharrock Ltd,"3,490.72"
Manchester City Council,Manchester Leisure,Works and associated costs for Land and Buildings,12-Feb-24,5105915902,Fairway Landscapes Ltd,"4,382.00"
Manchester City Council,Manchester Leisure,Works and associated costs for Land and Buildings,12-Feb-24,5105915904,Fairway Landscapes Ltd,"2,817.00"
Manchester City Council,Hospitality + Trading Services,Vehicle Hire Costs,12-Feb-24,5105915419,Fleet Dynamic Consultancy Ltd,739.20
Manchester City Council,Childrens & Education Services,Professional fees,12-Feb-24,5105916128,Forensic Testing Service Ltd,"1,638.00"
Manchester City Council,Chief Executives,Professional fees,12-Feb-24,1908353162,Forensic Testing Service Ltd,512.05
Manchester City Council,Chief Executives,Professional fees,12-Feb-24,1908354990,Forensic Testing Service Ltd,993.60
Manchester City Council,Childrens & Education Services,Contract Cleaning External,12-Feb-24,5105916117,Freshwave Cleaning Services Ltd,748.00
Manchester City Council,Corporate Services,WPS Awards,12-Feb-24,5105916012,Furniture Resource Centre Ltd,"1,179.70"
Manchester City Council,Corporate Services,WPS Awards,12-Feb-24,5105916015,Furniture Resource Centre Ltd,620.03
Manchester City Council,Corporate Services,WPS Awards,12-Feb-24,5105916130,Furniture Resource Centre Ltd,514.96
Manchester City Council,Corporate Services,WPS Awards,12-Feb-24,5105916136,Furniture Resource Centre Ltd,583.04
Manchester City Council,Corporate Services,WPS Awards,12-Feb-24,5105916155,Furniture Resource Centre Ltd,510.57
Manchester City Council,Corporate Services,WPS Awards,12-Feb-24,5105916158,Furniture Resource Centre Ltd,902.93
Manchester City Council,Manchester Leisure,Bed & Breakfast Acc,12-Feb-24,5105915949,Redacted Personal Information,"4,350.00"
Manchester City Council,Corporate Services,Agency staff provision,12-Feb-24,5105915169,G2V Recruitment Grp t/a Vivid Resou,"7,500.00"
Manchester City Council,Corporate Services,Agency staff provision,12-Feb-24,5105915170,G2V Recruitment Grp t/a Vivid Resou,"4,169.82"
Manchester City Council,Corporate Services,Agency staff provision,12-Feb-24,5105915211,G2V Recruitment Grp t/a Vivid Resou,"4,279.50"
Manchester City Council,Regeneration Finance,Agency staff provision,12-Feb-24,5105915130,Redacted Personal Information,"5,141.00"
Manchester City Council,Regeneration Finance,Agency staff provision,12-Feb-24,5105915224,Redacted Personal Information,"6,787.50"
Manchester City Council,Chief Executives,Advertising,12-Feb-24,5105915777,Global Radio Services Ltd,641.15
Manchester City Council,Hospitality + Trading Services,Funeral and coroner related services,12-Feb-24,5105914791,GM Training Services,"1,600.00"
Manchester City Council,Adult Social Care,Supporting People Payments,12-Feb-24,5105915461,Great Places Housing Association,"14,328.77"
Manchester City Council,Regeneration Finance,Catering,12-Feb-24,5105915155,Greater Manchester Chamber of,"1,000.00"
Manchester City Council,Manchester Leisure,Refuse Collection,12-Feb-24,5105915872,GTS Steam Cleaners,648.68
Manchester City Council,Corporate Services,Grant and subscriptions awarded,12-Feb-24,1908365542,Harpurhey Community Grocer,"1,000.00"
Manchester City Council,Corporate Services,I T Provision,12-Feb-24,5105916126,Hbinfo Ltd,"1,566.00"
Manchester City Council,Corporate Services,Heart of Manc Bid,12-Feb-24,5105914759,Heart of Manchester BID Co Ltd,"100,000.00"
Manchester City Council,Housing General Fund,Building Works,12-Feb-24,1908367197,Hoist & Shower Chair Company,"2,848.00"
Manchester City Council,Housing General Fund,Building Works,12-Feb-24,1908367198,Hoist & Shower Chair Company,"3,373.00"
Manchester City Council,Chief Executives,Third party payments relating to Voluntary Organisations,12-Feb-24,5105913857,HOME,"105,699.50"
Manchester City Council,Manchester Leisure,Rents,12-Feb-24,5105915688,Houses4Homes 4U Ltd,"9,026.00"
Manchester City Council,Regeneration Finance,Grant Payments,12-Feb-24,5105916185,HQN Limited,860.00
Manchester City Council,Childrens & Education Services,Transport Coach Hire,12-Feb-24,5105915055,Ibuses,"2,730.00"
Manchester City Council,Manchester Leisure,Payments to Sub-Contractors,12-Feb-24,5105914370,Idverde Limited,"1,992.55"
Manchester City Council,Manchester Leisure,Housing Rents Debit,12-Feb-24,1908363300,Redacted Personal Information,"3,000.00"
Manchester City Council,Manchester Leisure,Postage,12-Feb-24,5105915377,In4systems Ltd,900.00
Manchester City Council,Adult Social Care,I T Provision,12-Feb-24,5105916013,Insight Direct (Uk) Ltd,"2,326.35"
Manchester City Council,Corporate Services,I T Provision,12-Feb-24,5105915442,Insight Direct (Uk) Ltd,534.50
Manchester City Council,Corporate Services,I T Provision,12-Feb-24,5105915668,Insight Direct (Uk) Ltd,"1,047.56"
Manchester City Council,Childrens & Education Services,Payments for services,12-Feb-24,5105916135,Inspire Training & Education,"13,324.94"
Manchester City Council,Adult Social Care,Third party payments relating to Voluntary Organisations,12-Feb-24,5105915989,Irwell Valley Housing Association,"6,000.00"
Manchester City Council,Adult Social Care,Third party payments relating to Voluntary Organisations,12-Feb-24,5105915990,Irwell Valley Housing Association,"6,000.00"
Manchester City Council,Chief Executives,Legal Fees,12-Feb-24,5105915878,Isherwood Legal Limited,"1,200.00"
Manchester City Council,Childrens Services,Works and associated costs for Land and Buildings,12-Feb-24,5105915364,J Greenwood (Builders) Limited,"4,833.19"
Manchester City Council,Highways Services,Tipping - Tonnage,12-Feb-24,5105915506,J.Hopkins (Contractors) Ltd.,672.07
Manchester City Council,Childrens & Education Services,Transport Coach Hire,12-Feb-24,5105913822,JCT Travel Ltd,"33,720.00"
Manchester City Council,Adult Social Care,Rents,12-Feb-24,5105916148,Jigsaw Homes North,"4,801.94"
Manchester City Council,Manchester Leisure,Rents,12-Feb-24,5105913814,K L Properties,"16,638.92"
Manchester City Council,Manchester Leisure,Rents,12-Feb-24,5105915969,Kaasuu Properties,"3,520.00"
Manchester City Council,Corporate Services,Works and associated costs for Land and Buildings,12-Feb-24,5105914949,Kaberry Construction Ltd,"35,192.40"
Manchester City Council,Chief Executives,Counsel Costs,12-Feb-24,1908354985,Kenworthy's Chambers,600.00
Manchester City Council,Adult Social Care,Counsel Costs,12-Feb-24,5105915880,Kings Chambers,500.00
Manchester City Council,Manchester Leisure,Professional Fees,12-Feb-24,5105915207,Redacted Personal Information,"1,000.00"
Manchester City Council,Childrens & Education Services,Third party payments to other Local Authorities,12-Feb-24,5105915941,Lancashire County Council,"2,157.75"
Manchester City Council,Manchester Leisure,Professional fees,12-Feb-24,5105915978,Language Line Ltd,"11,877.92"
Manchester City Council,Manchester Leisure,Grant and subscriptions awarded,12-Feb-24,5105915434,LGBT Foundation,"10,484.33"
Manchester City Council,Adult Social Care,Grant and subscriptions awarded,12-Feb-24,5105915433,LGBT Foundation,"4,795.25"
Manchester City Council,Corporate Services,Agency staff provision,12-Feb-24,5105915539,Liquid Personnel Ltd,"18,537.36"
Manchester City Council,Manchester Leisure,I T Provision,12-Feb-24,5105915021,Lorensbergs Ltd,"17,202.66"
Manchester City Council,Regeneration Finance,Contract Cleaning External,12-Feb-24,5105914926,M & M Cleaning Services Ltd,"1,235.21"
Manchester City Council,Childrens & Education Services,Transport Coach Hire,12-Feb-24,5105913819,M Travel,"82,592.50"
Manchester City Council,Manchester Leisure,Professional fees,12-Feb-24,5105916016,M&G Transport & Technical Services,504.00
Manchester City Council,Libraries and Theatres,Works and associated costs for Land and Buildings,12-Feb-24,5105915399,M&G Transport & Technical Services,"4,185.00"
Manchester City Council,Manchester Leisure,Security,12-Feb-24,5105915963,M247 UK Ltd,"9,700.88"
Manchester City Council,Highways Services,Professional fees,12-Feb-24,5105914942,Mace Ltd,"10,692.68"
Manchester City Council,Highways Services,Professional fees,12-Feb-24,5105914943,Mace Ltd,"7,483.50"
Manchester City Council,Highways Services,Professional fees,12-Feb-24,5105914944,Mace Ltd,"6,717.60"
Manchester City Council,Highways Services,Professional fees,12-Feb-24,5105914945,Mace Ltd,"7,995.90"
Manchester City Council,Highways Services,Professional fees,12-Feb-24,5105914946,Mace Ltd,"9,012.60"
Manchester City Council,Manchester Leisure,Rents,12-Feb-24,5105915965,Mack Residential Letting Ltd,"199,229.08"
Manchester City Council,Manchester Leisure,Rents,12-Feb-24,5105916147,Mack Residential Letting Ltd,"3,394.11"
Manchester City Council,Manchester Leisure,Rents,12-Feb-24,5105916203,Mack Residential Letting Ltd,"2,581.48"
Manchester City Council,Manchester Leisure,Furniture,12-Feb-24,5105916200,Mack Residential Letting Ltd,"4,250.00"
Manchester City Council,Chief Executives,Printing,12-Feb-24,5105915181,Mail Solutions,"1,071.00"
Manchester City Council,Adult Social Care,Supporting People Payments,12-Feb-24,5105915686,Making Space,"8,871.01"
Manchester City Council,Adult Social Care,Maintenance Mgt Cost,12-Feb-24,5105916206,Manchester Care & Repair Ltd,"15,000.00"
Manchester City Council,Regeneration Finance,Subvention Payments,12-Feb-24,5105915720,Manchester Creative Digital Assets,"21,392.00"
Manchester City Council,Regeneration Finance,Subvention Payments,12-Feb-24,5105915734,Manchester Creative Digital Assets,"246,450.00"
Manchester City Council,Regeneration Finance,Subvention Payments,12-Feb-24,5105915736,Manchester Creative Digital Assets,"61,640.00"
Manchester City Council,Regeneration Finance,Subvention Payments,12-Feb-24,5105915737,Manchester Creative Digital Assets,"229,206.00"
Manchester City Council,Regeneration Finance,Subvention Payments,12-Feb-24,5105915738,Manchester Creative Digital Assets,"237,268.00"
Manchester City Council,Chief Executives,Grant and subscriptions awarded,12-Feb-24,5105915150,Manchester Histories,"6,069.83"
Manchester City Council,Chief Executives,Professional fees,12-Feb-24,1908366219,Medico Legal UK Chambers Ltd,"1,680.00"
Manchester City Council,Environment and Operations,Construction Works,12-Feb-24,5105915751,Metrolink Limited,990.00
Manchester City Council,Corporate Services,Agency staff provision,12-Feb-24,5105915762,Michael Page International,"10,340.00"
Manchester City Council,Corporate Services,Agency staff provision,12-Feb-24,5105915763,Michael Page International,"1,760.00"
Manchester City Council,Corporate Services,Agency staff provision,12-Feb-24,5105915765,Michael Page International,"4,958.80"
Manchester City Council,Childrens & Education Services,Transport Coach Hire,12-Feb-24,5105915283,Middleton Cars Ltd,"1,343.00"
Manchester City Council,Childrens & Education Services,Transport Coach Hire,12-Feb-24,5105915284,Middleton Cars Ltd,"1,740.00"
Manchester City Council,Corporate Services,Security,12-Feb-24,5105915400,MITIE SECURITY LIMITED,"3,247.36"
Manchester City Council,Manchester Leisure,Rents,12-Feb-24,5105915950,MJ Rental Ltd,"1,800.00"
Manchester City Council,Adult Social Care,Professional fees,12-Feb-24,5105916004,MJJ Social Care Consulting Ltd,"1,060.00"
Manchester City Council,Manchester Leisure,Rents,12-Feb-24,5105915976,Momo Properties LTD,"1,810.00"
Manchester City Council,Housing Revenue Account,Council Dwelling Fees,12-Feb-24,5105916156,Moores Furniture Group Limited,"5,993.44"
Manchester City Council,Adult Social Care,Payments for services,12-Feb-24,5105914197,Morelife (UK) Ltd,"41,130.25"
Manchester City Council,Highways Services,Hire of Equipment,12-Feb-24,5105916184,MTK Breaker Hire and Sales Ltd,"1,380.00"
Manchester City Council,Manchester Leisure,Third party payments relating to Voluntary Organisations,12-Feb-24,5105913861,Nacro,"117,306.00"
Manchester City Council,Corporate Services,Professional fees,12-Feb-24,5105915508,NE1 Procurement Services Limited,"2,010.25"
Manchester City Council,Corporate Services,Professional fees,12-Feb-24,5105915531,NE1 Procurement Services Limited,"4,020.51"
Manchester City Council,Corporate Services,Professional fees,12-Feb-24,5105915910,NE1 Procurement Services Limited,"9,500.00"
Manchester City Council,Corporate Services,Professional fees,12-Feb-24,5105915921,NE1 Procurement Services Limited,"5,000.00"
Manchester City Council,Corporate Services,Professional fees,12-Feb-24,5105915922,NE1 Procurement Services Limited,"3,500.00"
Manchester City Council,Childrens & Education Services,Transport Coach Hire,12-Feb-24,5105915111,New City Cars Ltd,"20,082.00"
Manchester City Council,Adult Social Care,Equipment,12-Feb-24,5105915795,NRS Healthcare,"2,206.00"
Manchester City Council,Corporate Services,Cash Collection,12-Feb-24,5105915204,NSL Ltd,"3,718.39"
Manchester City Council,Childrens & Education Services,Third party payments to other Local Authorities,12-Feb-24,5105915852,Oldham College Corporation,"55,469.68"
Manchester City Council,Childrens & Education Services,Professional fees,12-Feb-24,5105915948,One Education Ltd,"1,500.00"
Manchester City Council,Adult Social Care,Third party payments relating to Voluntary Organisations,12-Feb-24,5105916040,Onward Group Ltd,"12,500.00"
Manchester City Council,Adult Social Care,Third party payments relating to Voluntary Organisations,12-Feb-24,5105916111,Onward Group Ltd,"12,500.00"
Manchester City Council,Adult Social Care,Third party payments relating to Voluntary Organisations,12-Feb-24,5105916112,Onward Group Ltd,"12,500.00"
Manchester City Council,Adult Social Care,Third party payments relating to Voluntary Organisations,12-Feb-24,5105916114,Onward Group Ltd,"12,500.00"
Manchester City Council,Corporate Services,Licences Purchase,12-Feb-24,5105914393,Open Text Ltd,"19,698.10"
Manchester City Council,Corporate Services,Licences Purchase,12-Feb-24,5105914394,Open Text Ltd,"51,480.17"
Manchester City Council,Corporate Services,Agency staff provision,12-Feb-24,5105915642,Redacted Personal Information,"6,393.60"
Manchester City Council,Manchester Leisure,Professional fees,12-Feb-24,1908363178,OVO Energy,769.35
Manchester City Council,Regeneration Finance,Professional Fees,12-Feb-24,5105915982,P Mcguinness & Co Ltd,"1,551.00"
Manchester City Council,Corporate Services,Fees,12-Feb-24,5105916142,Pannone Corporate LLP,"5,691.34"
Manchester City Council,Corporate Services,Fees,12-Feb-24,5105916142,Pannone Corporate LLP,"2,610.66"
Manchester City Council,Childrens & Education Services,Transport Coach Hire,12-Feb-24,5105915899,Parkway Cabs & Cars,"13,140.00"
Manchester City Council,Chief Executives,Counsel Costs,12-Feb-24,1908363293,Redacted Personal Information,"1,062.50"
Manchester City Council,Childrens & Education Services,Transport Coach Hire,12-Feb-24,5105915561,PDR Travel Ltd,"3,062.50"
Manchester City Council,Adult Social Care,Professional fees,12-Feb-24,5105915571,Penna PLC,"4,166.66"
Manchester City Council,Hospitality + Trading Services,Vehicle Hire Costs,12-Feb-24,5105915540,Peter Douglass Platforms,"1,760.00"
Manchester City Council,Chief Executives,Professional fees,12-Feb-24,1908353164,Pickering Psychology Services Ltd,"2,111.35"
Manchester City Council,Chief Executives,Professional fees,12-Feb-24,1908353165,Pickering Psychology Services Ltd,"2,319.50"
Manchester City Council,Chief Executives,Professional fees,12-Feb-24,1908360234,Pickering Psychology Services Ltd,788.60
Manchester City Council,Chief Executives,Professional fees,12-Feb-24,1908360236,Pickering Psychology Services Ltd,662.95
Manchester City Council,Adult Social Care,Supporting People Payments,12-Feb-24,5105915492,Praxis Care Group,"6,524.81"
Manchester City Council,Regeneration Finance,Third party payments relating to Voluntary Organisations,12-Feb-24,5105916208,Proper Job Theatre company,"11,810.00"
Manchester City Council,Childrens & Education Services,Agency staff provision,12-Feb-24,5105916035,Prospero Teaching,750.00
Manchester City Council,Housing Revenue Account,Council Dwelling Adaptations,12-Feb-24,5105916149,Pts Plumbing Trade Supplies,977.60
Manchester City Council,Housing Revenue Account,Council Dwelling Adaptations,12-Feb-24,5105916150,Pts Plumbing Trade Supplies,"3,068.71"
Manchester City Council,Manchester Leisure,Refuse Collection,12-Feb-24,5105915245,Ramora Ltd,"1,990.00"
Manchester City Council,Highways Services,Grounds Maintenance,12-Feb-24,5105915062,Ramora Ltd,"4,167.42"
Manchester City Council,Corporate Services,Refuse Collection,12-Feb-24,5105915097,Restore Datashred Limited,"4,750.20"
Manchester City Council,Childrens & Education Services,Storage Costs,12-Feb-24,5105915999,Restore PLC,"1,179.47"
Manchester City Council,Childrens & Education Services,Storage Costs,12-Feb-24,5105916000,Restore PLC,"3,923.70"
Manchester City Council,Regeneration Finance,Removal and Storage of Furniture,12-Feb-24,5105915933,Restore PLC,722.41
Manchester City Council,Manchester Leisure,Grant and subscriptions awarded,12-Feb-24,5105913821,Revolving Doors Housing Trust,"49,824.77"
Manchester City Council,Childrens & Education Services,Transport Coach Hire,12-Feb-24,5105915010,Ricks Travel,"2,210.00"
Manchester City Council,Chief Executives,Postage,12-Feb-24,5105915086,Royal Mail Direct,"3,125.00"
Manchester City Council,Chief Executives,Postage,12-Feb-24,5105915085,Royal Mail Group Plc,"35,461.68"
Manchester City Council,Manchester Leisure,Furniture,12-Feb-24,5105916020,Rtech Group Limited,"4,083.34"
Manchester City Council,Manchester Leisure,Furniture,12-Feb-24,5105916143,Rtech Group Limited,"1,450.00"
Manchester City Council,Manchester Leisure,Furniture,12-Feb-24,5105916183,Rtech Group Limited,"1,708.33"
Manchester City Council,Manchester Leisure,Third party payments relating to Voluntary Organisations,12-Feb-24,5105915373,Safe Partnership Ltd,505.85
Manchester City Council,Chief Executives,Counsel Costs,12-Feb-24,1908354508,Redacted Personal Information,"1,700.00"
Manchester City Council,Regeneration Finance,"Consumable items eg Toilet rolls, soap etc",12-Feb-24,1908367249,Schoolytics Inc.,"9,052.41"
Manchester City Council,Manchester Leisure,Rents,12-Feb-24,5105916193,Second Chance Housing,"9,040.00"
Manchester City Council,Manchester Leisure,Third party payments relating to Voluntary Organisations,12-Feb-24,5105916042,Shared Habitat Limited,"1,960.00"
Manchester City Council,Adult Social Care,External repairs and maintenance for buildings,12-Feb-24,5105916210,Sheridan Lifts Ltd,"5,437.15"
Manchester City Council,Manchester Leisure,Equipment,12-Feb-24,5105915901,Solon Security Ltd,"1,354.50"
Manchester City Council,Adult Social Care,Payments for services,12-Feb-24,5105915078,Somewhere House Ltd,"1,085.00"
Manchester City Council,Adult Social Care,Payments for services,12-Feb-24,5105915237,Somewhere House Ltd,"3,085.56"
Manchester City Council,Adult Social Care,Payments for services,12-Feb-24,5105915391,Somewhere House Ltd,"1,028.52"
Manchester City Council,Manchester Leisure,Special Event,12-Feb-24,5105915671,Redacted Personal Information,550.00
Manchester City Council,Manchester Leisure,Grant Payments,12-Feb-24,5105915594,Southway Housing Trust,"3,440.00"
Manchester City Council,Adult Social Care,Third party payments relating to Voluntary Organisations,12-Feb-24,5105915726,Sow the City,"5,000.00"
Manchester City Council,Chief Executives,Courier Costs,12-Feb-24,5105915541,Speed Couriers (Northern) Ltd,654.94
Manchester City Council,Chief Executives,Courier Costs,12-Feb-24,5105915754,Speed Couriers (Northern) Ltd,"1,546.17"
Manchester City Council,Housing General Fund,Building Works,12-Feb-24,1908367199,Stannah Lift Services Ltd,"5,604.00"
Manchester City Council,Housing General Fund,Building Works,12-Feb-24,1908367200,Stannah Lift Services Ltd,"1,247.90"
Manchester City Council,Housing General Fund,Building Works,12-Feb-24,1908367201,Stannah Lift Services Ltd,"7,450.00"
Manchester City Council,Manchester Leisure,Special Event,12-Feb-24,5105915886,Star Autos Ltd,"6,450.00"
Manchester City Council,Manchester Leisure,Grant and subscriptions awarded,12-Feb-24,5105916124,Supporting People In Need,"1,100.00"
Manchester City Council,Manchester Leisure,Grant and subscriptions awarded,12-Feb-24,5105916125,Supporting People In Need,"22,000.00"
Manchester City Council,Chief Executives,Professional fees,12-Feb-24,1908354504,Target Psychology Ltd,"1,208.40"
Manchester City Council,Adult Social Care,Payments for services,12-Feb-24,5105915972,The Nelson Trust,"3,773.01"
Manchester City Council,Adult Social Care,Payments for services,12-Feb-24,5105915977,The Nelson Trust,"3,609.33"
Manchester City Council,Corporate Services,Data Links,12-Feb-24,5105915599,The Networking People (TNP) Ltd,"1,324.30"
Manchester City Council,Chief Executives,Printing,12-Feb-24,5105915944,The Purple Company (UK) Ltd,904.40
Manchester City Council,Adult Social Care,Third party payments relating to Voluntary Organisations,12-Feb-24,5105915981,The Shaw Centre,"16,967.36"
Manchester City Council,Childrens & Education Services,Contract Cleaning External,12-Feb-24,5105916006,Tiddlywinks Nursery-Clayton No.4 Ac,"9,292.50"
Manchester City Council,Childrens & Education Services,Grounds Maintenance,12-Feb-24,5105916009,Tiddlywinks Nursery-Clayton No.4 Ac,"1,501.00"
Manchester City Council,Regeneration Finance,Contract Cleaning External,12-Feb-24,5105915887,Time-Out Cleaning Services,"3,460.73"
Manchester City Council,Manchester Leisure,Payments to Sub-Contractors,12-Feb-24,5105916030,Tivoli Group Ltd,"-11,836.54"
Manchester City Council,Manchester Leisure,ICT Sup & Maintnance,12-Feb-24,5105915545,Trustmarque Solutions Ltd,"3,001.88"
Manchester City Council,Adult Social Care,Payments for services,12-Feb-24,5105916194,Turning Point,"1,855.00"
Manchester City Council,Adult Social Care,Payments for services,12-Feb-24,5105916196,Turning Point,"2,120.00"
Manchester City Council,Adult Social Care,Payments for services,12-Feb-24,5105916199,Turning Point,"2,650.00"
Manchester City Council,Adult Social Care,Payments for services,12-Feb-24,5105916201,Turning Point,795.00
Manchester City Council,Adult Social Care,Payments for services,12-Feb-24,5105916202,Turning Point,"2,650.00"
Manchester City Council,Adult Social Care,Payments for services,12-Feb-24,5105916204,Turning Point,"2,650.00"
Manchester City Council,Adult Social Care,Payments for services,12-Feb-24,5105916205,Turning Point,"1,855.00"
Manchester City Council,Adult Social Care,Supporting People Payments,12-Feb-24,5105915543,Turning Point Services,"8,281.91"
Manchester City Council,Manchester Leisure,Rents,12-Feb-24,5105915185,United Property Management Ltd,"28,184.04"
Manchester City Council,Manchester Leisure,Grant Payments,12-Feb-24,5105915562,University Of Manchester,"1,000.00"
Manchester City Council,Manchester Leisure,Special Event,12-Feb-24,5105914938,Utilities Design & Planning Ltd,"4,214.30"
Manchester City Council,Highways Services,Payments to Sub-Contractors,12-Feb-24,5105914936,Utilities Design & Planning Ltd,"2,000.00"
Manchester City Council,Hospitality + Trading Services,Vehicle Costs,12-Feb-24,5105916153,Verizon Connect UK Ltd,"1,424.50"
Manchester City Council,Regeneration Finance,Taxi Vehicle Materia,12-Feb-24,5105915911,VIP-System Ltd,"1,640.38"
Manchester City Council,Chief Executives,Printing,12-Feb-24,5105915063,Wallace Printers Ltd,"1,062.69"
Manchester City Council,Chief Executives,Printing,12-Feb-24,5105915065,Wallace Printers Ltd,"2,028.48"
Manchester City Council,Chief Executives,Printing,12-Feb-24,5105915066,Wallace Printers Ltd,"2,640.44"
Manchester City Council,Housing Revenue Account,Works and associated costs for Land and Buildings,12-Feb-24,5105915314,Warden Construction Ltd,"141,886.66"
Manchester City Council,Childrens & Education Services,Transport Coach Hire,12-Feb-24,5105915788,Redacted Personal Information,"7,461.00"
Manchester City Council,Highways Services,Professional fees,12-Feb-24,5105915092,Waterman Aspen Ltd,"8,089.50"
Manchester City Council,Chief Executives,Legal Fees,12-Feb-24,5105916132,Weightmans LLP Solicitors,"8,503.75"
Manchester City Council,Childrens & Education Services,Transport Coach Hire,12-Feb-24,5105915044,Westfield Minibuses,"139,411.25"
Manchester City Council,Chief Executives,Printing,12-Feb-24,5105915515,Wex Photographic,"6,120.00"
Manchester City Council,Manchester Leisure,Building Materials for direct delivery,12-Feb-24,5105914398,Willfab Ltd,"2,900.00"
Manchester City Council,Manchester Leisure,Professional fees,12-Feb-24,5105916289,XXXHelix/Savills pls use 30043872,"-25,838.47"
Manchester City Council,Regeneration Finance,GRIR,12-Feb-24,5105916288,XXXHelix/Savills pls use 30043872,"-7,000.00"
Manchester City Council,Childrens & Education Services,Transport Coach Hire,12-Feb-24,5105915577,Youbus Ltd,"18,158.00"
Manchester City Council,Adult Social Care,Counsel Costs,13-Feb-24,5105916216,39 Essex Street Chambers,724.59
Manchester City Council,Adult Social Care,"Consumable items eg Toilet rolls, soap etc",13-Feb-24,5105916219,Redacted Personal Information,"2,649.00"
Manchester City Council,Regeneration Finance,Rents,13-Feb-24,1908361648,Adam Geoffrey Management Ltd,"559,500.00"
Manchester City Council,Adult Social Care,Equipment,13-Feb-24,5105916277,Aidapt Bathrooms Ltd,"1,560.00"
Manchester City Council,Chief Executives,Grant and subscriptions awarded,13-Feb-24,1908367969,AirDNA LLC,"13,559.05"
Manchester City Council,Manchester Leisure,Rents,13-Feb-24,5105916266,AJD Property Limited,"10,937.14"
Manchester City Council,Hospitality + Trading Services,Cleaning Equipment and Materials,13-Feb-24,5105916529,Alliance Disposables Ltd,913.10
Manchester City Council,Adult Social Care,ClothsUniformLaundry,13-Feb-24,5105916567,Alliance Disposables Ltd,880.00
Manchester City Council,Manchester Leisure,Compensation Payments,13-Feb-24,1908367255,Antony Hodari Holding Ltd,"14,500.00"
Manchester City Council,Corporate Services,Cleaning Equipment,13-Feb-24,1700166345,Arco Group Ltd,"-1,124.00"
Manchester City Council,Corporate Services,Cleaning Equipment,13-Feb-24,1908363230,Arco Group Ltd,"1,124.00"
Manchester City Council,Chief Executives,Printing,13-Feb-24,5105916060,Astra Signs,"6,855.00"
Manchester City Council,Chief Executives,Printing,13-Feb-24,5105916062,Astra Signs,915.00
Manchester City Council,Chief Executives,Printing,13-Feb-24,5105916063,Astra Signs,735.00
Manchester City Council,Chief Executives,Printing,13-Feb-24,5105916064,Astra Signs,"1,355.00"
Manchester City Council,Chief Executives,Printing,13-Feb-24,5105916065,Astra Signs,640.00
Manchester City Council,Chief Executives,Printing,13-Feb-24,5105916066,Astra Signs,837.60
Manchester City Council,Chief Executives,Printing,13-Feb-24,5105916546,Astra Signs,"2,337.00"
Manchester City Council,Corporate Services,Gas,13-Feb-24,5105916029,Barlow Hall Primary School,554.24
Manchester City Council,Adult Social Care,Rents,13-Feb-24,5105916187,Barret Gray Rentals,"1,266.38"
Manchester City Council,Adult Social Care,Rents,13-Feb-24,5105916189,Barret Gray Rentals,"1,266.38"
Manchester City Council,Adult Social Care,Rents,13-Feb-24,5105916190,Barret Gray Rentals,"1,266.38"
Manchester City Council,Environment and Operations,Construction Works,13-Feb-24,5105916419,Bethell Construction Ltd,"6,882.69"
Manchester City Council,Housing Revenue Account,Council Dwelling Adaptations,13-Feb-24,5105915845,British Gas Social Housing Ltd,"9,702.26"
Manchester City Council,Chief Executives,Printing,13-Feb-24,5105916220,Browns CTP Ltd,"5,487.00"
Manchester City Council,Childrens & Education Services,Third party payments to other Local Authorities,13-Feb-24,5105916255,Bury M.B.C.,"8,632.69"
Manchester City Council,Childrens & Education Services,Third party payments to other Local Authorities,13-Feb-24,5105916258,Bury M.B.C.,"1,113.29"
Manchester City Council,Childrens & Education Services,I T Provision,13-Feb-24,5105916314,Caci Ltd,999.00
Manchester City Council,Childrens & Education Services,Third party payments relating to Voluntary Organisations,13-Feb-24,5105916278,Central Mcr Uni Hospital t/a,"20,833.34"
Manchester City Council,Childrens & Education Services,Third party payments relating to Voluntary Organisations,13-Feb-24,5105916279,Central Mcr Uni Hospital t/a,"9,166.66"
Manchester City Council,Childrens & Education Services,Transport Coach Hire,13-Feb-24,5105916262,City Care Agency Ltd,"8,545.00"
Manchester City Council,Childrens & Education Services,Training and Development,13-Feb-24,1908353270,City University of London,"1,000.00"
Manchester City Council,Corporate Services,Professional fees,13-Feb-24,1908361646,Clear Presentations Ltd,"1,500.00"
Manchester City Council,Manchester Leisure,Building Materials for direct delivery,13-Feb-24,5105916525,Clearway Drainage Systems Ltd,"1,310.00"
Manchester City Council,Hospitality + Trading Services,Vehicle Hire Costs,13-Feb-24,5105916487,Clearway Drainage Systems Ltd,600.00
Manchester City Council,Manchester Leisure,Payments to Sub-Contractors,13-Feb-24,5105916486,Community Security (North West),"6,275.36"
Manchester City Council,Manchester Leisure,Goods purchased for resale in Council outlets,13-Feb-24,5105916215,Cornflower Ltd,"2,615.00"
Manchester City Council,Childrens & Education Services,Third party payments to other Local Authorities,13-Feb-24,5105916234,Cumberland & Westmorland,"23,291.39"
Manchester City Council,Childrens & Education Services,Third party payments to other Local Authorities,13-Feb-24,5105916256,Cumberland & Westmorland,"24,435.18"
Manchester City Council,Childrens & Education Services,Third party payments to other Local Authorities,13-Feb-24,5105916257,Cumberland & Westmorland,"24,456.44"
Manchester City Council,Childrens & Education Services,Payments for services,13-Feb-24,1908364884,Cycloan Education and Restorate,"3,996.00"
Manchester City Council,Childrens & Education Services,Transport Coach Hire,13-Feb-24,5105916352,David'S Handy Rider,"1,490.00"
Manchester City Council,Highways Services,Compensation Payments,13-Feb-24,1908367254,Dunne & Co Solicitors,"14,589.49"
Manchester City Council,Highways Services,Building Materials for direct delivery,13-Feb-24,5105916611,Ecomix Concrete Ltd,"2,400.00"
Manchester City Council,Manchester Leisure,Rents,13-Feb-24,5105916355,Eeven Homes Ltd.,"17,738.00"
Manchester City Council,Corporate Services,Infrastructure Fees,13-Feb-24,5105916299,Environment Agency,"5,814.87"
Manchester City Council,Chief Executives,Works and associated costs for Land and Buildings,13-Feb-24,5105916241,Eric Wright Civil Engineering Limit,"153,978.87"
Manchester City Council,Manchester Leisure,Payments to Sub-Contractors,13-Feb-24,5105916489,Fast Hire UK,"1,561.69"
Manchester City Council,Hospitality + Trading Services,Hire of Machinery,13-Feb-24,5105916490,H & C Plant Hire Ltd,"1,122.00"
Manchester City Council,Corporate Services,Equipment,13-Feb-24,5105916543,H Jenkinson & Co Ltd.,"1,055.00"
Manchester City Council,Regeneration Finance,Professional fees,13-Feb-24,5105916322,H.M. Land Registry,"1,910.00"
Manchester City Council,Childrens & Education Services,Training and Development,13-Feb-24,1908354468,Hear Together,640.90
Manchester City Council,Childrens & Education Services,Transport Coach Hire,13-Feb-24,5105915913,Home to School Travel Ltd,"8,316.00"
Manchester City Council,Manchester Leisure,Bed & Breakfast Acc,13-Feb-24,5105916265,Redacted Personal Information,"12,586.00"
Manchester City Council,Manchester Leisure,Bed & Breakfast Acc,13-Feb-24,5105916343,Redacted Personal Information,"12,586.00"
Manchester City Council,Manchester Leisure,Bed & Breakfast Acc,13-Feb-24,5105916344,Redacted Personal Information,"12,110.00"
Manchester City Council,Childrens & Education Services,Third party payments to other Local Authorities,13-Feb-24,5105916393,KS Education Limited,"10,090.35"
Manchester City Council,Manchester Leisure,Compensation Payments,13-Feb-24,1908367253,Liberay Legal Limited,620.00
Manchester City Council,Manchester Leisure,Rents,13-Feb-24,5105916360,M&D Residential Ltd,"19,022.00"
Manchester City Council,Corporate Services,Works and associated costs for Land and Buildings,13-Feb-24,5105916295,Mace Ltd,"31,298.00"
Manchester City Council,Corporate Services,Works and associated costs for Land and Buildings,13-Feb-24,5105916295,Mace Ltd,"1,260.95"
Manchester City Council,Corporate Services,Works and associated costs for Land and Buildings,13-Feb-24,5105916295,Mace Ltd,"3,750.00"
Manchester City Council,Corporate Services,Works and associated costs for Land and Buildings,13-Feb-24,5105916295,Mace Ltd,"10,086.15"
Manchester City Council,Corporate Services,Works and associated costs for Land and Buildings,13-Feb-24,5105916295,Mace Ltd,"14,297.03"
Manchester City Council,Manchester Leisure,Rents,13-Feb-24,5105916348,Mack Residential Letting Ltd,"3,970.00"
Manchester City Council,Manchester Leisure,Rents,13-Feb-24,5105916368,Mack Residential Letting Ltd,"200,327.64"
Manchester City Council,Manchester Leisure,Furniture,13-Feb-24,5105916267,Mack Residential Letting Ltd,"1,500.00"
Manchester City Council,Hospitality + Trading Services,Vehicle Hire Costs,13-Feb-24,5105916485,Manchester Van Hire Ltd,"39,247.20"
Manchester City Council,Childrens & Education Services,Transport Coach Hire,13-Feb-24,5105915052,Redacted Personal Information,"3,300.80"
Manchester City Council,Adult Social Care,Extra Care Sheltd HP,13-Feb-24,5105916259,Meridian Health and Social Care Ltd,"14,982.00"
Manchester City Council,Adult Social Care,Legal Fees,13-Feb-24,1908365546,MFP Professional Ltd,583.33
Manchester City Council,Corporate Services,Security,13-Feb-24,5105916375,MITIE SECURITY LIMITED,"131,914.79"
Manchester City Council,Corporate Services,Security,13-Feb-24,5105916377,MITIE SECURITY LIMITED,"131,861.03"
Manchester City Council,Corporate Services,Security,13-Feb-24,5105916376,MITIE SECURITY LIMITED,"2,675.75"
Manchester City Council,Housing Revenue Account,Council Dwelling Adaptations,13-Feb-24,5105916370,Moores Furniture Group Limited,"3,193.07"
Manchester City Council,Housing Revenue Account,Council Dwelling Adaptations,13-Feb-24,5105916371,Moores Furniture Group Limited,"7,014.19"
Manchester City Council,Corporate Services,Car Parking Expenses,13-Feb-24,5105916372,NCP Members Parking,"1,625.00"
Manchester City Council,Adult Social Care,Personal needs of client,13-Feb-24,5105915927,Newlyn Healthcare Limited,"1,643.00"
Manchester City Council,Manchester Leisure,Payments to Contractors,13-Feb-24,5105916305,NSL Ltd,"18,275.62"
Manchester City Council,Corporate Services,Works and associated costs for Land and Buildings,13-Feb-24,5105916291,Ove Arup & Partners Ltd,"3,765.00"
Manchester City Council,Corporate Services,Works and associated costs for Land and Buildings,13-Feb-24,5105916292,Ove Arup & Partners Ltd,"1,080.00"
Manchester City Council,Corporate Services,Works and associated costs for Land and Buildings,13-Feb-24,5105916293,Ove Arup & Partners Ltd,"8,587.50"
Manchester City Council,Corporate Services,Works and associated costs for Land and Buildings,13-Feb-24,5105916294,Ove Arup & Partners Ltd,"60,000.00"
Manchester City Council,Corporate Services,Fees,13-Feb-24,5105916410,Pannone Corporate LLP,"7,400.00"
Manchester City Council,Childrens & Education Services,Grant Payments,13-Feb-24,1908367725,Paypoint,"9,277.81"
Manchester City Council,Childrens & Education Services,Third party payments to other Local Authorities,13-Feb-24,5105916180,Pictor Academy,"58,843.74"
Manchester City Council,Regeneration Finance,Legal Fees,13-Feb-24,5105916217,Pinsent Masons LLP,"7,571.00"
Manchester City Council,Corporate Services,Works and associated costs for Land and Buildings,13-Feb-24,5105916296,Planit,"3,360.00"
Manchester City Council,Adult Social Care,Personal needs of client,13-Feb-24,5105915775,Prism Medical UK Carefree Division,"1,646.15"
Manchester City Council,Housing Revenue Account,Council Dwelling Adaptations,13-Feb-24,5105916369,Procare Shower & Bathroom Centre Lt,"1,677.01"
Manchester City Council,Childrens & Education Services,Contract Cleaning External,13-Feb-24,5105916146,ProClean,580.00
Manchester City Council,Corporate Services,Works and associated costs for Land and Buildings,13-Feb-24,5105916297,Purcell Architecture Limited,"35,000.00"
Manchester City Council,Adult Social Care,Hire of Premises,13-Feb-24,5105916179,Quaker Trading Ltd,559.17
Manchester City Council,Manchester Leisure,Grant and subscriptions awarded,13-Feb-24,1908363236,Run Social Debdale Park,500.00
Manchester City Council,Housing Revenue Account,Works and associated costs for Land and Buildings,13-Feb-24,5105916380,Shared Habitat Limited,610.00
Manchester City Council,Chief Executives,Professional Fees,13-Feb-24,5105916242,Shelter,"70,296.00"
Manchester City Council,Chief Executives,Professional Fees,13-Feb-24,5105916243,Shelter,"30,797.75"
Manchester City Council,Housing Revenue Account,Council Dwelling Adaptations,13-Feb-24,5105916246,Stannah Lift Services Ltd,"2,905.00"
Manchester City Council,Housing Revenue Account,Council Dwelling Adaptations,13-Feb-24,5105916332,Stannah Lift Services Ltd,"6,752.00"
Manchester City Council,Housing Revenue Account,Council Dwelling Adaptations,13-Feb-24,5105916337,Stannah Lift Services Ltd,"6,751.00"
Manchester City Council,Adult Social Care,Legal Fees,13-Feb-24,1908366249,Redacted Personal Information,"1,196.40"
Manchester City Council,Adult Social Care,External repairs and maintenance for buildings,13-Feb-24,5105916301,T F Jones Property Services Ltd,565.25
Manchester City Council,Adult Social Care,External repairs and maintenance for buildings,13-Feb-24,5105916303,T F Jones Property Services Ltd,554.44
Manchester City Council,Adult Social Care,External repairs and maintenance for buildings,13-Feb-24,5105916405,T F Jones Property Services Ltd,946.88
Manchester City Council,Adult Social Care,External repairs and maintenance for buildings,13-Feb-24,5105916408,T F Jones Property Services Ltd,866.39
Manchester City Council,Adult Social Care,External repairs and maintenance for buildings,13-Feb-24,5105916414,T F Jones Property Services Ltd,520.79
Manchester City Council,Manchester Leisure,Grant and subscriptions awarded,13-Feb-24,1908365701,TDS Studio,550.00
Manchester City Council,Chief Executives,Printing,13-Feb-24,5105916365,Tharstern Limited,779.50
Manchester City Council,Corporate Services,Agency staff provision,13-Feb-24,5105916320,The Oyster Partnership Limited,"10,989.00"
Manchester City Council,Corporate Services,Agency staff provision,13-Feb-24,5105916331,The Oyster Partnership Limited,999.00
Manchester City Council,Manchester Leisure,Rents,13-Feb-24,1908367949,The Property Peole MCR,654.00
Manchester City Council,Manchester Leisure,Rents,13-Feb-24,1908367948,The Property People MCR,550.00
Manchester City Council,Manchester Leisure,Rents,13-Feb-24,1908367950,The Property People MCR,754.00
Manchester City Council,Manchester Leisure,Building Materials for direct delivery,13-Feb-24,5105916218,Tudor Environmental,"1,075.64"
Manchester City Council,Manchester Leisure,Other Allowances,13-Feb-24,1908354956,Tusker Direct,"1,520.45"
Manchester City Council,Manchester Leisure,Collection Commision,13-Feb-24,5105916312,Verrus (UK) T/A paybyphone,"12,014.50"
Manchester City Council,Corporate Services,External repairs and maintenance for buildings,14-Feb-24,5105916428,Access UK Ltd,507.47
Manchester City Council,Corporate Services,Landline Telephone,14-Feb-24,5105916404,8x8 UK Ltd,"54,833.31"
Manchester City Council,Corporate Services,Landline Telephone,14-Feb-24,5105916406,8x8 UK Ltd,"-5,381.69"
Manchester City Council,Corporate Services,Landline Telephone,14-Feb-24,5105916411,8x8 UK Ltd,"-5,381.69"
Manchester City Council,Corporate Services,Landline Telephone,14-Feb-24,5105916415,8x8 UK Ltd,"5,381.69"
Manchester City Council,Chief Executives,Printing,14-Feb-24,5105916682,R.C.D.,"2,883.58"
Manchester City Council,Manchester Leisure,Rents,14-Feb-24,5105916463,Accommodation Links Ltd,"90,590.29"
Manchester City Council,Manchester Leisure,Compensation Payments,14-Feb-24,1908369362,Redacted Personal Information,"1,704.12"
Manchester City Council,Adult Social Care,Third party payments relating to Voluntary Organisations,14-Feb-24,5105916808,Age Concern Manchester,799.00
Manchester City Council,Adult Social Care,Third party payments relating to Voluntary Organisations,14-Feb-24,5105916814,Age Concern Manchester,-799.00
Manchester City Council,Adult Social Care,Day Care Payments,14-Feb-24,5105916605,Age Concern Manchester,"14,165.43"
Manchester City Council,Adult Social Care,Day Care Payments,14-Feb-24,5105916606,Age Concern Manchester,"10,520.49"
Manchester City Council,Adult Social Care,Day Care Payments,14-Feb-24,5105916607,Age Concern Manchester,"10,000.00"
Manchester City Council,Manchester Leisure,Compensation Payments,14-Feb-24,1908369684,Angelus Law Client Account,539.27
Manchester City Council,Manchester Leisure,External repairs and maintenance for buildings,14-Feb-24,5105916465,Ashlea Ltd,"1,371.85"
Manchester City Council,Childrens & Education Services,Rents,14-Feb-24,1908369699,B&A Properties (Lyell) Ltd,"1,790.00"
Manchester City Council,Manchester Leisure,Building Materials for direct delivery,14-Feb-24,5105916510,Bluestone Road Allotment Society,605.09
Manchester City Council,Manchester Leisure,Compensation Payments,14-Feb-24,1908369364,Bond Turner Solicitors,500.00
Manchester City Council,Manchester Leisure,Compensation Payments,14-Feb-24,1908369372,Canter Levin & Berg,850.00
Manchester City Council,Adult Social Care,Payments for services,14-Feb-24,5105915349,Care Concepts Ltd,"9,899.78"
Manchester City Council,Regeneration Finance,Professional fees,14-Feb-24,5105916603,CBRE Ltd (Glasgow),"18,425.00"
Manchester City Council,Regeneration Finance,Professional fees,14-Feb-24,5105916604,CBRE Ltd (Glasgow),"22,825.00"
Manchester City Council,Manchester Leisure,Special Event,14-Feb-24,5105916413,Corporate & Sporting Events,856.76
Manchester City Council,Manchester Leisure,Rents,14-Feb-24,5105916469,Cromwood Ltd,"145,510.50"
Manchester City Council,Corporate Services,Vehicle Costs,14-Feb-24,1908367967,Cyclescheme Ltd,"4,700.82"
Manchester City Council,Corporate Services,Vehicle Costs,14-Feb-24,1908367968,Cyclescheme Ltd,"2,432.50"
Manchester City Council,Manchester Leisure,Third party payments relating to Voluntary Organisations,14-Feb-24,5105916668,District Homes Cic,"66,032.05"
Manchester City Council,Highways Services,Purchase of stores for re-distribution,14-Feb-24,5105916689,Fabrikat (Nottingham) Limited,"4,206.00"
Manchester City Council,Childrens & Education Services,Payments for services,14-Feb-24,5105916480,Redacted Personal Information,"6,005.42"
Manchester City Council,Chief Executives,Works and associated costs for Land and Buildings,14-Feb-24,5105916110,Faithful & Gould Ltd,"32,022.27"
Manchester City Council,Manchester Leisure,Furniture,14-Feb-24,5105916113,Furniture Resource Centre Ltd,683.36
Manchester City Council,Manchester Leisure,Security,14-Feb-24,5105915219,G4S Secure Solutions (UK) Ltd,524.52
Manchester City Council,Manchester Leisure,Security,14-Feb-24,5105915220,G4S Secure Solutions (UK) Ltd,"2,065.00"
Manchester City Council,Manchester Leisure,Security,14-Feb-24,5105915275,G4S Secure Solutions (UK) Ltd,"-2,275.00"
Manchester City Council,Manchester Leisure,Third party payments relating to Voluntary Organisations,14-Feb-24,5105916271,Great Places Housing Association,"2,290.00"
Manchester City Council,Adult Social Care,Supporting People Payments,14-Feb-24,5105916272,Great Places Housing Association,"14,328.77"
Manchester City Council,Housing Revenue Account,Works and associated costs for Land and Buildings,14-Feb-24,5105916427,Holden Building Solutions Ltd,"16,606.80"
Manchester City Council,Manchester Leisure,Subsistence and Conference Expenses,14-Feb-24,1908369701,"Imperfect Art, Inc.","3,000.00"
Manchester City Council,Manchester Leisure,Bed & Breakfast Acc,14-Feb-24,5105914761,Redacted Personal Information,"6,326.00"
Manchester City Council,Manchester Leisure,Bed & Breakfast Acc,14-Feb-24,5105916483,Redacted Personal Information,"-6,326.00"
Manchester City Council,Manchester Leisure,Bed & Breakfast Acc,14-Feb-24,5105916484,Redacted Personal Information,"6,326.00"
Manchester City Council,Childrens & Education Services,Hire of Premises,14-Feb-24,5105916435,Irish Town Manchester Ltd,630.00
Manchester City Council,Childrens & Education Services,Transport Coach Hire,14-Feb-24,5105913766,Redacted Personal Information,"27,102.00"
Manchester City Council,Manchester Leisure,Goods purchased for resale in Council outlets,14-Feb-24,5105916686,Kikkerland Europe BV,"1,423.20"
Manchester City Council,Childrens & Education Services,Transport Coach Hire,14-Feb-24,5105916422,Lancasterian School,"13,160.00"
Manchester City Council,Childrens & Education Services,Third party payments to other Local Authorities,14-Feb-24,5105916676,Laurus Cheadle Hulme,"2,605.00"
Manchester City Council,Manchester Leisure,Special Event,14-Feb-24,1908366250,M247 UK Limited,"2,993.66"
Manchester City Council,Chief Executives,Advertising,14-Feb-24,5105916626,MA Education Limited,"1,590.00"
Manchester City Council,Chief Executives,Advertising,14-Feb-24,5105916627,MA Education Limited,"1,590.00"
Manchester City Council,Chief Executives,Advertising,14-Feb-24,5105916630,MA Education Limited,595.00
Manchester City Council,Childrens & Education Services,Transport Coach Hire,14-Feb-24,5105914324,MCR Blackcab Ltd,"10,208.16"
Manchester City Council,Corporate Services,Agency staff provision,14-Feb-24,5105916475,Michael Page International,672.00
Manchester City Council,Childrens & Education Services,Transport Coach Hire,14-Feb-24,5105915285,Middleton Cars Ltd,"2,340.00"
Manchester City Council,Childrens & Education Services,Transport Coach Hire,14-Feb-24,5105915286,Middleton Cars Ltd,"1,764.00"
Manchester City Council,Childrens & Education Services,Transport Coach Hire,14-Feb-24,5105915287,Middleton Cars Ltd,"2,720.00"
Manchester City Council,Childrens & Education Services,Transport Coach Hire,14-Feb-24,5105915288,Middleton Cars Ltd,"1,440.00"
Manchester City Council,Childrens & Education Services,General Payments not otherwise categorised,14-Feb-24,5105916445,Mosscare Housing Ltd,"7,000.56"
Manchester City Council,Chief Executives,Payments to Sub-Contractors,14-Feb-24,5105916497,Redacted Personal Information,"1,895.06"
Manchester City Council,Childrens & Education Services,Third party payments to other Local Authorities,14-Feb-24,5105916423,Navigators College,"-45,000.00"
Manchester City Council,Childrens & Education Services,Third party payments to other Local Authorities,14-Feb-24,5105916424,Navigators College,"-326,181.81"
Manchester City Council,Childrens & Education Services,Third party payments to other Local Authorities,14-Feb-24,5105916425,Navigators College,"-2,888.64"
Manchester City Council,Corporate Services,Agency staff provision,14-Feb-24,5105916515,NES UK Limited,"19,234.78"
Manchester City Council,Housing Revenue Account,Council Dwelling Fees,14-Feb-24,5105916677,Nova Group Ltd,"4,089.63"
Manchester City Council,Housing Revenue Account,Council Dwelling Fees,14-Feb-24,5105916680,Nova Group Ltd,"2,584.33"
Manchester City Council,Regeneration Finance,Storage Costs,14-Feb-24,5105916516,Oasis UK formerly Box-It (NW),937.07
Manchester City Council,Regeneration Finance,Storage Costs,14-Feb-24,5105916518,Oasis UK formerly Box-It (NW),557.31
Manchester City Council,Childrens Services,Building Works,14-Feb-24,5105916625,Our Lady's RC High School,"19,945.00"
Manchester City Council,Regeneration Finance,External repairs and maintenance for buildings,14-Feb-24,5105916379,P Mcguinness & Co Ltd,570.00
Manchester City Council,Regeneration Finance,External repairs and maintenance for buildings,14-Feb-24,5105916381,P Mcguinness & Co Ltd,622.50
Manchester City Council,Highways Services,Purchase of stores for re-distribution,14-Feb-24,5105916684,P.F. Cusack (Tools Supplies) Ltd,583.90
Manchester City Council,Manchester Leisure,Compensation Payments,14-Feb-24,1908369360,Peasegoods,"7,250.00"
Manchester City Council,Manchester Leisure,Compensation Payments,14-Feb-24,1908369371,Peasegoods,"4,500.00"
Manchester City Council,Manchester Leisure,Compensation Payments,14-Feb-24,1908369376,Peasegoods,"1,007.46"
Manchester City Council,Manchester Leisure,Compensation Payments,14-Feb-24,1908369681,Peasegoods,624.33
Manchester City Council,Corporate Services,Works and associated costs for Land and Buildings,14-Feb-24,5105914756,Pell Frischmann Consultants Ltd,"10,000.00"
Manchester City Council,Corporate Services,Agency staff provision,14-Feb-24,5105916453,Pertemps Professional Recruitment L,"11,075.05"
Manchester City Council,Adult Social Care,Supporting People Payments,14-Feb-24,5105916481,Praxis Care Group,"4,920.00"
Manchester City Council,Housing Revenue Account,Council Dwelling Fees,14-Feb-24,5105916608,Pts Plumbing Trade Supplies,"3,687.35"
Manchester City Council,Housing Revenue Account,Council Dwelling Fees,14-Feb-24,5105916632,Pts Plumbing Trade Supplies,651.67
Manchester City Council,Manchester Leisure,Professional fees,14-Feb-24,5105916629,Q-Park Ltd,"13,635.68"
Manchester City Council,Manchester Leisure,Professional fees,14-Feb-24,5105916462,Redacted Personal Information,"1,843.75"
Manchester City Council,Housing Revenue Account,Council Dwelling Fees,14-Feb-24,5105916634,Rexel UK Ltd,"9,479.90"
Manchester City Council,Housing Revenue Account,Council Dwelling Fees,14-Feb-24,5105916636,Rexel UK Ltd,"7,744.43"
Manchester City Council,Housing Revenue Account,Council Dwelling Fees,14-Feb-24,5105916639,Rexel UK Ltd,"6,477.09"
Manchester City Council,Housing Revenue Account,Council Dwelling Fees,14-Feb-24,5105916652,Rexel UK Ltd,"6,140.57"
Manchester City Council,Housing Revenue Account,Council Dwelling Fees,14-Feb-24,5105916670,Rexel UK Ltd,"1,201.42"
Manchester City Council,Housing Revenue Account,Council Dwelling Adaptations,14-Feb-24,5105916429,Rothwell Plumbing Services Ltd,"6,212.65"
Manchester City Council,Childrens & Education Services,Transport Coach Hire,14-Feb-24,5105915036,Royton Minibuses Ltd,"19,492.50"
Manchester City Council,Manchester Leisure,Furniture,14-Feb-24,5105916628,Rtech Group Limited,"4,891.67"
Manchester City Council,Manchester Leisure,Furniture,14-Feb-24,5105916687,Rtech Group Limited,"4,683.33"
Manchester City Council,Childrens & Education Services,Transport Coach Hire,14-Feb-24,5105916620,School Transport Solutions,"16,754.10"
Manchester City Council,Childrens & Education Services,Transport Coach Hire,14-Feb-24,5105916624,School Transport Solutions,"17,897.20"
Manchester City Council,Childrens & Education Services,Payments for services,14-Feb-24,5105916661,SENsational Tutors Ltd,825.00
Manchester City Council,Childrens & Education Services,Payments for services,14-Feb-24,5105916667,St Bede'S Pre School,"2,604.67"
Manchester City Council,Corporate Services,Works and associated costs for Land and Buildings,14-Feb-24,5105915388,Strata Consulting Ltd,825.00
Manchester City Council,Chief Executives,Grant Payments,14-Feb-24,5105916688,Suffolk county council,"2,035.00"
Manchester City Council,Chief Executives,Advertising,14-Feb-24,5105916514,Syon Media Ltd,535.50
Manchester City Council,Adult Social Care,External repairs and maintenance for buildings,14-Feb-24,5105916437,T F Jones Property Services Ltd,620.28
Manchester City Council,Adult Social Care,External repairs and maintenance for buildings,14-Feb-24,5105916457,T F Jones Property Services Ltd,532.62
Manchester City Council,Childrens & Education Services,Third party payments to other Local Authorities,14-Feb-24,5105916506,Thomasson Memorial School,"36,959.32"
Manchester City Council,Chief Executives,Publications,14-Feb-24,5105916683,Thompson Reuters (Professional),"27,407.25"
Manchester City Council,Childrens & Education Services,Day Care Payments,14-Feb-24,5105916421,Tiny Steps Nursery,"1,485.00"
Manchester City Council,Manchester Leisure,Security,14-Feb-24,5105916532,UNIQUE SPECIALIST SERVICES,"3,402.00"
Manchester City Council,Manchester Leisure,Security,14-Feb-24,5105916536,UNIQUE SPECIALIST SERVICES,"1,134.00"
Manchester City Council,Manchester Leisure,Security,14-Feb-24,5105916537,UNIQUE SPECIALIST SERVICES,"1,404.00"
Manchester City Council,Chief Executives,Hire of Equipment,14-Feb-24,5105916395,Universal Live,500.00
Manchester City Council,Chief Executives,Hire of Equipment,14-Feb-24,5105916499,Universal Live,744.37
Manchester City Council,Manchester Leisure,Special Event,14-Feb-24,5105916449,Utilities Design & Planning Ltd,"1,229.74"
Manchester City Council,Highways Services,Payments to Sub-Contractors,14-Feb-24,5105916444,Utilities Design & Planning Ltd,"2,000.00"
Manchester City Council,Highways Services,Payments to Sub-Contractors,14-Feb-24,5105916533,Utilities Design & Planning Ltd,800.00
Manchester City Council,Highways Services,Payments to Sub-Contractors,14-Feb-24,5105916534,Utilities Design & Planning Ltd,"1,100.00"
Manchester City Council,Insurance Fund,Insurance,14-Feb-24,1908369688,Ward Hadaway LLP,"75,000.00"
Manchester City Council,Insurance Fund,Insurance,14-Feb-24,1908360240,Weightmans LLP Solicitors,"22,460.55"
Manchester City Council,Chief Executives,Postage,14-Feb-24,5105916003,Whistl North Ltd,612.80
Manchester City Council,Housing General Fund,Building Works,14-Feb-24,5105916290,Wythenshawe Community Housing Group,"237,616.43"
Manchester City Council,Manchester Leisure,Grant and subscriptions awarded,14-Feb-24,5105916501,Wythenshawe Forum Trust Ltd,"3,150.00"
Manchester City Council,Chief Executives,Vehicle Plant Furniture and Equipment,14-Feb-24,5105916346,XMA Limited,"76,225.00"
Manchester City Council,Adult Social Care,Contract Cleaning External,14-Feb-24,5105916673,YD Healthcare Ltd,"2,381.00"
Manchester City Council,Manchester Leisure,Agency staff provision,15-Feb-24,5105916780,Redacted Personal Information,875.00
Manchester City Council,Corporate Services,Agency staff provision,15-Feb-24,5105916727,Access Computer Consulting plc,"12,134.88"
Manchester City Council,Regeneration Finance,Professional fees,15-Feb-24,5105916672,AA Projects Ltd,"1,750.59"
Manchester City Council,Manchester Leisure,Rents,15-Feb-24,5105916836,Redacted Personal Information,776.00
Manchester City Council,Adult Social Care,Third party payments relating to Voluntary Organisations,15-Feb-24,5105916809,Age Concern Manchester,724.00
Manchester City Council,Adult Social Care,Third party payments relating to Voluntary Organisations,15-Feb-24,5105916816,Age Concern Manchester,799.00
Manchester City Council,Childrens & Education Services,Professional fees,15-Feb-24,5105916706,Alpha Biolaboratories Limited,615.00
Manchester City Council,Environment and Operations,Construction Works,15-Feb-24,5105915937,Amey Highways Lighting (Manchester),"1,977.80"
Manchester City Council,Corporate Services,Grounds Maintenance,15-Feb-24,5105915876,Arboricultural Services Treework,"2,000.00"
Manchester City Council,Manchester Leisure,Professional fees,15-Feb-24,1908363305,Arcus Consulting LLP,"5,907.50"
Manchester City Council,Corporate Services,Cleaning Equipment and Materials,15-Feb-24,5105916990,Arrow County Supplies,"-2,042.69"
Manchester City Council,Corporate Services,Cleaning Equipment and Materials,15-Feb-24,5105917002,Arrow County Supplies,"2,038.69"
Manchester City Council,Manchester Leisure,Library Materials Acquisition,15-Feb-24,1908369386,Askews and Holts,734.99
Manchester City Council,Manchester Leisure,Library Materials Acquisition,15-Feb-24,1908369413,Azhar Enterprises Ltd,603.00
Manchester City Council,Manchester Leisure,Library Materials Acquisition,15-Feb-24,1908369414,Azhar Enterprises Ltd,610.00
Manchester City Council,Manchester Leisure,Library Materials Acquisition,15-Feb-24,1908369415,Azhar Enterprises Ltd,810.00
Manchester City Council,Manchester Leisure,Library Materials Acquisition,15-Feb-24,1908369416,Azhar Enterprises Ltd,709.00
Manchester City Council,Corporate Services,Furniture,15-Feb-24,5105914908,BCL,918.08
Manchester City Council,Environment and Operations,Construction Works,15-Feb-24,5105916782,Bethell Construction Ltd,"2,491.35"
Manchester City Council,Environment and Operations,Construction Works,15-Feb-24,5105916785,Bethell Construction Ltd,"2,491.35"
Manchester City Council,Manchester Leisure,Refuse Collection,15-Feb-24,5105915369,Biffa Municipal Limited,"27,254.89"
Manchester City Council,Manchester Leisure,Refuse Collection,15-Feb-24,5105915401,Biffa Municipal Limited,"14,480.66"
Manchester City Council,Manchester Leisure,Building Materials for direct delivery,15-Feb-24,5105915365,Biffa Municipal Limited,"11,913.13"
Manchester City Council,Manchester Leisure,Building Materials for direct delivery,15-Feb-24,5105915366,Biffa Municipal Limited,"11,308.38"
Manchester City Council,Manchester Leisure,Payments to Sub-Contractors,15-Feb-24,5105915367,Biffa Municipal Limited,"47,250.00"
Manchester City Council,Manchester Leisure,Professional fees,15-Feb-24,5105915402,Biffa Municipal Limited,"2,451.36"
Manchester City Council,Corporate Services,Refuse Collection,15-Feb-24,5105915368,Biffa Municipal Limited,"52,269.23"
Manchester City Council,Adult Social Care,Payments for services,15-Feb-24,5105915661,Brook,"21,622.95"
Manchester City Council,Chief Executives,Printing,15-Feb-24,5105914815,Browns CTP Ltd,"1,802.00"
Manchester City Council,Highways Services,Payments to Sub-Contractors,15-Feb-24,5105915843,Bt Repayments And Claims Group,"1,688.00"
Manchester City Council,Childrens & Education Services,Transport Coach Hire,15-Feb-24,5105916729,Camberwell Park School,778.60
Manchester City Council,Manchester Leisure,Goods purchased for resale in Council outlets,15-Feb-24,5105916915,Canns Down Press Ltd,846.08
Manchester City Council,Childrens & Education Services,Subsistence and Conference Expenses,15-Feb-24,5105914898,Career Connect,"62,311.76"
Manchester City Council,Childrens & Education Services,Payments for services,15-Feb-24,5105916713,Chaigeley Education Foundation,"4,518.18"
Manchester City Council,Manchester Leisure,Counsel Costs,15-Feb-24,1908366248,Cobden House Chambers,800.00
Manchester City Council,Childrens Services,Building Works,15-Feb-24,5105916813,Co-op Academy Belle Vue,"19,116.26"
Manchester City Council,Chief Executives,Professional fees,15-Feb-24,5105916889,Creative Concern Ltd,"21,406.00"
Manchester City Council,Adult Social Care,Payments for services,15-Feb-24,5105916643,Creative Support Ltd,"3,216.80"
Manchester City Council,Corporate Services,Landline Telephone,15-Feb-24,1908363233,Daisy Corporate Services Trading,"1,033.80"
Manchester City Council,Corporate Services,I T Provision,15-Feb-24,5105916902,DESTIN SOLUTIONS LTD,"6,000.00"
Manchester City Council,Manchester Leisure,Refuse Collection,15-Feb-24,5105916922,Dickinson Environmental,"1,247.00"
Manchester City Council,Adult Social Care,Equipment,15-Feb-24,5105915946,Drive Devilbiss Healthcare Ltd,"2,130.57"
Manchester City Council,Manchester Leisure,Grant and subscriptions awarded,15-Feb-24,1908369689,Elevate Young Minds,"6,250.00"
Manchester City Council,Environment and Operations,Construction Works,15-Feb-24,5105915187,Eric Wright Civil Engineering Limit,"240,920.34"
Manchester City Council,Manchester Leisure,Special Event,15-Feb-24,5105915942,Event Technical Support,"2,193.00"
Manchester City Council,Manchester Leisure,Special Event,15-Feb-24,5105915943,Event Technical Support,"6,036.60"
Manchester City Council,Childrens & Education Services,Foster Payments,15-Feb-24,5105916811,Foster Talk,"3,397.68"
Manchester City Council,Adult Social Care,Rents,15-Feb-24,5105916720,Furniture Resource Centre Ltd,936.83
Manchester City Council,Corporate Services,WPS Awards,15-Feb-24,5105916728,Furniture Resource Centre Ltd,750.56
Manchester City Council,Corporate Services,WPS Awards,15-Feb-24,5105916824,Furniture Resource Centre Ltd,691.75
Manchester City Council,Corporate Services,WPS Awards,15-Feb-24,5105916827,Furniture Resource Centre Ltd,"1,465.54"
Manchester City Council,Corporate Services,WPS Awards,15-Feb-24,5105916829,Furniture Resource Centre Ltd,842.69
Manchester City Council,Corporate Services,WPS Awards,15-Feb-24,5105916856,Furniture Resource Centre Ltd,699.99
Manchester City Council,Chief Executives,Advertising,15-Feb-24,5105916718,GAYDIO Community Interest Company,"2,500.00"
Manchester City Council,Environment and Operations,Construction Works,15-Feb-24,5105916350,GMCA,"30,364.51"
Manchester City Council,Manchester Leisure,Goods purchased for resale in Council outlets,15-Feb-24,5105916912,Hachette UK Distribution,630.49
Manchester City Council,Housing General Fund,Building Works,15-Feb-24,1908367728,Redacted Personal Information,"19,215.98"
Manchester City Council,Chief Executives,I T Provision,15-Feb-24,5105916787,HCL Technologies UK Limited,"58,934.60"
Manchester City Council,Housing Revenue Account,Works and associated costs for Land and Buildings,15-Feb-24,5105916745,Holden Building Solutions Ltd,"40,792.81"
Manchester City Council,Manchester Leisure,Rents,15-Feb-24,5105914899,Housing Social Ltd,"36,471.14"
Manchester City Council,Childrens & Education Services,Professional fees,15-Feb-24,5105916851,JK Dog Assessors & Training,500.00
Manchester City Council,Childrens & Education Services,Professional fees,15-Feb-24,5105916852,JK Dog Assessors & Training,500.00
Manchester City Council,Childrens & Education Services,Professional fees,15-Feb-24,5105916853,JK Dog Assessors & Training,700.00
Manchester City Council,Chief Executives,Counsel Costs,15-Feb-24,1908361654,Kenworthy's Chambers,750.00
Manchester City Council,Childrens & Education Services,Payments for services,15-Feb-24,5105916784,Keys PCE Limited,"4,100.69"
Manchester City Council,Childrens & Education Services,Payments for services,15-Feb-24,5105916788,Keys PCE Limited,"7,209.47"
Manchester City Council,Manchester Leisure,Works and associated costs for Land and Buildings,15-Feb-24,5105915088,Kier Construction North and,"384,025.27"
Manchester City Council,Corporate Services,Professional fees,15-Feb-24,5105915945,King's House Conference (Gtr Mcr),"1,909.00"
Manchester City Council,Corporate Services,Works and associated costs for Land and Buildings,15-Feb-24,5105916734,LendLease Construction(EUROPE) Ltd,"959,164.37"
Manchester City Council,Corporate Services,Works and associated costs for Land and Buildings,15-Feb-24,5105916734,LendLease Construction(EUROPE) Ltd,"3,953,409.66"
Manchester City Council,Childrens & Education Services,Transport Coach Hire,15-Feb-24,5105916927,Liddle Hackney Carriage,"3,740.00"
Manchester City Council,Childrens & Education Services,Payments for services,15-Feb-24,5105916781,Link Mediation Services,750.00
Manchester City Council,Manchester Leisure,Grant and subscriptions awarded,15-Feb-24,5105916935,Lloyds Hotel Bowling Club,"2,500.00"
Manchester City Council,Childrens & Education Services,Professional fees,15-Feb-24,5105916875,Manchester Academy,"4,760.00"
Manchester City Council,Manchester Leisure,Goods purchased for resale in Council outlets,15-Feb-24,5105916321,Manchester Histories,568.57
Manchester City Council,Regeneration Finance,Grant and subscriptions awarded,15-Feb-24,5105916139,Manchester Metropolitan University,"10,000.00"
Manchester City Council,Childrens & Education Services,Gas,15-Feb-24,5105916646,Manchester School Services Limited,"40,591.42"
Manchester City Council,Childrens & Education Services,Private Finance and Public Private partnership initiatives,15-Feb-24,5105914862,Manchester School Services Limited,"40,591.42"
Manchester City Council,Childrens & Education Services,Private Finance and Public Private partnership initiatives,15-Feb-24,5105916645,Manchester School Services Limited,"-40,591.42"
Manchester City Council,Manchester Leisure,Grant and subscriptions awarded,15-Feb-24,5105916894,Manchester Womens Aid,"3,333.33"
Manchester City Council,Manchester Leisure,Third party payments relating to Voluntary Organisations,15-Feb-24,5105916789,Manchester Womens Aid,"41,666.70"
Manchester City Council,Corporate Services,Transport Taxis,15-Feb-24,1908370865,MANTAX TAXIS - VT,"27,149.40"
Manchester City Council,Adult Social Care,Removal and Storage of Furniture,15-Feb-24,5105916227,Master Moves Ltd,699.20
Manchester City Council,Hospitality + Trading Services,Funeral and coroner related services,15-Feb-24,1908342997,McGarry Memorials Ltd,"1,498.70"
Manchester City Council,Manchester Leisure,Goods purchased for resale in Council outlets,15-Feb-24,5105916903,MDBKA,550.00
